{"text_format":"1","workbook":"xlsx","n_sheets":83,"sheets":["Stammdatenblatt","Fragen","Antwort-Vorgaben","Fragebogen","Übersicht","A1","A2","A3","A4","A5","A6","A7","A8","A9","A10","A11","A12","A13","A14","A15","A16","A17","A18","A19","A20","A21","A22","A23","A24","A25","A26","A27","A28","A29","A30","A31","A32","A33","A34","A35","A36","A37","A38","A39","A40","A41","A42","A42a","A43","A44","A45","A46","A47","A48","A49","A50","A51","A52","A53","A54","A55","A56","A57","A58","A59","A60","A61","A62","A63","A64","A65","A66","A67","A68","A69","A69a","A70","A71","A72","A73","A74","A75","A76"],"not_rendered":{"charts":75,"images":0,"macros":1,"external_links":0,"defined_names":0,"comments":0,"pivot_tables":0},"unopened":[],"bounds":{"document_bytes":16777216,"sheet_cells":100000,"rows_first":2000,"rows_last":500,"rows_between":2000,"halvings":0,"cell_chars":16384,"cell_head_chars":4096},"cells_cut":0,"cells_raw":0,"read":"whole","date_system":"1900"}

{"sheet":"Stammdatenblatt","index":0,"n_rows":5,"n_cols":1,"rows_kept":5,"cut":false,"hidden":false,"merged":[[0,0,0,5]]}
["Stammdatenblatt"]
[]
["Träger:"]
["Adresse:"]
["Ansprechpartner:"]

{"sheet":"Fragen","index":1,"n_rows":101,"n_cols":2,"rows_kept":101,"cut":false,"hidden":false,"merged":[[2,0,2,1],[13,0,13,1],[22,0,22,1],[34,0,34,1],[46,0,46,1],[52,0,52,1],[65,0,65,1],[74,0,74,1],[81,0,81,1],[95,0,95,1],[87,0,87,1]]}
["Fragen zum Fragebogen Gesundheit und Arbeit"]
[]
["Fragen zur Arbeit"]
[1,"Meine Arbeit gefällt mir"]
[2,"Meine Arbeit ist interessant"]
[3,"Bei der Arbeit kann ich etwas Neues dazulernen"]
[4,"Bei wichtigen Dingen in der Arbeit kann ich mitbestimmen"]
[5,"Ich kann selbst entscheiden, in welcher Reihenfolge ich meine Arbeit mache"]
[6,"Ich kann selbst entscheiden, wie ich meine Arbeit mache"]
[7,"Meine Arbeit ist wichtig"]
[8,"Ich weiß wofür meine Arbeit gut ist"]
[9,"Ich kann schwierige Aufgaben in der Arbeit lösen"]
[]
["Fragen zu den direkten Vorgesetzten oder Betreuern"]
[10,"In der Arbeit sagen meine Vorgesetzten oder Betreuer ganz genau was zu tun ist"]
[11,"Ich kann meinen Vorgesetzten oder Betreuern vertrauen"]
[12,"Meine Vorgesetzten oder Betreuer unterstützen mich bei der Arbeit"]
[13,"Meine Vorgesetzten oder Betreuer sagen mir, ob ich etwas gut gemacht habe"]
[14,"Meine Vorgesetzten oder Betreuer sagen mir auch, wenn ich etwas nicht so gut gemacht habe"]
[15,"Mit meinen Vorgesetzten oder Betreuern komme ich gut aus"]
[16,"Vor manchen Vorgesetzten oder Betreuern habe ich Angst"]
[]
["Fragen zu den Kollegen und Kolleginnen"]
[17,"Auf meine Kollegen und Kolleginnen kann ich mich verlassen"]
[18,"Ich kann meinen Kollegen und Kolleginnen vertrauen"]
[19,"Meine Kollegen und Kolleginnen unterstützen mich"]
[20,"Meine Kollegen und Kolleginnen loben mich, wenn ich etwas gut gemacht habe"]
[21,"Ich werde von meinen Kollegen oder Kolleginnen geärgert"]
[22,"Meine Kollegen oder Kolleginnen stören mich absichtlich bei der Arbeit"]
[23,"Die anderen Kollegen und Kolleginnen streiten miteinander"]
[24,"Ich habe Streit mit meinen Kollegen oder Kolleginnen"]
[25,"Andere Kollegen oder Kolleginnen tun mir absichtlich weh"]
[26,"Vor manchen Kollegen oder Kolleginnen habe ich Angst"]
[]
["Fragen zur Arbeits-Zufriedenheit"]
[27,"In der Arbeit wird darauf geschaut, dass ich mich wohl fühle"]
[28,"In der Arbeit wird darauf geschaut, dass es mir gut geht"]
[29,"In der Arbeit wird darauf geschaut, dass ich gesund bleibe"]
[30,"Ich bin stolz darauf, dass ich hier arbeite"]
[31,"Meine Arbeit bedeutet mir viel"]
[32,"Ich erzähle anderen gerne über meine Arbeit"]
[33,"Menschen mit Behinderung werden hier genauso behandelt wie Menschen ohne Behinderung"]
[34,"In der Arbeit wird auf meine persönlichen Umstände Rücksicht genommen"]
[35,"Die Leute in der Arbeit gehen respektvoll miteinander um"]
[36,"Ich kann mir gut vorstellen, dass ich hier noch lange arbeite"]
[]
["Fragen zum Thema Freizeit und Erholung"]
[37,"Probleme in der Arbeit beschäftigen mich auch daheim"]
[38,"Wegen der Arbeit kommt meine Freizeit zu kurz"]
[39,"Nach der Arbeit kann ich gut abschalten"]
[40,"Nach der Arbeit bin ich so müde, dass ich fast nichts mehr tun kann"]
[]
["Fragen zum Thema Gesundheit"]
[41,"So gesund fühle ich mich derzeit:"]
[42,"Machen Sie regelmäßig Sport oder Bewegung?"]
["42a","Ich mache so oft Sport pro Woche"]
[43,"In der Arbeit habe ich genug Bewegung"]
[44,"Ich möchte mich während der Arbeit mehr bewegen"]
[45,"In der Arbeit kann ich mich gesund ernähren"]
[46,"Ich möchte mich gesünder ernähren"]
[47,"Rauchen Sie?"]
[48,"Wie viele Zigaretten rauchen Sie am Tag?"]
[49,"Ich möchte mit dem Rauchen aufhören"]
[50,"Ich bin dieses Jahr schon einmal arbeiten gegangen, obwohl ich krank war"]
[]
["Fragen zu körperlichen Beschwerden"]
[51,"Wie oft haben Sie starke Kopfschmerzen?"]
[52,"Wie oft haben Sie Schmerzen am Nacken und in der Schulter?"]
[53,"Wie oft haben Sie Schmerzen in den Armen und Händen?"]
[54,"Wie oft haben Sie Schmerzen in den Beinen und Füßen?"]
[55,"Wie oft sind Sie müde oder erschöpft?"]
[56,"Wie oft haben Sie Augen-Schmerzen?"]
[57,"Wie oft ist Ihnen schwindelig?"]
[]
["Fragen zum Thema Belastungen am Arbeits-Platz"]
[58,"An meinem Arbeits-Platz ist es sehr laut"]
[59,"An meinem Arbeits-Platz ist es sehr heiß oder kalt"]
[60,"An meinem Arbeits-Platz ist es sehr staubig"]
[61,"An meinem Arbeits-Platz ist sehr schlechte Luft"]
[62,"An meinem Arbeits-Platz kann ich gut arbeiten"]
[]
["Fragen zum Thema Barriere-Freiheit"]
[63,"Ich kann in der Arbeit überall gut alleine hinkommen"]
[64,"In der Arbeit kann ich alle wichtigen Dinge selbst gut erreichen (z.B. Lichtschalter oder Steckdosen)"]
[65,"Die Informationen die ich hier bekomme, kann ich gut verstehen"]
[66,"Wenn ich etwas nicht verstehe, dann wird mir das erklärt"]
[]
["Fragen zum Projekt Gesundheit inklusiv"]
[67,"Ich bin über das Projekt Gesundheit inklusiv gut informiert worden"]
[68,"Ich habe beim Projekt Gesundheit inklusiv mitbestimmen können"]
[69,"Wegen dem Projekt Gesundheit inklusiv hat sich in der Arbeit etwas verbessert"]
["69a","Was hat sich wegen dem Projekt in der Arbeit verbessert?"]
[70,"Das hat mir beim Projekt Gesundheit inklusiv besonders gut gefallen"]
[71,"Das kann man beim Projekt Gesundheit inklusiv noch besser machen"]
[]
["Persönliche Daten"]
[72,"Alter:"]
[73,"Geschlecht:"]
[74,"Wie lange arbeiten Sie schon hier?"]
[75,"Wie viele Tage in der Woche arbeiten Sie?"]
[76,"Wie viel arbeiten Sie an einem Arbeits-Tag?"]

{"sheet":"Antwort-Vorgaben","index":2,"n_rows":159,"n_cols":1,"rows_kept":159,"cut":false,"hidden":false,"merged":[[0,0,0,5]]}
["Antwortmöglichkeiten für die Fragen"]
[]
[{"$f":"Fragen!A3","v":"Fragen zur Arbeit"}]
["Frage 1-9"]
["immer"]
["oft"]
["selten"]
["nie"]
["weiß ich nicht"]
["keine Antwort"]
[]
[{"$f":"Fragen!A14","v":"Fragen zu den direkten Vorgesetzten oder Betreuern"}]
["Frage 10-16"]
["immer"]
["oft"]
["selten"]
["nie"]
["weiß ich nicht"]
["keine Antwort"]
[]
[{"$f":"Fragen!A23","v":"Fragen zu den Kollegen und Kolleginnen"}]
["Frage 17-26"]
["immer"]
["oft"]
["selten"]
["nie"]
["weiß ich nicht"]
["keine Antwort"]
[]
[{"$f":"Fragen!A35","v":"Fragen zur Arbeits-Zufriedenheit"}]
["Frage 27-36"]
["immer"]
["oft"]
["selten"]
["nie"]
["weiß ich nicht"]
["keine Antwort"]
[]
[{"$f":"Fragen!A47","v":"Fragen zum Thema Freizeit und Erholung"}]
["Frage 37-40"]
["immer"]
["oft"]
["selten"]
["nie"]
["weiß ich nicht"]
["keine Antwort"]
[]
[{"$f":"Fragen!A53","v":"Fragen zum Thema Gesundheit"}]
["Frage 41"]
["sehr gesund"]
["gesund"]
["mittel"]
["nicht so gesund"]
["überhaupt nicht gesund"]
["keine Antwort"]
["Frage 42"]
["Ja"]
["Nein"]
["keine Antwort"]
["Frage 42a"]
["1 bis 2 Mal"]
["3 bis 4 Mal"]
["5 Mal oder öfter"]
["keine Antwort"]
["Frage 43-46"]
["immer"]
["oft"]
["selten"]
["nie"]
["weiß ich nicht"]
["keine Antwort"]
["Frage 47"]
["Ja"]
["Nein"]
["keine Antwort"]
["Frage 48"]
["1 bis 2 "]
["3 bis 5"]
["6 bis 10"]
["11 bis 15"]
["16 bis 20"]
["mehr als 20"]
["keine Antwort"]
["Frage 49-50"]
["Ja"]
["Nein"]
["keine Antwort"]
[]
[{"$f":"Fragen!A66","v":"Fragen zu körperlichen Beschwerden"}]
["Frage 51-57"]
["immer"]
["oft"]
["selten"]
["nie"]
["weiß ich nicht"]
["keine Antwort"]
[]
[{"$f":"Fragen!A75","v":"Fragen zum Thema Belastungen am Arbeits-Platz"}]
["Frage 58-62"]
["immer"]
["oft"]
["selten"]
["nie"]
["weiß ich nicht"]
["keine Antwort"]
[]
[{"$f":"Fragen!A82","v":"Fragen zum Thema Barriere-Freiheit"}]
["Frage 63-66"]
["immer"]
["oft"]
["selten"]
["nie"]
["weiß ich nicht"]
["keine Antwort"]
[]
[{"$f":"Fragen!A88","v":"Fragen zum Projekt Gesundheit inklusiv"}]
["Frage 67-69"]
["ja"]
["teilweise"]
["nein"]
["weiß ich nicht"]
["keine Antwort"]
["Frage 69a-71 sind Freitext-Fragen"]
[]
[{"$f":"Fragen!A96","v":"Persönliche Daten"}]
["Frage 72"]
["unter 18"]
["18 bis 25"]
["26 bis 29"]
["30 bis 39"]
["40 bis 49"]
["50 bis 59"]
["60 und älter"]
["keine Antwort"]
["Frage 73"]
["Frau"]
["Mann"]
["keine Antwort"]
["Frage 74"]
["weniger als \n1 Jahr"]
["1 bis 5 \nJahre"]
["6 bis 10 \nJahre"]
["mehr als 10 Jahre"]
["weiß ich nicht"]
["keine Antwort"]
["Frage 75"]
["1 Tag"]
["2 Tage"]
["3 Tage"]
["4 Tage"]
["5 Tage"]
["6 Tage"]
["7 Tage"]
["keine Antwort"]
["Frage 76"]
["einen ganzen Tag"]
["einen halben Tag"]
["weiß ich nicht"]
["keine Antwort"]

{"sheet":"Fragebogen","index":3,"n_rows":3,"n_cols":81,"rows_kept":3,"cut":false,"hidden":false,"merged":[]}
[null,"Erfassen der Fragebögen"]
[]
["FB-Nummer","Frage 1","Frage 2","Frage 3","Frage 4","Frage 5","Frage 6","Frage 7","Frage 8","Frage 9","Frage 10","Frage 11","Frage 12","Frage 13","Frage 14","Frage 15","Frage 16","Frage 17","Frage 18","Frage 19","Frage 20","Frage 21","Frage 22","Frage 23","Frage 24","Frage 25","Frage 26","Frage 27","Frage 28","Frage 29","Frage 30","Frage 31","Frage 32","Frage 33","Frage 34","Frage 35","Frage 36","Frage 37","Frage 38","Frage 39","Frage 40","Frage 41","Frage 42","Frage 42a","Frage 43","Frage 44","Frage 45","Frage 46","Frage 47","Frage 48","Frage 49","Frage 50","Frage 51","Frage 52","Frage 53","Frage 54","Frage 55","Frage 56","Frage 57","Frage 58","Frage 59","Frage 60","Frage 61","Frage 62","Frage 63","Frage 64","Frage 65","Frage 66","Frage 67","Frage 68","Frage 69","Frage 69a","Frage 70","Frage 71","Frage 72","Frage 73","Frage 74","Frage 75","Frage 76","eingegeben von","kontrolliert von"]

{"sheet":"Übersicht","index":4,"n_rows":143,"n_cols":11,"rows_kept":143,"cut":false,"hidden":false,"merged":[[0,0,0,8],[62,0,62,9],[89,0,89,8],[2,0,2,8],[15,0,15,8],[26,0,26,8],[109,0,109,8],[128,0,128,10],[100,0,100,8],[40,0,40,8],[54,0,54,8],[117,0,117,7]]}
["Antwortübersicht"]
[]
[{"$f":"Fragen!A3","v":"Fragen zur Arbeit"}]
["Nr","Frage",{"$f":"'Antwort-Vorgaben'!A5","v":"immer"},{"$f":"'Antwort-Vorgaben'!A6","v":"oft"},{"$f":"'Antwort-Vorgaben'!A7","v":"selten"},{"$f":"'Antwort-Vorgaben'!A8","v":"nie"},{"$f":"'Antwort-Vorgaben'!A9","v":"weiß ich nicht"},{"$f":"'Antwort-Vorgaben'!A10","v":"keine Antwort"},"Summe"]
[{"$f":"Fragen!A4","v":1},{"$f":"Fragen!B4","v":"Meine Arbeit gefällt mir"},{"$f":"COUNTIF(Fragebogen!$B$4:$B$54,'Antwort-Vorgaben'!$A$5)","v":0},{"$f":"COUNTIF(Fragebogen!$B$4:$B$54,'Antwort-Vorgaben'!$A$6)","v":0},{"$f":"COUNTIF(Fragebogen!$B$4:$B$54,'Antwort-Vorgaben'!$A$7)","v":0},{"$f":"COUNTIF(Fragebogen!$B$4:$B$54,'Antwort-Vorgaben'!$A$8)","v":0},{"$f":"COUNTIF(Fragebogen!$B$4:$B$54,'Antwort-Vorgaben'!$A$9)","v":0},{"$f":"COUNTIF(Fragebogen!$B$4:$B$54,'Antwort-Vorgaben'!$A$10)","v":0},{"$f":"SUM(C5:H5)","v":0}]
[{"$f":"Fragen!A5","v":2},{"$f":"Fragen!B5","v":"Meine Arbeit ist interessant"},{"$f":"COUNTIF(Fragebogen!$C$4:$C$54,'Antwort-Vorgaben'!$A$5)","v":0},{"$f":"COUNTIF(Fragebogen!$C$4:$C$54,'Antwort-Vorgaben'!$A$6)","v":0},{"$f":"COUNTIF(Fragebogen!$C$4:$C$54,'Antwort-Vorgaben'!$A$7)","v":0},{"$f":"COUNTIF(Fragebogen!$C$4:$C$54,'Antwort-Vorgaben'!$A$8)","v":0},{"$f":"COUNTIF(Fragebogen!$C$4:$C$54,'Antwort-Vorgaben'!$A$9)","v":0},{"$f":"COUNTIF(Fragebogen!$C$4:$C$54,'Antwort-Vorgaben'!$A$10)","v":0},{"$f":"SUM(C6:H6)","v":0}]
[{"$f":"Fragen!A6","v":3},{"$f":"Fragen!B6","v":"Bei der Arbeit kann ich etwas Neues dazulernen"},{"$f":"COUNTIF(Fragebogen!$D$4:$D$54,'Antwort-Vorgaben'!$A$5)","v":0},{"$f":"COUNTIF(Fragebogen!$D$4:$D$54,'Antwort-Vorgaben'!$A$6)","v":0},{"$f":"COUNTIF(Fragebogen!$D$4:$D$54,'Antwort-Vorgaben'!$A$7)","v":0},{"$f":"COUNTIF(Fragebogen!$D$4:$D$54,'Antwort-Vorgaben'!$A$8)","v":0},{"$f":"COUNTIF(Fragebogen!$D$4:$D$54,'Antwort-Vorgaben'!$A$9)","v":0},{"$f":"COUNTIF(Fragebogen!$D$4:$D$54,'Antwort-Vorgaben'!$A$10)","v":0},0]
[{"$f":"Fragen!A7","v":4},{"$f":"Fragen!B7","v":"Bei wichtigen Dingen in der Arbeit kann ich mitbestimmen"},{"$f":"COUNTIF(Fragebogen!$E$4:$E$54,'Antwort-Vorgaben'!$A$5)","v":0},{"$f":"COUNTIF(Fragebogen!$E$4:$E$54,'Antwort-Vorgaben'!$A$6)","v":0},{"$f":"COUNTIF(Fragebogen!$E$4:$E$54,'Antwort-Vorgaben'!$A$7)","v":0},{"$f":"COUNTIF(Fragebogen!$E$4:$E$54,'Antwort-Vorgaben'!$A$8)","v":0},{"$f":"COUNTIF(Fragebogen!$E$4:$E$54,'Antwort-Vorgaben'!$A$9)","v":0},{"$f":"COUNTIF(Fragebogen!$E$4:$E$54,'Antwort-Vorgaben'!$A$10)","v":0},0]
[{"$f":"Fragen!A8","v":5},{"$f":"Fragen!B8","v":"Ich kann selbst entscheiden, in welcher Reihenfolge ich meine Arbeit mache"},{"$f":"COUNTIF(Fragebogen!$F$4:$F$54,'Antwort-Vorgaben'!$A$5)","v":0},{"$f":"COUNTIF(Fragebogen!$F$4:$F$54,'Antwort-Vorgaben'!$A$6)","v":0},{"$f":"COUNTIF(Fragebogen!$F$4:$F$54,'Antwort-Vorgaben'!$A$7)","v":0},{"$f":"COUNTIF(Fragebogen!$F$4:$F$54,'Antwort-Vorgaben'!$A$8)","v":0},{"$f":"COUNTIF(Fragebogen!$F$4:$F$54,'Antwort-Vorgaben'!$A$9)","v":0},{"$f":"COUNTIF(Fragebogen!$F$4:$F$54,'Antwort-Vorgaben'!$A$10)","v":0},0]
[{"$f":"Fragen!A9","v":6},{"$f":"Fragen!B9","v":"Ich kann selbst entscheiden, wie ich meine Arbeit mache"},{"$f":"COUNTIF(Fragebogen!$G$4:$G$54,'Antwort-Vorgaben'!$A$5)","v":0},{"$f":"COUNTIF(Fragebogen!$G$4:$G$54,'Antwort-Vorgaben'!$A$6)","v":0},{"$f":"COUNTIF(Fragebogen!$G$4:$G$54,'Antwort-Vorgaben'!$A$7)","v":0},{"$f":"COUNTIF(Fragebogen!$G$4:$G$54,'Antwort-Vorgaben'!$A$8)","v":0},{"$f":"COUNTIF(Fragebogen!$G$4:$G$54,'Antwort-Vorgaben'!$A$9)","v":0},{"$f":"COUNTIF(Fragebogen!$G$4:$G$54,'Antwort-Vorgaben'!$A$10)","v":0},0]
[{"$f":"Fragen!A10","v":7},{"$f":"Fragen!B10","v":"Meine Arbeit ist wichtig"},{"$f":"COUNTIF(Fragebogen!$H$4:$H$54,'Antwort-Vorgaben'!$A$5)","v":0},{"$f":"COUNTIF(Fragebogen!$H$4:$H$54,'Antwort-Vorgaben'!$A$6)","v":0},{"$f":"COUNTIF(Fragebogen!$H$4:$H$54,'Antwort-Vorgaben'!$A$7)","v":0},{"$f":"COUNTIF(Fragebogen!$H$4:$H$54,'Antwort-Vorgaben'!$A$8)","v":0},{"$f":"COUNTIF(Fragebogen!$H$4:$H$54,'Antwort-Vorgaben'!$A$9)","v":0},{"$f":"COUNTIF(Fragebogen!$H$4:$H$54,'Antwort-Vorgaben'!$A$10)","v":0},0]
[{"$f":"Fragen!A11","v":8},{"$f":"Fragen!B11","v":"Ich weiß wofür meine Arbeit gut ist"},{"$f":"COUNTIF(Fragebogen!$I$4:$I$54,'Antwort-Vorgaben'!$A$5)","v":0},{"$f":"COUNTIF(Fragebogen!$I$4:$I$54,'Antwort-Vorgaben'!$A$6)","v":0},{"$f":"COUNTIF(Fragebogen!$I$4:$I$54,'Antwort-Vorgaben'!$A$7)","v":0},{"$f":"COUNTIF(Fragebogen!$I$4:$I$54,'Antwort-Vorgaben'!$A$8)","v":0},{"$f":"COUNTIF(Fragebogen!$I$4:$I$54,'Antwort-Vorgaben'!$A$9)","v":0},{"$f":"COUNTIF(Fragebogen!$I$4:$I$54,'Antwort-Vorgaben'!$A$10)","v":0},0]
[{"$f":"Fragen!A12","v":9},{"$f":"Fragen!B12","v":"Ich kann schwierige Aufgaben in der Arbeit lösen"},{"$f":"COUNTIF(Fragebogen!$J$4:$J$54,'Antwort-Vorgaben'!$A$5)","v":0},{"$f":"COUNTIF(Fragebogen!$J$4:$J$54,'Antwort-Vorgaben'!$A$6)","v":0},{"$f":"COUNTIF(Fragebogen!$J$4:$J$54,'Antwort-Vorgaben'!$A$7)","v":0},{"$f":"COUNTIF(Fragebogen!$J$4:$J$54,'Antwort-Vorgaben'!$A$8)","v":0},{"$f":"COUNTIF(Fragebogen!$J$4:$J$54,'Antwort-Vorgaben'!$A$9)","v":0},{"$f":"COUNTIF(Fragebogen!$J$4:$J$54,'Antwort-Vorgaben'!$A$10)","v":0},0]
[]
[]
[{"$f":"Fragen!A14","v":"Fragen zu den direkten Vorgesetzten oder Betreuern"}]
["Nr","Frage",{"$f":"'Antwort-Vorgaben'!A14","v":"immer"},{"$f":"'Antwort-Vorgaben'!A15","v":"oft"},{"$f":"'Antwort-Vorgaben'!A16","v":"selten"},{"$f":"'Antwort-Vorgaben'!A17","v":"nie"},{"$f":"'Antwort-Vorgaben'!A18","v":"weiß ich nicht"},{"$f":"'Antwort-Vorgaben'!A19","v":"keine Antwort"},"Summe"]
[{"$f":"Fragen!A15","v":10},{"$f":"Fragen!B15","v":"In der Arbeit sagen meine Vorgesetzten oder Betreuer ganz genau was zu tun ist"},{"$f":"COUNTIF(Fragebogen!$K$4:$K$54,'Antwort-Vorgaben'!$A$14)","v":0},{"$f":"COUNTIF(Fragebogen!$K$4:$K$54,'Antwort-Vorgaben'!$A$15)","v":0},{"$f":"COUNTIF(Fragebogen!$K$4:$K$54,'Antwort-Vorgaben'!$A$16)","v":0},{"$f":"COUNTIF(Fragebogen!$K$4:$K$54,'Antwort-Vorgaben'!$A$17)","v":0},{"$f":"COUNTIF(Fragebogen!$K$4:$K$54,'Antwort-Vorgaben'!$A$18)","v":0},{"$f":"COUNTIF(Fragebogen!$K$4:$K$54,'Antwort-Vorgaben'!$A$19)","v":0},{"$f":"SUM(C18:H18)","v":0}]
[{"$f":"Fragen!A16","v":11},{"$f":"Fragen!B16","v":"Ich kann meinen Vorgesetzten oder Betreuern vertrauen"},{"$f":"COUNTIF(Fragebogen!$L$4:$L$54,'Antwort-Vorgaben'!$A$14)","v":0},{"$f":"COUNTIF(Fragebogen!$L$4:$L$54,'Antwort-Vorgaben'!$A$15)","v":0},{"$f":"COUNTIF(Fragebogen!$L$4:$L$54,'Antwort-Vorgaben'!$A$16)","v":0},{"$f":"COUNTIF(Fragebogen!$L$4:$L$54,'Antwort-Vorgaben'!$A$17)","v":0},{"$f":"COUNTIF(Fragebogen!$L$4:$L$54,'Antwort-Vorgaben'!$A$18)","v":0},{"$f":"COUNTIF(Fragebogen!$L$4:$L$54,'Antwort-Vorgaben'!$A$19)","v":0},{"$f":"SUM(C19:H19)","v":0}]
[{"$f":"Fragen!A17","v":12},{"$f":"Fragen!B17","v":"Meine Vorgesetzten oder Betreuer unterstützen mich bei der Arbeit"},{"$f":"COUNTIF(Fragebogen!$M$4:$M$54,'Antwort-Vorgaben'!$A$14)","v":0},{"$f":"COUNTIF(Fragebogen!$M$4:$M$54,'Antwort-Vorgaben'!$A$15)","v":0},{"$f":"COUNTIF(Fragebogen!$M$4:$M$54,'Antwort-Vorgaben'!$A$16)","v":0},{"$f":"COUNTIF(Fragebogen!$M$4:$M$54,'Antwort-Vorgaben'!$A$17)","v":0},{"$f":"COUNTIF(Fragebogen!$M$4:$M$54,'Antwort-Vorgaben'!$A$18)","v":0},{"$f":"COUNTIF(Fragebogen!$M$4:$M$54,'Antwort-Vorgaben'!$A$19)","v":0},0]
[{"$f":"Fragen!A18","v":13},{"$f":"Fragen!B18","v":"Meine Vorgesetzten oder Betreuer sagen mir, ob ich etwas gut gemacht habe"},{"$f":"COUNTIF(Fragebogen!$N$4:$N$54,'Antwort-Vorgaben'!$A$14)","v":0},{"$f":"COUNTIF(Fragebogen!$N$4:$N$54,'Antwort-Vorgaben'!$A$15)","v":0},{"$f":"COUNTIF(Fragebogen!$N$4:$N$54,'Antwort-Vorgaben'!$A$16)","v":0},{"$f":"COUNTIF(Fragebogen!$N$4:$N$54,'Antwort-Vorgaben'!$A$17)","v":0},{"$f":"COUNTIF(Fragebogen!$N$4:$N$54,'Antwort-Vorgaben'!$A$18)","v":0},{"$f":"COUNTIF(Fragebogen!$N$4:$N$54,'Antwort-Vorgaben'!$A$19)","v":0},0]
[{"$f":"Fragen!A19","v":14},{"$f":"Fragen!B19","v":"Meine Vorgesetzten oder Betreuer sagen mir auch, wenn ich etwas nicht so gut gemacht habe"},{"$f":"COUNTIF(Fragebogen!$O$4:$O$54,'Antwort-Vorgaben'!$A$14)","v":0},{"$f":"COUNTIF(Fragebogen!$O$4:$O$54,'Antwort-Vorgaben'!$A$15)","v":0},{"$f":"COUNTIF(Fragebogen!$O$4:$O$54,'Antwort-Vorgaben'!$A$16)","v":0},{"$f":"COUNTIF(Fragebogen!$O$4:$O$54,'Antwort-Vorgaben'!$A$17)","v":0},{"$f":"COUNTIF(Fragebogen!$O$4:$O$54,'Antwort-Vorgaben'!$A$18)","v":0},{"$f":"COUNTIF(Fragebogen!$O$4:$O$54,'Antwort-Vorgaben'!$A$19)","v":0},0]
[{"$f":"Fragen!A20","v":15},{"$f":"Fragen!B20","v":"Mit meinen Vorgesetzten oder Betreuern komme ich gut aus"},{"$f":"COUNTIF(Fragebogen!$P$4:$P$54,'Antwort-Vorgaben'!$A$14)","v":0},{"$f":"COUNTIF(Fragebogen!$P$4:$P$54,'Antwort-Vorgaben'!$A$15)","v":0},{"$f":"COUNTIF(Fragebogen!$P$4:$P$54,'Antwort-Vorgaben'!$A$16)","v":0},{"$f":"COUNTIF(Fragebogen!$P$4:$P$54,'Antwort-Vorgaben'!$A$17)","v":0},{"$f":"COUNTIF(Fragebogen!$P$4:$P$54,'Antwort-Vorgaben'!$A$18)","v":0},{"$f":"COUNTIF(Fragebogen!$P$4:$P$54,'Antwort-Vorgaben'!$A$19)","v":0},0]
[{"$f":"Fragen!A21","v":16},{"$f":"Fragen!B21","v":"Vor manchen Vorgesetzten oder Betreuern habe ich Angst"},{"$f":"COUNTIF(Fragebogen!$Q$4:$Q$54,'Antwort-Vorgaben'!$A$14)","v":0},{"$f":"COUNTIF(Fragebogen!$Q$4:$Q$54,'Antwort-Vorgaben'!$A$15)","v":0},{"$f":"COUNTIF(Fragebogen!$Q$4:$Q$54,'Antwort-Vorgaben'!$A$16)","v":0},{"$f":"COUNTIF(Fragebogen!$Q$4:$Q$54,'Antwort-Vorgaben'!$A$17)","v":0},{"$f":"COUNTIF(Fragebogen!$Q$4:$Q$54,'Antwort-Vorgaben'!$A$18)","v":0},{"$f":"COUNTIF(Fragebogen!$Q$4:$Q$54,'Antwort-Vorgaben'!$A$19)","v":0},0]
[]
[]
[{"$f":"Fragen!A23","v":"Fragen zu den Kollegen und Kolleginnen"}]
["Nr","Frage",{"$f":"'Antwort-Vorgaben'!A23","v":"immer"},{"$f":"'Antwort-Vorgaben'!A24","v":"oft"},{"$f":"'Antwort-Vorgaben'!A25","v":"selten"},{"$f":"'Antwort-Vorgaben'!A26","v":"nie"},{"$f":"'Antwort-Vorgaben'!A27","v":"weiß ich nicht"},{"$f":"'Antwort-Vorgaben'!A28","v":"keine Antwort"},"Summe"]
[{"$f":"Fragen!A24","v":17},{"$f":"Fragen!B24","v":"Auf meine Kollegen und Kolleginnen kann ich mich verlassen"},{"$f":"COUNTIF(Fragebogen!$R$4:$R$54,'Antwort-Vorgaben'!$A$23)","v":0},{"$f":"COUNTIF(Fragebogen!$R$4:$R$54,'Antwort-Vorgaben'!$A$24)","v":0},{"$f":"COUNTIF(Fragebogen!$R$4:$R$54,'Antwort-Vorgaben'!$A$25)","v":0},{"$f":"COUNTIF(Fragebogen!$R$4:$R$54,'Antwort-Vorgaben'!$A$26)","v":0},{"$f":"COUNTIF(Fragebogen!$R$4:$R$54,'Antwort-Vorgaben'!$A$27)","v":0},{"$f":"COUNTIF(Fragebogen!$R$4:$R$54,'Antwort-Vorgaben'!$A$28)","v":0},{"$f":"SUM(C29:H29)","v":0}]
[{"$f":"Fragen!A25","v":18},{"$f":"Fragen!B25","v":"Ich kann meinen Kollegen und Kolleginnen vertrauen"},{"$f":"COUNTIF(Fragebogen!$S$4:$S$54,'Antwort-Vorgaben'!$A$23)","v":0},{"$f":"COUNTIF(Fragebogen!$S$4:$S$54,'Antwort-Vorgaben'!$A$24)","v":0},{"$f":"COUNTIF(Fragebogen!$S$4:$S$54,'Antwort-Vorgaben'!$A$25)","v":0},{"$f":"COUNTIF(Fragebogen!$S$4:$S$54,'Antwort-Vorgaben'!$A$26)","v":0},{"$f":"COUNTIF(Fragebogen!$S$4:$S$54,'Antwort-Vorgaben'!$A$27)","v":0},{"$f":"COUNTIF(Fragebogen!$S$4:$S$54,'Antwort-Vorgaben'!$A$28)","v":0},{"$f":"SUM(C30:H30)","v":0}]
[{"$f":"Fragen!A26","v":19},{"$f":"Fragen!B26","v":"Meine Kollegen und Kolleginnen unterstützen mich"},{"$f":"COUNTIF(Fragebogen!$T$4:$T$54,'Antwort-Vorgaben'!$A$23)","v":0},{"$f":"COUNTIF(Fragebogen!$T$4:$T$54,'Antwort-Vorgaben'!$A$24)","v":0},{"$f":"COUNTIF(Fragebogen!$T$4:$T$54,'Antwort-Vorgaben'!$A$25)","v":0},{"$f":"COUNTIF(Fragebogen!$T$4:$T$54,'Antwort-Vorgaben'!$A$26)","v":0},{"$f":"COUNTIF(Fragebogen!$T$4:$T$54,'Antwort-Vorgaben'!$A$27)","v":0},{"$f":"COUNTIF(Fragebogen!$T$4:$T$54,'Antwort-Vorgaben'!$A$28)","v":0},0]
[{"$f":"Fragen!A27","v":20},{"$f":"Fragen!B27","v":"Meine Kollegen und Kolleginnen loben mich, wenn ich etwas gut gemacht habe"},{"$f":"COUNTIF(Fragebogen!$U$4:$U$54,'Antwort-Vorgaben'!$A$23)","v":0},{"$f":"COUNTIF(Fragebogen!$U$4:$U$54,'Antwort-Vorgaben'!$A$24)","v":0},{"$f":"COUNTIF(Fragebogen!$U$4:$U$54,'Antwort-Vorgaben'!$A$25)","v":0},{"$f":"COUNTIF(Fragebogen!$U$4:$U$54,'Antwort-Vorgaben'!$A$26)","v":0},{"$f":"COUNTIF(Fragebogen!$U$4:$U$54,'Antwort-Vorgaben'!$A$27)","v":0},{"$f":"COUNTIF(Fragebogen!$U$4:$U$54,'Antwort-Vorgaben'!$A$28)","v":0},0]
[{"$f":"Fragen!A28","v":21},{"$f":"Fragen!B28","v":"Ich werde von meinen Kollegen oder Kolleginnen geärgert"},{"$f":"COUNTIF(Fragebogen!$V$4:$V$54,'Antwort-Vorgaben'!$A$23)","v":0},{"$f":"COUNTIF(Fragebogen!$V$4:$V$54,'Antwort-Vorgaben'!$A$24)","v":0},{"$f":"COUNTIF(Fragebogen!$V$4:$V$54,'Antwort-Vorgaben'!$A$25)","v":0},{"$f":"COUNTIF(Fragebogen!$V$4:$V$54,'Antwort-Vorgaben'!$A$26)","v":0},{"$f":"COUNTIF(Fragebogen!$V$4:$V$54,'Antwort-Vorgaben'!$A$27)","v":0},{"$f":"COUNTIF(Fragebogen!$V$4:$V$54,'Antwort-Vorgaben'!$A$28)","v":0},0]
[{"$f":"Fragen!A29","v":22},{"$f":"Fragen!B29","v":"Meine Kollegen oder Kolleginnen stören mich absichtlich bei der Arbeit"},{"$f":"COUNTIF(Fragebogen!$W$4:$W$54,'Antwort-Vorgaben'!$A$23)","v":0},{"$f":"COUNTIF(Fragebogen!$W$4:$W$54,'Antwort-Vorgaben'!$A$24)","v":0},{"$f":"COUNTIF(Fragebogen!$W$4:$W$54,'Antwort-Vorgaben'!$A$25)","v":0},{"$f":"COUNTIF(Fragebogen!$W$4:$W$54,'Antwort-Vorgaben'!$A$26)","v":0},{"$f":"COUNTIF(Fragebogen!$W$4:$W$54,'Antwort-Vorgaben'!$A$27)","v":0},{"$f":"COUNTIF(Fragebogen!$W$4:$W$54,'Antwort-Vorgaben'!$A$28)","v":0},0]
[{"$f":"Fragen!A30","v":23},{"$f":"Fragen!B30","v":"Die anderen Kollegen und Kolleginnen streiten miteinander"},{"$f":"COUNTIF(Fragebogen!$X$4:$X$54,'Antwort-Vorgaben'!$A$23)","v":0},{"$f":"COUNTIF(Fragebogen!$X$4:$X$54,'Antwort-Vorgaben'!$A$24)","v":0},{"$f":"COUNTIF(Fragebogen!$X$4:$X$54,'Antwort-Vorgaben'!$A$25)","v":0},{"$f":"COUNTIF(Fragebogen!$X$4:$X$54,'Antwort-Vorgaben'!$A$26)","v":0},{"$f":"COUNTIF(Fragebogen!$X$4:$X$54,'Antwort-Vorgaben'!$A$27)","v":0},{"$f":"COUNTIF(Fragebogen!$X$4:$X$54,'Antwort-Vorgaben'!$A$28)","v":0},0]
[{"$f":"Fragen!A31","v":24},{"$f":"Fragen!B31","v":"Ich habe Streit mit meinen Kollegen oder Kolleginnen"},{"$f":"COUNTIF(Fragebogen!$Y$4:$Y$54,'Antwort-Vorgaben'!$A$23)","v":0},{"$f":"COUNTIF(Fragebogen!$Y$4:$Y$54,'Antwort-Vorgaben'!$A$24)","v":0},{"$f":"COUNTIF(Fragebogen!$Y$4:$Y$54,'Antwort-Vorgaben'!$A$25)","v":0},{"$f":"COUNTIF(Fragebogen!$Y$4:$Y$54,'Antwort-Vorgaben'!$A$26)","v":0},{"$f":"COUNTIF(Fragebogen!$Y$4:$Y$54,'Antwort-Vorgaben'!$A$27)","v":0},{"$f":"COUNTIF(Fragebogen!$Y$4:$Y$54,'Antwort-Vorgaben'!$A$28)","v":0},0]
[{"$f":"Fragen!A32","v":25},{"$f":"Fragen!B32","v":"Andere Kollegen oder Kolleginnen tun mir absichtlich weh"},{"$f":"COUNTIF(Fragebogen!$Z$4:$Z$54,'Antwort-Vorgaben'!$A$23)","v":0},{"$f":"COUNTIF(Fragebogen!$Z$4:$Z$54,'Antwort-Vorgaben'!$A$24)","v":0},{"$f":"COUNTIF(Fragebogen!$Z$4:$Z$54,'Antwort-Vorgaben'!$A$25)","v":0},{"$f":"COUNTIF(Fragebogen!$Z$4:$Z$54,'Antwort-Vorgaben'!$A$26)","v":0},{"$f":"COUNTIF(Fragebogen!$Z$4:$Z$54,'Antwort-Vorgaben'!$A$27)","v":0},{"$f":"COUNTIF(Fragebogen!$Z$4:$Z$54,'Antwort-Vorgaben'!$A$28)","v":0},0]
[{"$f":"Fragen!A33","v":26},{"$f":"Fragen!B33","v":"Vor manchen Kollegen oder Kolleginnen habe ich Angst"},{"$f":"COUNTIF(Fragebogen!$AA$4:$AA$54,'Antwort-Vorgaben'!$A$23)","v":0},{"$f":"COUNTIF(Fragebogen!$AA$4:$AA$54,'Antwort-Vorgaben'!$A$24)","v":0},{"$f":"COUNTIF(Fragebogen!$AA$4:$AA$54,'Antwort-Vorgaben'!$A$25)","v":0},{"$f":"COUNTIF(Fragebogen!$AA$4:$AA$54,'Antwort-Vorgaben'!$A$26)","v":0},{"$f":"COUNTIF(Fragebogen!$AA$4:$AA$54,'Antwort-Vorgaben'!$A$27)","v":0},{"$f":"COUNTIF(Fragebogen!$AA$4:$AA$54,'Antwort-Vorgaben'!$A$28)","v":0},0]
[]
[]
[{"$f":"Fragen!A35","v":"Fragen zur Arbeits-Zufriedenheit"}]
["Nr","Frage",{"$f":"'Antwort-Vorgaben'!A32","v":"immer"},{"$f":"'Antwort-Vorgaben'!A33","v":"oft"},{"$f":"'Antwort-Vorgaben'!A34","v":"selten"},{"$f":"'Antwort-Vorgaben'!A35","v":"nie"},{"$f":"'Antwort-Vorgaben'!A36","v":"weiß ich nicht"},{"$f":"'Antwort-Vorgaben'!A37","v":"keine Antwort"},"Summe"]
[{"$f":"Fragen!A36","v":27},{"$f":"Fragen!B36","v":"In der Arbeit wird darauf geschaut, dass ich mich wohl fühle"},{"$f":"COUNTIF(Fragebogen!$AB$4:$AB54,'Antwort-Vorgaben'!$A$32)","v":0},{"$f":"COUNTIF(Fragebogen!$AB$4:$AB54,'Antwort-Vorgaben'!$A$33)","v":0},{"$f":"COUNTIF(Fragebogen!$AB$4:$AB54,'Antwort-Vorgaben'!$A$34)","v":0},{"$f":"COUNTIF(Fragebogen!$AB$4:$AB54,'Antwort-Vorgaben'!$A$35)","v":0},{"$f":"COUNTIF(Fragebogen!$AB$4:$AB54,'Antwort-Vorgaben'!$A$36)","v":0},{"$f":"COUNTIF(Fragebogen!$AB$4:$AB54,'Antwort-Vorgaben'!$A$37)","v":0},{"$f":"SUM(C43:H43)","v":0}]
[{"$f":"Fragen!A37","v":28},{"$f":"Fragen!B37","v":"In der Arbeit wird darauf geschaut, dass es mir gut geht"},{"$f":"COUNTIF(Fragebogen!$AC$4:$AC$54,'Antwort-Vorgaben'!$A$32)","v":0},{"$f":"COUNTIF(Fragebogen!$AC$4:$AC$54,'Antwort-Vorgaben'!$A$33)","v":0},{"$f":"COUNTIF(Fragebogen!$AC$4:$AC$54,'Antwort-Vorgaben'!$A$34)","v":0},{"$f":"COUNTIF(Fragebogen!$AC$4:$AC$54,'Antwort-Vorgaben'!$A$35)","v":0},{"$f":"COUNTIF(Fragebogen!$AC$4:$AC$54,'Antwort-Vorgaben'!$A$36)","v":0},{"$f":"COUNTIF(Fragebogen!$AC$4:$AC$54,'Antwort-Vorgaben'!$A$37)","v":0},{"$f":"SUM(C44:H44)","v":0}]
[{"$f":"Fragen!A38","v":29},{"$f":"Fragen!B38","v":"In der Arbeit wird darauf geschaut, dass ich gesund bleibe"},{"$f":"COUNTIF(Fragebogen!$AD$4:$AD54,'Antwort-Vorgaben'!$A$32)","v":0},{"$f":"COUNTIF(Fragebogen!$AD$4:$AD54,'Antwort-Vorgaben'!$A$33)","v":0},{"$f":"COUNTIF(Fragebogen!$AD$4:$AD54,'Antwort-Vorgaben'!$A$34)","v":0},{"$f":"COUNTIF(Fragebogen!$AD$4:$AD54,'Antwort-Vorgaben'!$A$35)","v":0},{"$f":"COUNTIF(Fragebogen!$AD$4:$AD54,'Antwort-Vorgaben'!$A$36)","v":0},{"$f":"COUNTIF(Fragebogen!$AD$4:$AD54,'Antwort-Vorgaben'!$A$37)","v":0},0]
[{"$f":"Fragen!A39","v":30},{"$f":"Fragen!B39","v":"Ich bin stolz darauf, dass ich hier arbeite"},{"$f":"COUNTIF(Fragebogen!$AE$4:$AE$54,'Antwort-Vorgaben'!$A$32)","v":0},{"$f":"COUNTIF(Fragebogen!$AE$4:$AE$54,'Antwort-Vorgaben'!$A$33)","v":0},{"$f":"COUNTIF(Fragebogen!$AE$4:$AE$54,'Antwort-Vorgaben'!$A$34)","v":0},{"$f":"COUNTIF(Fragebogen!$AE$4:$AE$54,'Antwort-Vorgaben'!$A$35)","v":0},{"$f":"COUNTIF(Fragebogen!$AE$4:$AE$54,'Antwort-Vorgaben'!$A$36)","v":0},{"$f":"COUNTIF(Fragebogen!$AE$4:$AE$54,'Antwort-Vorgaben'!$A$37)","v":0},0]
[{"$f":"Fragen!A40","v":31},{"$f":"Fragen!B40","v":"Meine Arbeit bedeutet mir viel"},{"$f":"COUNTIF(Fragebogen!$AF$4:$AF54,'Antwort-Vorgaben'!$A$32)","v":0},{"$f":"COUNTIF(Fragebogen!$AF$4:$AF54,'Antwort-Vorgaben'!$A$33)","v":0},{"$f":"COUNTIF(Fragebogen!$AF$4:$AF54,'Antwort-Vorgaben'!$A$34)","v":0},{"$f":"COUNTIF(Fragebogen!$AF$4:$AF54,'Antwort-Vorgaben'!$A$35)","v":0},{"$f":"COUNTIF(Fragebogen!$AF$4:$AF54,'Antwort-Vorgaben'!$A$36)","v":0},{"$f":"COUNTIF(Fragebogen!$AF$4:$AF54,'Antwort-Vorgaben'!$A$37)","v":0},0]
[{"$f":"Fragen!A41","v":32},{"$f":"Fragen!B41","v":"Ich erzähle anderen gerne über meine Arbeit"},{"$f":"COUNTIF(Fragebogen!$AG$4:$AG$54,'Antwort-Vorgaben'!$A$32)","v":0},{"$f":"COUNTIF(Fragebogen!$AG$4:$AG$54,'Antwort-Vorgaben'!$A$33)","v":0},{"$f":"COUNTIF(Fragebogen!$AG$4:$AG$54,'Antwort-Vorgaben'!$A$34)","v":0},{"$f":"COUNTIF(Fragebogen!$AG$4:$AG$54,'Antwort-Vorgaben'!$A$35)","v":0},{"$f":"COUNTIF(Fragebogen!$AG$4:$AG$54,'Antwort-Vorgaben'!$A$36)","v":0},{"$f":"COUNTIF(Fragebogen!$AG$4:$AG$54,'Antwort-Vorgaben'!$A$37)","v":0},0]
[{"$f":"Fragen!A42","v":33},{"$f":"Fragen!B42","v":"Menschen mit Behinderung werden hier genauso behandelt wie Menschen ohne Behinderung"},{"$f":"COUNTIF(Fragebogen!$AH$4:$AH54,'Antwort-Vorgaben'!$A$32)","v":0},{"$f":"COUNTIF(Fragebogen!$AH$4:$AH54,'Antwort-Vorgaben'!$A$33)","v":0},{"$f":"COUNTIF(Fragebogen!$AH$4:$AH54,'Antwort-Vorgaben'!$A$34)","v":0},{"$f":"COUNTIF(Fragebogen!$AH$4:$AH54,'Antwort-Vorgaben'!$A$35)","v":0},{"$f":"COUNTIF(Fragebogen!$AH$4:$AH54,'Antwort-Vorgaben'!$A$36)","v":0},{"$f":"COUNTIF(Fragebogen!$AH$4:$AH54,'Antwort-Vorgaben'!$A$37)","v":0},0]
[{"$f":"Fragen!A43","v":34},{"$f":"Fragen!B43","v":"In der Arbeit wird auf meine persönlichen Umstände Rücksicht genommen"},{"$f":"COUNTIF(Fragebogen!$AI$4:$AI$54,'Antwort-Vorgaben'!$A$32)","v":0},{"$f":"COUNTIF(Fragebogen!$AI$4:$AI$54,'Antwort-Vorgaben'!$A$33)","v":0},{"$f":"COUNTIF(Fragebogen!$AI$4:$AI$54,'Antwort-Vorgaben'!$A$34)","v":0},{"$f":"COUNTIF(Fragebogen!$AI$4:$AI$54,'Antwort-Vorgaben'!$A$35)","v":0},{"$f":"COUNTIF(Fragebogen!$AI$4:$AI$54,'Antwort-Vorgaben'!$A$36)","v":0},{"$f":"COUNTIF(Fragebogen!$AI$4:$AI$54,'Antwort-Vorgaben'!$A$37)","v":0},0]
[{"$f":"Fragen!A44","v":35},{"$f":"Fragen!B44","v":"Die Leute in der Arbeit gehen respektvoll miteinander um"},{"$f":"COUNTIF(Fragebogen!$AJ$4:$AJ54,'Antwort-Vorgaben'!$A$32)","v":0},{"$f":"COUNTIF(Fragebogen!$AJ$4:$AJ54,'Antwort-Vorgaben'!$A$33)","v":0},{"$f":"COUNTIF(Fragebogen!$AJ$4:$AJ54,'Antwort-Vorgaben'!$A$34)","v":0},{"$f":"COUNTIF(Fragebogen!$AJ$4:$AJ54,'Antwort-Vorgaben'!$A$35)","v":0},{"$f":"COUNTIF(Fragebogen!$AJ$4:$AJ54,'Antwort-Vorgaben'!$A$36)","v":0},{"$f":"COUNTIF(Fragebogen!$AJ$4:$AJ54,'Antwort-Vorgaben'!$A$37)","v":0},0]
[{"$f":"Fragen!A45","v":36},{"$f":"Fragen!B45","v":"Ich kann mir gut vorstellen, dass ich hier noch lange arbeite"},{"$f":"COUNTIF(Fragebogen!$AK$4:$AK$54,'Antwort-Vorgaben'!$A$32)","v":0},{"$f":"COUNTIF(Fragebogen!$AK$4:$AK$54,'Antwort-Vorgaben'!$A$33)","v":0},{"$f":"COUNTIF(Fragebogen!$AK$4:$AK$54,'Antwort-Vorgaben'!$A$34)","v":0},{"$f":"COUNTIF(Fragebogen!$AK$4:$AK$54,'Antwort-Vorgaben'!$A$35)","v":0},{"$f":"COUNTIF(Fragebogen!$AK$4:$AK$54,'Antwort-Vorgaben'!$A$36)","v":0},{"$f":"COUNTIF(Fragebogen!$AK$4:$AK$54,'Antwort-Vorgaben'!$A$37)","v":0},0]
[]
[]
[{"$f":"Fragen!A47","v":"Fragen zum Thema Freizeit und Erholung"}]
["Nr","Frage",{"$f":"'Antwort-Vorgaben'!A41","v":"immer"},{"$f":"'Antwort-Vorgaben'!A42","v":"oft"},{"$f":"'Antwort-Vorgaben'!A43","v":"selten"},{"$f":"'Antwort-Vorgaben'!A44","v":"nie"},{"$f":"'Antwort-Vorgaben'!A45","v":"weiß ich nicht"},{"$f":"'Antwort-Vorgaben'!A46","v":"keine Antwort"},"Summe"]
[{"$f":"Fragen!A48","v":37},{"$f":"Fragen!B48","v":"Probleme in der Arbeit beschäftigen mich auch daheim"},{"$f":"COUNTIF(Fragebogen!$AL$4:$AL$54,'Antwort-Vorgaben'!$A$41)","v":0},{"$f":"COUNTIF(Fragebogen!$AL$4:$AL$54,'Antwort-Vorgaben'!$A$42)","v":0},{"$f":"COUNTIF(Fragebogen!$AL$4:$AL$54,'Antwort-Vorgaben'!$A$43)","v":0},{"$f":"COUNTIF(Fragebogen!$AL$4:$AL$54,'Antwort-Vorgaben'!$A$44)","v":0},{"$f":"COUNTIF(Fragebogen!$AL$4:$AL$54,'Antwort-Vorgaben'!$A$45)","v":0},{"$f":"COUNTIF(Fragebogen!$AL$4:$AL$54,'Antwort-Vorgaben'!$A$46)","v":0},{"$f":"SUM(C57:H57)","v":0}]
[{"$f":"Fragen!A49","v":38},{"$f":"Fragen!B49","v":"Wegen der Arbeit kommt meine Freizeit zu kurz"},{"$f":"COUNTIF(Fragebogen!$AM$4:$AM$54,'Antwort-Vorgaben'!$A$41)","v":0},{"$f":"COUNTIF(Fragebogen!$AM$4:$AM$54,'Antwort-Vorgaben'!$A$42)","v":0},{"$f":"COUNTIF(Fragebogen!$AM$4:$AM$54,'Antwort-Vorgaben'!$A$43)","v":0},{"$f":"COUNTIF(Fragebogen!$AM$4:$AM$54,'Antwort-Vorgaben'!$A$44)","v":0},{"$f":"COUNTIF(Fragebogen!$AM$4:$AM$54,'Antwort-Vorgaben'!$A$45)","v":0},{"$f":"COUNTIF(Fragebogen!$AM$4:$AM$54,'Antwort-Vorgaben'!$A$46)","v":0},{"$f":"SUM(C58:H58)","v":0}]
[{"$f":"Fragen!A50","v":39},{"$f":"Fragen!B50","v":"Nach der Arbeit kann ich gut abschalten"},{"$f":"COUNTIF(Fragebogen!$AN$4:$AN$54,'Antwort-Vorgaben'!$A$41)","v":0},{"$f":"COUNTIF(Fragebogen!$AN$4:$AN$54,'Antwort-Vorgaben'!$A$42)","v":0},{"$f":"COUNTIF(Fragebogen!$AN$4:$AN$54,'Antwort-Vorgaben'!$A$43)","v":0},{"$f":"COUNTIF(Fragebogen!$AN$4:$AN$54,'Antwort-Vorgaben'!$A$44)","v":0},{"$f":"COUNTIF(Fragebogen!$AN$4:$AN$54,'Antwort-Vorgaben'!$A$45)","v":0},{"$f":"COUNTIF(Fragebogen!$AN$4:$AN$54,'Antwort-Vorgaben'!$A$46)","v":0},0]
[{"$f":"Fragen!A51","v":40},{"$f":"Fragen!B51","v":"Nach der Arbeit bin ich so müde, dass ich fast nichts mehr tun kann"},{"$f":"COUNTIF(Fragebogen!$AO$4:$AO$54,'Antwort-Vorgaben'!$A$41)","v":0},{"$f":"COUNTIF(Fragebogen!$AO$4:$AO$54,'Antwort-Vorgaben'!$A$42)","v":0},{"$f":"COUNTIF(Fragebogen!$AO$4:$AO$54,'Antwort-Vorgaben'!$A$43)","v":0},{"$f":"COUNTIF(Fragebogen!$AO$4:$AO$54,'Antwort-Vorgaben'!$A$44)","v":0},{"$f":"COUNTIF(Fragebogen!$AO$4:$AO$54,'Antwort-Vorgaben'!$A$45)","v":0},{"$f":"COUNTIF(Fragebogen!$AO$4:$AO$54,'Antwort-Vorgaben'!$A$46)","v":0},0]
[]
[]
[{"$f":"Fragen!A53","v":"Fragen zum Thema Gesundheit"}]
["Nr","Frage",{"$f":"'Antwort-Vorgaben'!A50","v":"sehr gesund"},{"$f":"'Antwort-Vorgaben'!A51","v":"gesund"},{"$f":"'Antwort-Vorgaben'!A52","v":"mittel"},{"$f":"'Antwort-Vorgaben'!A53","v":"nicht so gesund"},{"$f":"'Antwort-Vorgaben'!A54","v":"überhaupt nicht gesund"},{"$f":"'Antwort-Vorgaben'!A55","v":"keine Antwort"},null,"Summe"]
[{"$f":"Fragen!A54","v":41},{"$f":"Fragen!B54","v":"So gesund fühle ich mich derzeit:"},{"$f":"COUNTIF(Fragebogen!$AP$4:$AP54,'Antwort-Vorgaben'!$A$50)","v":0},{"$f":"COUNTIF(Fragebogen!$AP$4:$AP54,'Antwort-Vorgaben'!$A$51)","v":0},{"$f":"COUNTIF(Fragebogen!$AP$4:$AP54,'Antwort-Vorgaben'!$A$52)","v":0},{"$f":"COUNTIF(Fragebogen!$AP$4:$AP54,'Antwort-Vorgaben'!$A$53)","v":0},{"$f":"COUNTIF(Fragebogen!$AP$4:$AP54,'Antwort-Vorgaben'!$A$54)","v":0},{"$f":"COUNTIF(Fragebogen!$AP$4:$AP54,'Antwort-Vorgaben'!$A$55)","v":0},null,{"$f":"SUM(C65:I65)","v":0}]
[]
["Nr","Frage",{"$f":"'Antwort-Vorgaben'!A57","v":"Ja"},{"$f":"'Antwort-Vorgaben'!A58","v":"Nein"},{"$f":"'Antwort-Vorgaben'!A59","v":"keine Antwort"},null,null,null,null,"Summe"]
[{"$f":"Fragen!A55","v":42},{"$f":"Fragen!B55","v":"Machen Sie regelmäßig Sport oder Bewegung?"},{"$f":"COUNTIF(Fragebogen!$AQ$4:$AQ$54,'Antwort-Vorgaben'!$A$57)","v":0},{"$f":"COUNTIF(Fragebogen!$AQ$4:$AQ$54,'Antwort-Vorgaben'!$A$58)","v":0},{"$f":"COUNTIF(Fragebogen!$AQ$4:$AQ$54,'Antwort-Vorgaben'!$A$59)","v":0},null,null,null,null,{"$f":"SUM(C68:I68)","v":0}]
[]
["Nr","Frage",{"$f":"'Antwort-Vorgaben'!A61","v":"1 bis 2 Mal"},{"$f":"'Antwort-Vorgaben'!A62","v":"3 bis 4 Mal"},{"$f":"'Antwort-Vorgaben'!A63","v":"5 Mal oder öfter"},{"$f":"'Antwort-Vorgaben'!A64","v":"keine Antwort"},null,null,null,"Summe"]
[{"$f":"Fragen!A56","v":"42a"},{"$f":"Fragen!B56","v":"Ich mache so oft Sport pro Woche"},{"$f":"COUNTIF(Fragebogen!$AR$4:$AR54,'Antwort-Vorgaben'!$A$61)","v":0},{"$f":"COUNTIF(Fragebogen!$AR$4:$AR54,'Antwort-Vorgaben'!$A$62)","v":0},{"$f":"COUNTIF(Fragebogen!$AR$4:$AR54,'Antwort-Vorgaben'!$A$63)","v":0},{"$f":"COUNTIF(Fragebogen!$AR$4:$AR54,'Antwort-Vorgaben'!$A$64)","v":0},null,null,null,{"$f":"SUM(C71:I71)","v":0}]
[]
["Nr","Frage",{"$f":"'Antwort-Vorgaben'!A66","v":"immer"},{"$f":"'Antwort-Vorgaben'!A67","v":"oft"},{"$f":"'Antwort-Vorgaben'!A68","v":"selten"},{"$f":"'Antwort-Vorgaben'!A69","v":"nie"},{"$f":"'Antwort-Vorgaben'!A70","v":"weiß ich nicht"},{"$f":"'Antwort-Vorgaben'!A71","v":"keine Antwort"},null,"Summe"]
[{"$f":"Fragen!A57","v":43},{"$f":"Fragen!B57","v":"In der Arbeit habe ich genug Bewegung"},{"$f":"COUNTIF(Fragebogen!$AS$4:$AS$54,'Antwort-Vorgaben'!$A$66)","v":0},{"$f":"COUNTIF(Fragebogen!$AS$4:$AS$54,'Antwort-Vorgaben'!$A$67)","v":0},{"$f":"COUNTIF(Fragebogen!$AS$4:$AS$54,'Antwort-Vorgaben'!$A$68)","v":0},{"$f":"COUNTIF(Fragebogen!$AS$4:$AS$54,'Antwort-Vorgaben'!$A$69)","v":0},{"$f":"COUNTIF(Fragebogen!$AS$4:$AS$54,'Antwort-Vorgaben'!$A$70)","v":0},{"$f":"COUNTIF(Fragebogen!$AS$4:$AS$54,'Antwort-Vorgaben'!$A$71)","v":0},null,{"$f":"SUM(C74:I74)","v":0}]
[{"$f":"Fragen!A58","v":44},{"$f":"Fragen!B58","v":"Ich möchte mich während der Arbeit mehr bewegen"},{"$f":"COUNTIF(Fragebogen!$AT$4:$AT$54,'Antwort-Vorgaben'!$A$66)","v":0},{"$f":"COUNTIF(Fragebogen!$AT$4:$AT$54,'Antwort-Vorgaben'!$A$67)","v":0},{"$f":"COUNTIF(Fragebogen!$AT$4:$AT$54,'Antwort-Vorgaben'!$A$68)","v":0},{"$f":"COUNTIF(Fragebogen!$AT$4:$AT$54,'Antwort-Vorgaben'!$A$69)","v":0},{"$f":"COUNTIF(Fragebogen!$AT$4:$AT$54,'Antwort-Vorgaben'!$A$70)","v":0},{"$f":"COUNTIF(Fragebogen!$AT$4:$AT$54,'Antwort-Vorgaben'!$A$71)","v":0},null,{"$f":"SUM(C75:I75)","v":0}]
[{"$f":"Fragen!A59","v":45},{"$f":"Fragen!B59","v":"In der Arbeit kann ich mich gesund ernähren"},{"$f":"COUNTIF(Fragebogen!$AU$4:$AU$54,'Antwort-Vorgaben'!$A$66)","v":0},{"$f":"COUNTIF(Fragebogen!$AU$4:$AU$54,'Antwort-Vorgaben'!$A$67)","v":0},{"$f":"COUNTIF(Fragebogen!$AU$4:$AU$54,'Antwort-Vorgaben'!$A$68)","v":0},{"$f":"COUNTIF(Fragebogen!$AU$4:$AU$54,'Antwort-Vorgaben'!$A$69)","v":0},{"$f":"COUNTIF(Fragebogen!$AU$4:$AU$54,'Antwort-Vorgaben'!$A$70)","v":0},{"$f":"COUNTIF(Fragebogen!$AU$4:$AU$54,'Antwort-Vorgaben'!$A$71)","v":0},null,{"$f":"SUM(C76:I76)","v":0}]
[{"$f":"Fragen!A60","v":46},{"$f":"Fragen!B60","v":"Ich möchte mich gesünder ernähren"},{"$f":"COUNTIF(Fragebogen!$AV$4:$AV$54,'Antwort-Vorgaben'!$A$66)","v":0},{"$f":"COUNTIF(Fragebogen!$AV$4:$AV$54,'Antwort-Vorgaben'!$A$67)","v":0},{"$f":"COUNTIF(Fragebogen!$AV$4:$AV$54,'Antwort-Vorgaben'!$A$68)","v":0},{"$f":"COUNTIF(Fragebogen!$AV$4:$AV$54,'Antwort-Vorgaben'!$A$69)","v":0},{"$f":"COUNTIF(Fragebogen!$AV$4:$AV$54,'Antwort-Vorgaben'!$A$70)","v":0},{"$f":"COUNTIF(Fragebogen!$AV$4:$AV$54,'Antwort-Vorgaben'!$A$71)","v":0},null,{"$f":"SUM(C77:I77)","v":0}]
[]
["Nr","Frage",{"$f":"'Antwort-Vorgaben'!A73","v":"Ja"},{"$f":"'Antwort-Vorgaben'!A74","v":"Nein"},{"$f":"'Antwort-Vorgaben'!A75","v":"keine Antwort"},null,null,null,null,"Summe"]
[{"$f":"Fragen!A61","v":47},{"$f":"Fragen!B61","v":"Rauchen Sie?"},{"$f":"COUNTIF(Fragebogen!$AW$4:$AW$54,'Antwort-Vorgaben'!$A$73)","v":0},{"$f":"COUNTIF(Fragebogen!$AW$4:$AW$54,'Antwort-Vorgaben'!$A$74)","v":0},{"$f":"COUNTIF(Fragebogen!$AW$4:$AW$54,'Antwort-Vorgaben'!$A$75)","v":0},null,null,null,null,{"$f":"SUM(C80:I80)","v":0}]
[]
["Nr","Frage",{"$f":"'Antwort-Vorgaben'!A77","v":"1 bis 2 "},{"$f":"'Antwort-Vorgaben'!A78","v":"3 bis 5"},{"$f":"'Antwort-Vorgaben'!A79","v":"6 bis 10"},{"$f":"'Antwort-Vorgaben'!A80","v":"11 bis 15"},{"$f":"'Antwort-Vorgaben'!A81","v":"16 bis 20"},{"$f":"'Antwort-Vorgaben'!A82","v":"mehr als 20"},{"$f":"'Antwort-Vorgaben'!A83","v":"keine Antwort"},"Summe"]
[{"$f":"Fragen!A62","v":48},{"$f":"Fragen!B62","v":"Wie viele Zigaretten rauchen Sie am Tag?"},{"$f":"COUNTIF(Fragebogen!$AX$4:$AX$54,'Antwort-Vorgaben'!$A$77)","v":0},{"$f":"COUNTIF(Fragebogen!$AX$4:$AX$54,'Antwort-Vorgaben'!$A$78)","v":0},{"$f":"COUNTIF(Fragebogen!$AX$4:$AX$54,'Antwort-Vorgaben'!$A$79)","v":0},{"$f":"COUNTIF(Fragebogen!$AX$4:$AX$54,'Antwort-Vorgaben'!$A$80)","v":0},{"$f":"COUNTIF(Fragebogen!$AX$4:$AX$54,'Antwort-Vorgaben'!$A$81)","v":0},{"$f":"COUNTIF(Fragebogen!$AX$4:$AX$54,'Antwort-Vorgaben'!$A$82)","v":0},{"$f":"COUNTIF(Fragebogen!$AX$4:$AX$54,'Antwort-Vorgaben'!$A$83)","v":0},{"$f":"SUM(C83:I83)","v":0}]
[]
["Nr","Frage",{"$f":"'Antwort-Vorgaben'!A85","v":"Ja"},{"$f":"'Antwort-Vorgaben'!A86","v":"Nein"},{"$f":"'Antwort-Vorgaben'!A87","v":"keine Antwort"},null,null,null,null,"Summe"]
[{"$f":"Fragen!A63","v":49},{"$f":"Fragen!B63","v":"Ich möchte mit dem Rauchen aufhören"},{"$f":"COUNTIF(Fragebogen!$AY$4:$AY54,'Antwort-Vorgaben'!$A$85)","v":0},{"$f":"COUNTIF(Fragebogen!$AY$4:$AY54,'Antwort-Vorgaben'!$A$86)","v":0},{"$f":"COUNTIF(Fragebogen!$AY$4:$AY54,'Antwort-Vorgaben'!$A$87)","v":0},null,null,null,null,{"$f":"SUM(C86:I86)","v":0}]
[{"$f":"Fragen!A64","v":50},{"$f":"Fragen!B64","v":"Ich bin dieses Jahr schon einmal arbeiten gegangen, obwohl ich krank war"},{"$f":"COUNTIF(Fragebogen!$AZ$4:$AZ$54,'Antwort-Vorgaben'!$A$85)","v":0},{"$f":"COUNTIF(Fragebogen!$AZ$4:$AZ$54,'Antwort-Vorgaben'!$A$86)","v":0},{"$f":"COUNTIF(Fragebogen!$AZ$4:$AZ$54,'Antwort-Vorgaben'!$A$87)","v":0},null,null,null,null,{"$f":"SUM(C87:I87)","v":0}]
[]
[]
[{"$f":"Fragen!A66","v":"Fragen zu körperlichen Beschwerden"}]
["Nr","Frage",{"$f":"'Antwort-Vorgaben'!A91","v":"immer"},{"$f":"'Antwort-Vorgaben'!A92","v":"oft"},{"$f":"'Antwort-Vorgaben'!A93","v":"selten"},{"$f":"'Antwort-Vorgaben'!A94","v":"nie"},{"$f":"'Antwort-Vorgaben'!A95","v":"weiß ich nicht"},{"$f":"'Antwort-Vorgaben'!A96","v":"keine Antwort"},"Summe"]
[{"$f":"Fragen!A67","v":51},{"$f":"Fragen!B67","v":"Wie oft haben Sie starke Kopfschmerzen?"},{"$f":"COUNTIF(Fragebogen!$BA$4:$BA$54,'Antwort-Vorgaben'!$A$91)","v":0},{"$f":"COUNTIF(Fragebogen!$BA$4:$BA$54,'Antwort-Vorgaben'!$A$92)","v":0},{"$f":"COUNTIF(Fragebogen!$BA$4:$BA$54,'Antwort-Vorgaben'!$A$93)","v":0},{"$f":"COUNTIF(Fragebogen!$BA$4:$BA$54,'Antwort-Vorgaben'!$A$94)","v":0},{"$f":"COUNTIF(Fragebogen!$BA$4:$BA$54,'Antwort-Vorgaben'!$A$95)","v":0},{"$f":"COUNTIF(Fragebogen!$BA$4:$BA$54,'Antwort-Vorgaben'!$A$96)","v":0},{"$f":"SUM(C92:H92)","v":0}]
[{"$f":"Fragen!A68","v":52},{"$f":"Fragen!B68","v":"Wie oft haben Sie Schmerzen am Nacken und in der Schulter?"},{"$f":"COUNTIF(Fragebogen!$BB$4:$BB$54,'Antwort-Vorgaben'!$A$91)","v":0},{"$f":"COUNTIF(Fragebogen!$BB$4:$BB$54,'Antwort-Vorgaben'!$A$92)","v":0},{"$f":"COUNTIF(Fragebogen!$BB$4:$BB$54,'Antwort-Vorgaben'!$A$93)","v":0},{"$f":"COUNTIF(Fragebogen!$BB$4:$BB$54,'Antwort-Vorgaben'!$A$94)","v":0},{"$f":"COUNTIF(Fragebogen!$BB$4:$BB$54,'Antwort-Vorgaben'!$A$95)","v":0},{"$f":"COUNTIF(Fragebogen!$BB$4:$BB$54,'Antwort-Vorgaben'!$A$96)","v":0},{"$f":"SUM(C93:H93)","v":0}]
[{"$f":"Fragen!A69","v":53},{"$f":"Fragen!B69","v":"Wie oft haben Sie Schmerzen in den Armen und Händen?"},{"$f":"COUNTIF(Fragebogen!$BC$4:$BC$54,'Antwort-Vorgaben'!$A$91)","v":0},{"$f":"COUNTIF(Fragebogen!$BC$4:$BC$54,'Antwort-Vorgaben'!$A$92)","v":0},{"$f":"COUNTIF(Fragebogen!$BC$4:$BC$54,'Antwort-Vorgaben'!$A$93)","v":0},{"$f":"COUNTIF(Fragebogen!$BC$4:$BC$54,'Antwort-Vorgaben'!$A$94)","v":0},{"$f":"COUNTIF(Fragebogen!$BC$4:$BC$54,'Antwort-Vorgaben'!$A$95)","v":0},{"$f":"COUNTIF(Fragebogen!$BC$4:$BC$54,'Antwort-Vorgaben'!$A$96)","v":0},0]
[{"$f":"Fragen!A70","v":54},{"$f":"Fragen!B70","v":"Wie oft haben Sie Schmerzen in den Beinen und Füßen?"},{"$f":"COUNTIF(Fragebogen!$BD$4:$BD$54,'Antwort-Vorgaben'!$A$91)","v":0},{"$f":"COUNTIF(Fragebogen!$BD$4:$BD$54,'Antwort-Vorgaben'!$A$92)","v":0},{"$f":"COUNTIF(Fragebogen!$BD$4:$BD$54,'Antwort-Vorgaben'!$A$93)","v":0},{"$f":"COUNTIF(Fragebogen!$BD$4:$BD$54,'Antwort-Vorgaben'!$A$94)","v":0},{"$f":"COUNTIF(Fragebogen!$BD$4:$BD$54,'Antwort-Vorgaben'!$A$95)","v":0},{"$f":"COUNTIF(Fragebogen!$BD$4:$BD$54,'Antwort-Vorgaben'!$A$96)","v":0},0]
[{"$f":"Fragen!A71","v":55},{"$f":"Fragen!B71","v":"Wie oft sind Sie müde oder erschöpft?"},{"$f":"COUNTIF(Fragebogen!$BE$4:$BE$54,'Antwort-Vorgaben'!$A$91)","v":0},{"$f":"COUNTIF(Fragebogen!$BE$4:$BE$54,'Antwort-Vorgaben'!$A$92)","v":0},{"$f":"COUNTIF(Fragebogen!$BE$4:$BE$54,'Antwort-Vorgaben'!$A$93)","v":0},{"$f":"COUNTIF(Fragebogen!$BE$4:$BE$54,'Antwort-Vorgaben'!$A$94)","v":0},{"$f":"COUNTIF(Fragebogen!$BE$4:$BE$54,'Antwort-Vorgaben'!$A$95)","v":0},{"$f":"COUNTIF(Fragebogen!$BE$4:$BE$54,'Antwort-Vorgaben'!$A$96)","v":0},0]
[{"$f":"Fragen!A72","v":56},{"$f":"Fragen!B72","v":"Wie oft haben Sie Augen-Schmerzen?"},{"$f":"COUNTIF(Fragebogen!$BF$4:$BF$54,'Antwort-Vorgaben'!$A$91)","v":0},{"$f":"COUNTIF(Fragebogen!$BF$4:$BF$54,'Antwort-Vorgaben'!$A$92)","v":0},{"$f":"COUNTIF(Fragebogen!$BF$4:$BF$54,'Antwort-Vorgaben'!$A$93)","v":0},{"$f":"COUNTIF(Fragebogen!$BF$4:$BF$54,'Antwort-Vorgaben'!$A$94)","v":0},{"$f":"COUNTIF(Fragebogen!$BF$4:$BF$54,'Antwort-Vorgaben'!$A$95)","v":0},{"$f":"COUNTIF(Fragebogen!$BF$4:$BF$54,'Antwort-Vorgaben'!$A$96)","v":0},0]
[{"$f":"Fragen!A73","v":57},{"$f":"Fragen!B73","v":"Wie oft ist Ihnen schwindelig?"},{"$f":"COUNTIF(Fragebogen!$BG$4:$BG$54,'Antwort-Vorgaben'!$A$91)","v":0},{"$f":"COUNTIF(Fragebogen!$BG$4:$BG$54,'Antwort-Vorgaben'!$A$92)","v":0},{"$f":"COUNTIF(Fragebogen!$BG$4:$BG$54,'Antwort-Vorgaben'!$A$93)","v":0},{"$f":"COUNTIF(Fragebogen!$BG$4:$BG$54,'Antwort-Vorgaben'!$A$94)","v":0},{"$f":"COUNTIF(Fragebogen!$BG$4:$BG$54,'Antwort-Vorgaben'!$A$95)","v":0},{"$f":"COUNTIF(Fragebogen!$BG$4:$BG$54,'Antwort-Vorgaben'!$A$96)","v":0},0]
[]
[]
[{"$f":"Fragen!A75","v":"Fragen zum Thema Belastungen am Arbeits-Platz"}]
["Nr","Frage",{"$f":"'Antwort-Vorgaben'!A100","v":"immer"},{"$f":"'Antwort-Vorgaben'!A101","v":"oft"},{"$f":"'Antwort-Vorgaben'!A102","v":"selten"},{"$f":"'Antwort-Vorgaben'!A103","v":"nie"},{"$f":"'Antwort-Vorgaben'!A104","v":"weiß ich nicht"},{"$f":"'Antwort-Vorgaben'!A105","v":"keine Antwort"},"Summe"]
[{"$f":"Fragen!A76","v":58},{"$f":"Fragen!B76","v":"An meinem Arbeits-Platz ist es sehr laut"},{"$f":"COUNTIF(Fragebogen!$BH$4:$BH$54,'Antwort-Vorgaben'!$A$100)","v":0},{"$f":"COUNTIF(Fragebogen!$BH$4:$BH$54,'Antwort-Vorgaben'!$A$101)","v":0},{"$f":"COUNTIF(Fragebogen!$BH$4:$BH$54,'Antwort-Vorgaben'!$A$102)","v":0},{"$f":"COUNTIF(Fragebogen!$BH$4:$BH$54,'Antwort-Vorgaben'!$A$103)","v":0},{"$f":"COUNTIF(Fragebogen!$BH$4:$BH$54,'Antwort-Vorgaben'!$A$104)","v":0},{"$f":"COUNTIF(Fragebogen!$BH$4:$BH$54,'Antwort-Vorgaben'!$A$105)","v":0},{"$f":"SUM(C103:H103)","v":0}]
[{"$f":"Fragen!A77","v":59},{"$f":"Fragen!B77","v":"An meinem Arbeits-Platz ist es sehr heiß oder kalt"},{"$f":"COUNTIF(Fragebogen!$BI$4:$BI$54,'Antwort-Vorgaben'!$A$100)","v":0},{"$f":"COUNTIF(Fragebogen!$BI$4:$BI$54,'Antwort-Vorgaben'!$A$101)","v":0},{"$f":"COUNTIF(Fragebogen!$BI$4:$BI$54,'Antwort-Vorgaben'!$A$102)","v":0},{"$f":"COUNTIF(Fragebogen!$BI$4:$BI$54,'Antwort-Vorgaben'!$A$103)","v":0},{"$f":"COUNTIF(Fragebogen!$BI$4:$BI$54,'Antwort-Vorgaben'!$A$104)","v":0},{"$f":"COUNTIF(Fragebogen!$BI$4:$BI$54,'Antwort-Vorgaben'!$A$105)","v":0},{"$f":"SUM(C104:H104)","v":0}]
[{"$f":"Fragen!A78","v":60},{"$f":"Fragen!B78","v":"An meinem Arbeits-Platz ist es sehr staubig"},{"$f":"COUNTIF(Fragebogen!$BJ$4:$BJ$54,'Antwort-Vorgaben'!$A$100)","v":0},{"$f":"COUNTIF(Fragebogen!$BJ$4:$BJ$54,'Antwort-Vorgaben'!$A$101)","v":0},{"$f":"COUNTIF(Fragebogen!$BJ$4:$BJ$54,'Antwort-Vorgaben'!$A$102)","v":0},{"$f":"COUNTIF(Fragebogen!$BJ$4:$BJ$54,'Antwort-Vorgaben'!$A$103)","v":0},{"$f":"COUNTIF(Fragebogen!$BJ$4:$BJ$54,'Antwort-Vorgaben'!$A$104)","v":0},{"$f":"COUNTIF(Fragebogen!$BJ$4:$BJ$54,'Antwort-Vorgaben'!$A$105)","v":0},0]
[{"$f":"Fragen!A79","v":61},{"$f":"Fragen!B79","v":"An meinem Arbeits-Platz ist sehr schlechte Luft"},{"$f":"COUNTIF(Fragebogen!$BK$4:$BK$54,'Antwort-Vorgaben'!$A$100)","v":0},{"$f":"COUNTIF(Fragebogen!$BK$4:$BK$54,'Antwort-Vorgaben'!$A$101)","v":0},{"$f":"COUNTIF(Fragebogen!$BK$4:$BK$54,'Antwort-Vorgaben'!$A$102)","v":0},{"$f":"COUNTIF(Fragebogen!$BK$4:$BK$54,'Antwort-Vorgaben'!$A$103)","v":0},{"$f":"COUNTIF(Fragebogen!$BK$4:$BK$54,'Antwort-Vorgaben'!$A$104)","v":0},{"$f":"COUNTIF(Fragebogen!$BK$4:$BK$54,'Antwort-Vorgaben'!$A$105)","v":0},0]
[{"$f":"Fragen!A80","v":62},{"$f":"Fragen!B80","v":"An meinem Arbeits-Platz kann ich gut arbeiten"},{"$f":"COUNTIF(Fragebogen!$BL$4:$BL$54,'Antwort-Vorgaben'!$A$100)","v":0},{"$f":"COUNTIF(Fragebogen!$BL$4:$BL$54,'Antwort-Vorgaben'!$A$101)","v":0},{"$f":"COUNTIF(Fragebogen!$BL$4:$BL$54,'Antwort-Vorgaben'!$A$102)","v":0},{"$f":"COUNTIF(Fragebogen!$BL$4:$BL$54,'Antwort-Vorgaben'!$A$103)","v":0},{"$f":"COUNTIF(Fragebogen!$BL$4:$BL$54,'Antwort-Vorgaben'!$A$104)","v":0},{"$f":"COUNTIF(Fragebogen!$BL$4:$BL$54,'Antwort-Vorgaben'!$A$105)","v":0},0]
[]
[]
[{"$f":"Fragen!A82","v":"Fragen zum Thema Barriere-Freiheit"}]
["Nr","Frage",{"$f":"'Antwort-Vorgaben'!A109","v":"immer"},{"$f":"'Antwort-Vorgaben'!A110","v":"oft"},{"$f":"'Antwort-Vorgaben'!A111","v":"selten"},{"$f":"'Antwort-Vorgaben'!A112","v":"nie"},{"$f":"'Antwort-Vorgaben'!A113","v":"weiß ich nicht"},{"$f":"'Antwort-Vorgaben'!A114","v":"keine Antwort"},"Summe"]
[{"$f":"Fragen!A83","v":63},{"$f":"Fragen!B83","v":"Ich kann in der Arbeit überall gut alleine hinkommen"},{"$f":"COUNTIF(Fragebogen!$BM$4:$BM$54,'Antwort-Vorgaben'!$A$109)","v":0},{"$f":"COUNTIF(Fragebogen!$BM$4:$BM$54,'Antwort-Vorgaben'!$A$110)","v":0},{"$f":"COUNTIF(Fragebogen!$BM$4:$BM$54,'Antwort-Vorgaben'!$A$111)","v":0},{"$f":"COUNTIF(Fragebogen!$BM$4:$BM$54,'Antwort-Vorgaben'!$A$112)","v":0},{"$f":"COUNTIF(Fragebogen!$BM$4:$BM$54,'Antwort-Vorgaben'!$A$113)","v":0},{"$f":"COUNTIF(Fragebogen!$BM$4:$BM$54,'Antwort-Vorgaben'!$A$114)","v":0},{"$f":"SUM(C112:H112)","v":0}]
[{"$f":"Fragen!A84","v":64},{"$f":"Fragen!B84","v":"In der Arbeit kann ich alle wichtigen Dinge selbst gut erreichen (z.B. Lichtschalter oder Steckdosen)"},{"$f":"COUNTIF(Fragebogen!$BN$4:$BN$54,'Antwort-Vorgaben'!$A$109)","v":0},{"$f":"COUNTIF(Fragebogen!$BN$4:$BN$54,'Antwort-Vorgaben'!$A$110)","v":0},{"$f":"COUNTIF(Fragebogen!$BN$4:$BN$54,'Antwort-Vorgaben'!$A$111)","v":0},{"$f":"COUNTIF(Fragebogen!$BN$4:$BN$54,'Antwort-Vorgaben'!$A$112)","v":0},{"$f":"COUNTIF(Fragebogen!$BN$4:$BN$54,'Antwort-Vorgaben'!$A$113)","v":0},{"$f":"COUNTIF(Fragebogen!$BN$4:$BN$54,'Antwort-Vorgaben'!$A$114)","v":0},{"$f":"SUM(C113:H113)","v":0}]
[{"$f":"Fragen!A85","v":65},{"$f":"Fragen!B85","v":"Die Informationen die ich hier bekomme, kann ich gut verstehen"},{"$f":"COUNTIF(Fragebogen!$BO$4:$BO$54,'Antwort-Vorgaben'!$A$109)","v":0},{"$f":"COUNTIF(Fragebogen!$BO$4:$BO$54,'Antwort-Vorgaben'!$A$110)","v":0},{"$f":"COUNTIF(Fragebogen!$BO$4:$BO$54,'Antwort-Vorgaben'!$A$111)","v":0},{"$f":"COUNTIF(Fragebogen!$BO$4:$BO$54,'Antwort-Vorgaben'!$A$112)","v":0},{"$f":"COUNTIF(Fragebogen!$BO$4:$BO$54,'Antwort-Vorgaben'!$A$113)","v":0},{"$f":"COUNTIF(Fragebogen!$BO$4:$BO$54,'Antwort-Vorgaben'!$A$114)","v":0},0]
[{"$f":"Fragen!A86","v":66},{"$f":"Fragen!B86","v":"Wenn ich etwas nicht verstehe, dann wird mir das erklärt"},{"$f":"COUNTIF(Fragebogen!$BP$4:$BP$54,'Antwort-Vorgaben'!$A$109)","v":0},{"$f":"COUNTIF(Fragebogen!$BP$4:$BP$54,'Antwort-Vorgaben'!$A$110)","v":0},{"$f":"COUNTIF(Fragebogen!$BP$4:$BP$54,'Antwort-Vorgaben'!$A$111)","v":0},{"$f":"COUNTIF(Fragebogen!$BP$4:$BP$54,'Antwort-Vorgaben'!$A$112)","v":0},{"$f":"COUNTIF(Fragebogen!$BP$4:$BP$54,'Antwort-Vorgaben'!$A$113)","v":0},{"$f":"COUNTIF(Fragebogen!$BP$4:$BP$54,'Antwort-Vorgaben'!$A$114)","v":0},0]
[]
[]
[{"$f":"Fragen!A88","v":"Fragen zum Projekt Gesundheit inklusiv"}]
["Nr","Frage",{"$f":"'Antwort-Vorgaben'!A118","v":"ja"},{"$f":"'Antwort-Vorgaben'!A119","v":"teilweise"},{"$f":"'Antwort-Vorgaben'!A120","v":"nein"},{"$f":"'Antwort-Vorgaben'!A121","v":"weiß ich nicht"},{"$f":"'Antwort-Vorgaben'!A122","v":"keine Antwort"},"Summe"]
[{"$f":"Fragen!A89","v":67},{"$f":"Fragen!B89","v":"Ich bin über das Projekt Gesundheit inklusiv gut informiert worden"},{"$f":"COUNTIF(Fragebogen!$BQ$4:$BQ$54,'Antwort-Vorgaben'!$A$118)","v":0},{"$f":"COUNTIF(Fragebogen!$BQ$4:$BQ$54,'Antwort-Vorgaben'!$A$119)","v":0},{"$f":"COUNTIF(Fragebogen!$BQ$4:$BQ$54,'Antwort-Vorgaben'!$A$120)","v":0},{"$f":"COUNTIF(Fragebogen!$BQ$4:$BQ$54,'Antwort-Vorgaben'!$A$121)","v":0},{"$f":"COUNTIF(Fragebogen!$BQ$4:$BQ$54,'Antwort-Vorgaben'!$A$122)","v":0},{"$f":"SUM(C120:G120)","v":0}]
[{"$f":"Fragen!A90","v":68},{"$f":"Fragen!B90","v":"Ich habe beim Projekt Gesundheit inklusiv mitbestimmen können"},{"$f":"COUNTIF(Fragebogen!$BR$4:$BR$54,'Antwort-Vorgaben'!$A$118)","v":0},{"$f":"COUNTIF(Fragebogen!$BR$4:$BR$54,'Antwort-Vorgaben'!$A$119)","v":0},{"$f":"COUNTIF(Fragebogen!$BR$4:$BR$54,'Antwort-Vorgaben'!$A$120)","v":0},{"$f":"COUNTIF(Fragebogen!$BR$4:$BR$54,'Antwort-Vorgaben'!$A$121)","v":0},{"$f":"COUNTIF(Fragebogen!$BR$4:$BR$54,'Antwort-Vorgaben'!$A$122)","v":0},{"$f":"SUM(C121:G121)","v":0}]
[{"$f":"Fragen!A91","v":69},{"$f":"Fragen!B91","v":"Wegen dem Projekt Gesundheit inklusiv hat sich in der Arbeit etwas verbessert"},{"$f":"COUNTIF(Fragebogen!$BS$4:$BS$54,'Antwort-Vorgaben'!$A$118)","v":0},{"$f":"COUNTIF(Fragebogen!$BS$4:$BS$54,'Antwort-Vorgaben'!$A$119)","v":0},{"$f":"COUNTIF(Fragebogen!$BS$4:$BS$54,'Antwort-Vorgaben'!$A$120)","v":0},{"$f":"COUNTIF(Fragebogen!$BS$4:$BS$54,'Antwort-Vorgaben'!$A$121)","v":0},{"$f":"COUNTIF(Fragebogen!$BS$4:$BS$54,'Antwort-Vorgaben'!$A$122)","v":0},{"$f":"SUM(C122:G122)","v":0}]
["Nr","Frage","Antwort","keine Antwort",null,null,null,"Summe"]
[{"$f":"Fragen!A92","v":"69a"},{"$f":"Fragen!B92","v":"Was hat sich wegen dem Projekt in der Arbeit verbessert?"},{"$f":"COUNTA(Fragebogen!$BT$4:$BT$54)","v":0},{"$f":"COUNTA(Fragebogen!$A$4:$A$54)-C124","v":0},null,null,null,{"$f":"SUM(C124:D124)","v":0}]
[{"$f":"Fragen!A93","v":70},{"$f":"Fragen!B93","v":"Das hat mir beim Projekt Gesundheit inklusiv besonders gut gefallen"},{"$f":"COUNTA(Fragebogen!$BU$4:$BU$54)","v":0},{"$f":"COUNTA(Fragebogen!$A$4:$A$54)-C125","v":0},null,null,null,{"$f":"SUM(C125:D125)","v":0}]
[{"$f":"Fragen!A94","v":71},{"$f":"Fragen!B94","v":"Das kann man beim Projekt Gesundheit inklusiv noch besser machen"},{"$f":"COUNTA(Fragebogen!$BV$4:$BV$54)","v":0},{"$f":"COUNTA(Fragebogen!$A$4:$A$54)-C126","v":0},null,null,null,{"$f":"SUM(C126:D126)","v":0}]
[]
[]
[{"$f":"Fragen!A96","v":"Persönliche Daten"}]
["Nr","Frage",{"$f":"'Antwort-Vorgaben'!A127","v":"unter 18"},{"$f":"'Antwort-Vorgaben'!A128","v":"18 bis 25"},{"$f":"'Antwort-Vorgaben'!A129","v":"26 bis 29"},{"$f":"'Antwort-Vorgaben'!A130","v":"30 bis 39"},{"$f":"'Antwort-Vorgaben'!A131","v":"40 bis 49"},{"$f":"'Antwort-Vorgaben'!A132","v":"50 bis 59"},{"$f":"'Antwort-Vorgaben'!A133","v":"60 und älter"},{"$f":"'Antwort-Vorgaben'!A134","v":"keine Antwort"},"Summe"]
[{"$f":"Fragen!A97","v":72},{"$f":"Fragen!B97","v":"Alter:"},{"$f":"COUNTIF(Fragebogen!$BW$4:$BW54,'Antwort-Vorgaben'!$A$127)","v":0},{"$f":"COUNTIF(Fragebogen!$BW$4:$BW54,'Antwort-Vorgaben'!$A$128)","v":0},{"$f":"COUNTIF(Fragebogen!$BW$4:$BW54,'Antwort-Vorgaben'!$A$129)","v":0},{"$f":"COUNTIF(Fragebogen!$BW$4:$BW54,'Antwort-Vorgaben'!$A$130)","v":0},{"$f":"COUNTIF(Fragebogen!$BW$4:$BW54,'Antwort-Vorgaben'!$A$131)","v":0},{"$f":"COUNTIF(Fragebogen!$BW$4:$BW54,'Antwort-Vorgaben'!$A$132)","v":0},{"$f":"COUNTIF(Fragebogen!$BW$4:$BW54,'Antwort-Vorgaben'!$A$133)","v":0},{"$f":"COUNTIF(Fragebogen!$BW$4:$BW54,'Antwort-Vorgaben'!$A$134)","v":0},{"$f":"SUM(C131:J131)","v":0}]
[]
["Nr","Frage",{"$f":"'Antwort-Vorgaben'!A136","v":"Frau"},{"$f":"'Antwort-Vorgaben'!A137","v":"Mann"},{"$f":"'Antwort-Vorgaben'!A138","v":"keine Antwort"},null,null,null,null,null,"Summe"]
[{"$f":"Fragen!A98","v":73},{"$f":"Fragen!B98","v":"Geschlecht:"},{"$f":"COUNTIF(Fragebogen!$BX$4:$BX$54,'Antwort-Vorgaben'!$A$136)","v":0},{"$f":"COUNTIF(Fragebogen!$BX$4:$BX$54,'Antwort-Vorgaben'!$A$137)","v":0},{"$f":"COUNTIF(Fragebogen!$BX$4:$BX$54,'Antwort-Vorgaben'!$A$138)","v":0},null,null,null,null,null,{"$f":"SUM(C134:J134)","v":0}]
[]
["Nr","Frage",{"$f":"'Antwort-Vorgaben'!A140","v":"weniger als \n1 Jahr"},{"$f":"'Antwort-Vorgaben'!A141","v":"1 bis 5 \nJahre"},{"$f":"'Antwort-Vorgaben'!A142","v":"6 bis 10 \nJahre"},{"$f":"'Antwort-Vorgaben'!A143","v":"mehr als 10 Jahre"},{"$f":"'Antwort-Vorgaben'!A144","v":"weiß ich nicht"},{"$f":"'Antwort-Vorgaben'!A145","v":"keine Antwort"},null,null,"Summe"]
[{"$f":"Fragen!A99","v":74},{"$f":"Fragen!B99","v":"Wie lange arbeiten Sie schon hier?"},{"$f":"COUNTIF(Fragebogen!$BY$4:$BY54,'Antwort-Vorgaben'!$A$140)","v":0},{"$f":"COUNTIF(Fragebogen!$BY$4:$BY54,'Antwort-Vorgaben'!$A$141)","v":0},{"$f":"COUNTIF(Fragebogen!$BY$4:$BY54,'Antwort-Vorgaben'!$A$142)","v":0},{"$f":"COUNTIF(Fragebogen!$BY$4:$BY54,'Antwort-Vorgaben'!$A$143)","v":0},{"$f":"COUNTIF(Fragebogen!$BY$4:$BY54,'Antwort-Vorgaben'!$A$144)","v":0},{"$f":"COUNTIF(Fragebogen!$BY$4:$BY54,'Antwort-Vorgaben'!$A$145)","v":0},null,null,{"$f":"SUM(C137:J137)","v":0}]
[]
["Nr","Frage",{"$f":"'Antwort-Vorgaben'!A147","v":"1 Tag"},{"$f":"'Antwort-Vorgaben'!A148","v":"2 Tage"},{"$f":"'Antwort-Vorgaben'!A149","v":"3 Tage"},{"$f":"'Antwort-Vorgaben'!A150","v":"4 Tage"},{"$f":"'Antwort-Vorgaben'!A151","v":"5 Tage"},{"$f":"'Antwort-Vorgaben'!A152","v":"6 Tage"},{"$f":"'Antwort-Vorgaben'!A153","v":"7 Tage"},{"$f":"'Antwort-Vorgaben'!A154","v":"keine Antwort"},"Summe"]
[{"$f":"Fragen!A100","v":75},{"$f":"Fragen!B100","v":"Wie viele Tage in der Woche arbeiten Sie?"},{"$f":"COUNTIF(Fragebogen!$BZ$4:$BZ$54,'Antwort-Vorgaben'!$A$147)","v":0},{"$f":"COUNTIF(Fragebogen!$BZ$4:$BZ$54,'Antwort-Vorgaben'!$A$148)","v":0},{"$f":"COUNTIF(Fragebogen!$BZ$4:$BZ$54,'Antwort-Vorgaben'!$A$149)","v":0},{"$f":"COUNTIF(Fragebogen!$BZ$4:$BZ$54,'Antwort-Vorgaben'!$A$150)","v":0},{"$f":"COUNTIF(Fragebogen!$BZ$4:$BZ$54,'Antwort-Vorgaben'!$A$151)","v":0},{"$f":"COUNTIF(Fragebogen!$BZ$4:$BZ$54,'Antwort-Vorgaben'!$A$152)","v":0},{"$f":"COUNTIF(Fragebogen!$BZ$4:$BZ$54,'Antwort-Vorgaben'!$A$153)","v":0},{"$f":"COUNTIF(Fragebogen!$BZ$4:$BZ$54,'Antwort-Vorgaben'!$A$154)","v":0},{"$f":"SUM(C140:J140)","v":0}]
[]
["Nr","Frage",{"$f":"'Antwort-Vorgaben'!A156","v":"einen ganzen Tag"},{"$f":"'Antwort-Vorgaben'!A157","v":"einen halben Tag"},{"$f":"'Antwort-Vorgaben'!A158","v":"weiß ich nicht"},{"$f":"'Antwort-Vorgaben'!A159","v":"keine Antwort"},null,null,null,null,"Summe"]
[{"$f":"Fragen!A101","v":76},{"$f":"Fragen!B101","v":"Wie viel arbeiten Sie an einem Arbeits-Tag?"},{"$f":"COUNTIF(Fragebogen!$CA$4:$CA$54,'Antwort-Vorgaben'!$A$156)","v":0},{"$f":"COUNTIF(Fragebogen!$CA$4:$CA$54,'Antwort-Vorgaben'!$A$157)","v":0},{"$f":"COUNTIF(Fragebogen!$CA$4:$CA$54,'Antwort-Vorgaben'!$A$158)","v":0},{"$f":"COUNTIF(Fragebogen!$CA$4:$CA$54,'Antwort-Vorgaben'!$A$159)","v":0},null,null,null,null,{"$f":"SUM(C143:J143)","v":0}]

{"sheet":"A1","index":5,"n_rows":10,"n_cols":3,"rows_kept":10,"cut":false,"hidden":false,"merged":[]}
[{"$f":"Fragen!$B$4","v":"Meine Arbeit gefällt mir"}]
[]
["Werte","Anzahl absolut","Anzahl in Prozent"]
[{"$f":"'Antwort-Vorgaben'!A5","v":"immer"},{"$f":"COUNTIF(Fragebogen!$B$4:$B$54,A4)","v":0},{"$f":"IF(B4>0,B4/$B$10,0)","v":0}]
[{"$f":"'Antwort-Vorgaben'!A6","v":"oft"},{"$f":"COUNTIF(Fragebogen!$B$4:$B$54,A5)","v":0},{"$f":"IF(B5>0,B5/$B$10,0)","v":0}]
[{"$f":"'Antwort-Vorgaben'!A7","v":"selten"},{"$f":"COUNTIF(Fragebogen!$B$4:$B$54,A6)","v":0},0]
[{"$f":"'Antwort-Vorgaben'!A8","v":"nie"},{"$f":"COUNTIF(Fragebogen!$B$4:$B$54,A7)","v":0},0]
[{"$f":"'Antwort-Vorgaben'!A9","v":"weiß ich nicht"},{"$f":"COUNTIF(Fragebogen!$B$4:$B$54,A8)","v":0},0]
[{"$f":"'Antwort-Vorgaben'!A10","v":"keine Antwort"},{"$f":"COUNTIF(Fragebogen!$B$4:$B$54,A9)","v":0},0]
["Summe",{"$f":"SUM(B4:B9)","v":0},{"$f":"SUM(C4:C9)","v":0}]

{"sheet":"A2","index":6,"n_rows":10,"n_cols":3,"rows_kept":10,"cut":false,"hidden":false,"merged":[]}
[{"$f":"Fragen!$B$5","v":"Meine Arbeit ist interessant"}]
[]
["Werte","Anzahl absolut","Anzahl in Prozent"]
[{"$f":"'Antwort-Vorgaben'!A5","v":"immer"},{"$f":"COUNTIF(Fragebogen!$C$4:$C$54,A4)","v":0},{"$f":"IF(B4>0,B4/$B$10,0)","v":0}]
[{"$f":"'Antwort-Vorgaben'!A6","v":"oft"},{"$f":"COUNTIF(Fragebogen!$C$4:$C$54,A5)","v":0},{"$f":"IF(B5>0,B5/$B$10,0)","v":0}]
[{"$f":"'Antwort-Vorgaben'!A7","v":"selten"},{"$f":"COUNTIF(Fragebogen!$C$4:$C$54,A6)","v":0},0]
[{"$f":"'Antwort-Vorgaben'!A8","v":"nie"},{"$f":"COUNTIF(Fragebogen!$C$4:$C$54,A7)","v":0},0]
[{"$f":"'Antwort-Vorgaben'!A9","v":"weiß ich nicht"},{"$f":"COUNTIF(Fragebogen!$C$4:$C$54,A8)","v":0},0]
[{"$f":"'Antwort-Vorgaben'!A10","v":"keine Antwort"},{"$f":"COUNTIF(Fragebogen!$C$4:$C$54,A9)","v":0},0]
["Summe",{"$f":"SUM(B4:B9)","v":0},{"$f":"SUM(C4:C9)","v":0}]

{"sheet":"A3","index":7,"n_rows":10,"n_cols":3,"rows_kept":10,"cut":false,"hidden":false,"merged":[]}
[{"$f":"Fragen!$B$6","v":"Bei der Arbeit kann ich etwas Neues dazulernen"}]
[]
["Werte","Anzahl absolut","Anzahl in Prozent"]
[{"$f":"'Antwort-Vorgaben'!A5","v":"immer"},{"$f":"COUNTIF(Fragebogen!$D$4:$D$54,A4)","v":0},{"$f":"IF(B4>0,B4/$B$10,0)","v":0}]
[{"$f":"'Antwort-Vorgaben'!A6","v":"oft"},{"$f":"COUNTIF(Fragebogen!$D$4:$D$54,A5)","v":0},{"$f":"IF(B5>0,B5/$B$10,0)","v":0}]
[{"$f":"'Antwort-Vorgaben'!A7","v":"selten"},{"$f":"COUNTIF(Fragebogen!$D$4:$D$54,A6)","v":0},0]
[{"$f":"'Antwort-Vorgaben'!A8","v":"nie"},{"$f":"COUNTIF(Fragebogen!$D$4:$D$54,A7)","v":0},0]
[{"$f":"'Antwort-Vorgaben'!A9","v":"weiß ich nicht"},{"$f":"COUNTIF(Fragebogen!$D$4:$D$54,A8)","v":0},0]
[{"$f":"'Antwort-Vorgaben'!A10","v":"keine Antwort"},{"$f":"COUNTIF(Fragebogen!$D$4:$D$54,A9)","v":0},0]
["Summe",{"$f":"SUM(B4:B9)","v":0},{"$f":"SUM(C4:C9)","v":0}]

{"sheet":"A4","index":8,"n_rows":10,"n_cols":3,"rows_kept":10,"cut":false,"hidden":false,"merged":[]}
[{"$f":"Fragen!$B$7","v":"Bei wichtigen Dingen in der Arbeit kann ich mitbestimmen"}]
[]
["Werte","Anzahl absolut","Anzahl in Prozent"]
[{"$f":"'Antwort-Vorgaben'!A5","v":"immer"},{"$f":"COUNTIF(Fragebogen!$E$4:$E$54,A4)","v":0},{"$f":"IF(B4>0,B4/$B$10,0)","v":0}]
[{"$f":"'Antwort-Vorgaben'!A6","v":"oft"},{"$f":"COUNTIF(Fragebogen!$E$4:$E$54,A5)","v":0},{"$f":"IF(B5>0,B5/$B$10,0)","v":0}]
[{"$f":"'Antwort-Vorgaben'!A7","v":"selten"},{"$f":"COUNTIF(Fragebogen!$E$4:$E$54,A6)","v":0},0]
[{"$f":"'Antwort-Vorgaben'!A8","v":"nie"},{"$f":"COUNTIF(Fragebogen!$E$4:$E$54,A7)","v":0},0]
[{"$f":"'Antwort-Vorgaben'!A9","v":"weiß ich nicht"},{"$f":"COUNTIF(Fragebogen!$E$4:$E$54,A8)","v":0},0]
[{"$f":"'Antwort-Vorgaben'!A10","v":"keine Antwort"},{"$f":"COUNTIF(Fragebogen!$E$4:$E$54,A9)","v":0},0]
["Summe",{"$f":"SUM(B4:B9)","v":0},{"$f":"SUM(C4:C9)","v":0}]

{"sheet":"A5","index":9,"n_rows":10,"n_cols":3,"rows_kept":10,"cut":false,"hidden":false,"merged":[]}
[{"$f":"Fragen!$B$8","v":"Ich kann selbst entscheiden, in welcher Reihenfolge ich meine Arbeit mache"}]
[]
["Werte","Anzahl absolut","Anzahl in Prozent"]
[{"$f":"'Antwort-Vorgaben'!A5","v":"immer"},{"$f":"COUNTIF(Fragebogen!$F$4:$F$54,A4)","v":0},{"$f":"IF(B4>0,B4/$B$10,0)","v":0}]
[{"$f":"'Antwort-Vorgaben'!A6","v":"oft"},{"$f":"COUNTIF(Fragebogen!$F$4:$F$54,A5)","v":0},{"$f":"IF(B5>0,B5/$B$10,0)","v":0}]
[{"$f":"'Antwort-Vorgaben'!A7","v":"selten"},{"$f":"COUNTIF(Fragebogen!$F$4:$F$54,A6)","v":0},0]
[{"$f":"'Antwort-Vorgaben'!A8","v":"nie"},{"$f":"COUNTIF(Fragebogen!$F$4:$F$54,A7)","v":0},0]
[{"$f":"'Antwort-Vorgaben'!A9","v":"weiß ich nicht"},{"$f":"COUNTIF(Fragebogen!$F$4:$F$54,A8)","v":0},0]
[{"$f":"'Antwort-Vorgaben'!A10","v":"keine Antwort"},{"$f":"COUNTIF(Fragebogen!$F$4:$F$54,A9)","v":0},0]
["Summe",{"$f":"SUM(B4:B9)","v":0},{"$f":"SUM(C4:C9)","v":0}]

{"sheet":"A6","index":10,"n_rows":10,"n_cols":3,"rows_kept":10,"cut":false,"hidden":false,"merged":[]}
[{"$f":"Fragen!$B$9","v":"Ich kann selbst entscheiden, wie ich meine Arbeit mache"}]
[]
["Werte","Anzahl absolut","Anzahl in Prozent"]
[{"$f":"'Antwort-Vorgaben'!A5","v":"immer"},{"$f":"COUNTIF(Fragebogen!$G$4:$G$54,A4)","v":0},{"$f":"IF(B4>0,B4/$B$10,0)","v":0}]
[{"$f":"'Antwort-Vorgaben'!A6","v":"oft"},{"$f":"COUNTIF(Fragebogen!$G$4:$G$54,A5)","v":0},{"$f":"IF(B5>0,B5/$B$10,0)","v":0}]
[{"$f":"'Antwort-Vorgaben'!A7","v":"selten"},{"$f":"COUNTIF(Fragebogen!$G$4:$G$54,A6)","v":0},0]
[{"$f":"'Antwort-Vorgaben'!A8","v":"nie"},{"$f":"COUNTIF(Fragebogen!$G$4:$G$54,A7)","v":0},0]
[{"$f":"'Antwort-Vorgaben'!A9","v":"weiß ich nicht"},{"$f":"COUNTIF(Fragebogen!$G$4:$G$54,A8)","v":0},0]
[{"$f":"'Antwort-Vorgaben'!A10","v":"keine Antwort"},{"$f":"COUNTIF(Fragebogen!$G$4:$G$54,A9)","v":0},0]
["Summe",{"$f":"SUM(B4:B9)","v":0},{"$f":"SUM(C4:C9)","v":0}]

{"sheet":"A7","index":11,"n_rows":10,"n_cols":3,"rows_kept":10,"cut":false,"hidden":false,"merged":[]}
[{"$f":"Fragen!$B$10","v":"Meine Arbeit ist wichtig"}]
[]
["Werte","Anzahl absolut","Anzahl in Prozent"]
[{"$f":"'Antwort-Vorgaben'!A5","v":"immer"},{"$f":"COUNTIF(Fragebogen!$H$4:$H$54,A4)","v":0},{"$f":"IF(B4>0,B4/$B$10,0)","v":0}]
[{"$f":"'Antwort-Vorgaben'!A6","v":"oft"},{"$f":"COUNTIF(Fragebogen!$H$4:$H$54,A5)","v":0},{"$f":"IF(B5>0,B5/$B$10,0)","v":0}]
[{"$f":"'Antwort-Vorgaben'!A7","v":"selten"},{"$f":"COUNTIF(Fragebogen!$H$4:$H$54,A6)","v":0},0]
[{"$f":"'Antwort-Vorgaben'!A8","v":"nie"},{"$f":"COUNTIF(Fragebogen!$H$4:$H$54,A7)","v":0},0]
[{"$f":"'Antwort-Vorgaben'!A9","v":"weiß ich nicht"},{"$f":"COUNTIF(Fragebogen!$H$4:$H$54,A8)","v":0},0]
[{"$f":"'Antwort-Vorgaben'!A10","v":"keine Antwort"},{"$f":"COUNTIF(Fragebogen!$H$4:$H$54,A9)","v":0},0]
["Summe",{"$f":"SUM(B4:B9)","v":0},{"$f":"SUM(C4:C9)","v":0}]

{"sheet":"A8","index":12,"n_rows":10,"n_cols":3,"rows_kept":10,"cut":false,"hidden":false,"merged":[]}
[{"$f":"Fragen!$B$11","v":"Ich weiß wofür meine Arbeit gut ist"}]
[]
["Werte","Anzahl absolut","Anzahl in Prozent"]
[{"$f":"'Antwort-Vorgaben'!A5","v":"immer"},{"$f":"COUNTIF(Fragebogen!$I$4:$I$54,A4)","v":0},{"$f":"IF(B4>0,B4/$B$10,0)","v":0}]
[{"$f":"'Antwort-Vorgaben'!A6","v":"oft"},{"$f":"COUNTIF(Fragebogen!$I$4:$I$54,A5)","v":0},{"$f":"IF(B5>0,B5/$B$10,0)","v":0}]
[{"$f":"'Antwort-Vorgaben'!A7","v":"selten"},{"$f":"COUNTIF(Fragebogen!$I$4:$I$54,A6)","v":0},0]
[{"$f":"'Antwort-Vorgaben'!A8","v":"nie"},{"$f":"COUNTIF(Fragebogen!$I$4:$I$54,A7)","v":0},0]
[{"$f":"'Antwort-Vorgaben'!A9","v":"weiß ich nicht"},{"$f":"COUNTIF(Fragebogen!$I$4:$I$54,A8)","v":0},0]
[{"$f":"'Antwort-Vorgaben'!A10","v":"keine Antwort"},{"$f":"COUNTIF(Fragebogen!$I$4:$I$54,A9)","v":0},0]
["Summe",{"$f":"SUM(B4:B9)","v":0},{"$f":"SUM(C4:C9)","v":0}]

{"sheet":"A9","index":13,"n_rows":10,"n_cols":3,"rows_kept":10,"cut":false,"hidden":false,"merged":[]}
[{"$f":"Fragen!$B$12","v":"Ich kann schwierige Aufgaben in der Arbeit lösen"}]
[]
["Werte","Anzahl absolut","Anzahl in Prozent"]
[{"$f":"'Antwort-Vorgaben'!A5","v":"immer"},{"$f":"COUNTIF(Fragebogen!$J$4:$J$54,A4)","v":0},{"$f":"IF(B4>0,B4/$B$10,0)","v":0}]
[{"$f":"'Antwort-Vorgaben'!A6","v":"oft"},{"$f":"COUNTIF(Fragebogen!$J$4:$J$54,A5)","v":0},{"$f":"IF(B5>0,B5/$B$10,0)","v":0}]
[{"$f":"'Antwort-Vorgaben'!A7","v":"selten"},{"$f":"COUNTIF(Fragebogen!$J$4:$J$54,A6)","v":0},0]
[{"$f":"'Antwort-Vorgaben'!A8","v":"nie"},{"$f":"COUNTIF(Fragebogen!$J$4:$J$54,A7)","v":0},0]
[{"$f":"'Antwort-Vorgaben'!A9","v":"weiß ich nicht"},{"$f":"COUNTIF(Fragebogen!$J$4:$J$54,A8)","v":0},0]
[{"$f":"'Antwort-Vorgaben'!A10","v":"keine Antwort"},{"$f":"COUNTIF(Fragebogen!$J$4:$J$54,A9)","v":0},0]
["Summe",{"$f":"SUM(B4:B9)","v":0},{"$f":"SUM(C4:C9)","v":0}]

{"sheet":"A10","index":14,"n_rows":10,"n_cols":3,"rows_kept":10,"cut":false,"hidden":false,"merged":[]}
[{"$f":"Fragen!$B$15","v":"In der Arbeit sagen meine Vorgesetzten oder Betreuer ganz genau was zu tun ist"}]
[]
["Werte","Anzahl absolut","Anzahl in Prozent"]
[{"$f":"'Antwort-Vorgaben'!A14","v":"immer"},{"$f":"COUNTIF(Fragebogen!$K$4:$K$54,A4)","v":0},{"$f":"IF(B4>0,B4/$B$10,0)","v":0}]
[{"$f":"'Antwort-Vorgaben'!A15","v":"oft"},{"$f":"COUNTIF(Fragebogen!$K$4:$K$54,A5)","v":0},{"$f":"IF(B5>0,B5/$B$10,0)","v":0}]
[{"$f":"'Antwort-Vorgaben'!A16","v":"selten"},{"$f":"COUNTIF(Fragebogen!$K$4:$K$54,A6)","v":0},0]
[{"$f":"'Antwort-Vorgaben'!A17","v":"nie"},{"$f":"COUNTIF(Fragebogen!$K$4:$K$54,A7)","v":0},0]
[{"$f":"'Antwort-Vorgaben'!A18","v":"weiß ich nicht"},{"$f":"COUNTIF(Fragebogen!$K$4:$K$54,A8)","v":0},0]
[{"$f":"'Antwort-Vorgaben'!A19","v":"keine Antwort"},{"$f":"COUNTIF(Fragebogen!$K$4:$K$54,A9)","v":0},0]
["Summe",{"$f":"SUM(B4:B9)","v":0},{"$f":"SUM(C4:C9)","v":0}]

{"sheet":"A11","index":15,"n_rows":10,"n_cols":3,"rows_kept":10,"cut":false,"hidden":false,"merged":[]}
[{"$f":"Fragen!$B$16","v":"Ich kann meinen Vorgesetzten oder Betreuern vertrauen"}]
[]
["Werte","Anzahl absolut","Anzahl in Prozent"]
[{"$f":"'Antwort-Vorgaben'!A14","v":"immer"},{"$f":"COUNTIF(Fragebogen!$L$4:$L$54,A4)","v":0},{"$f":"IF(B4>0,B4/$B$10,0)","v":0}]
[{"$f":"'Antwort-Vorgaben'!A15","v":"oft"},{"$f":"COUNTIF(Fragebogen!$L$4:$L$54,A5)","v":0},{"$f":"IF(B5>0,B5/$B$10,0)","v":0}]
[{"$f":"'Antwort-Vorgaben'!A16","v":"selten"},{"$f":"COUNTIF(Fragebogen!$L$4:$L$54,A6)","v":0},0]
[{"$f":"'Antwort-Vorgaben'!A17","v":"nie"},{"$f":"COUNTIF(Fragebogen!$L$4:$L$54,A7)","v":0},0]
[{"$f":"'Antwort-Vorgaben'!A18","v":"weiß ich nicht"},{"$f":"COUNTIF(Fragebogen!$L$4:$L$54,A8)","v":0},0]
[{"$f":"'Antwort-Vorgaben'!A19","v":"keine Antwort"},{"$f":"COUNTIF(Fragebogen!$L$4:$L$54,A9)","v":0},0]
["Summe",{"$f":"SUM(B4:B9)","v":0},{"$f":"SUM(C4:C9)","v":0}]

{"sheet":"A12","index":16,"n_rows":10,"n_cols":3,"rows_kept":10,"cut":false,"hidden":false,"merged":[]}
[{"$f":"Fragen!$B$17","v":"Meine Vorgesetzten oder Betreuer unterstützen mich bei der Arbeit"}]
[]
["Werte","Anzahl absolut","Anzahl in Prozent"]
[{"$f":"'Antwort-Vorgaben'!A14","v":"immer"},{"$f":"COUNTIF(Fragebogen!$M$4:$M$54,A4)","v":0},{"$f":"IF(B4>0,B4/$B$10,0)","v":0}]
[{"$f":"'Antwort-Vorgaben'!A15","v":"oft"},{"$f":"COUNTIF(Fragebogen!$M$4:$M$54,A5)","v":0},{"$f":"IF(B5>0,B5/$B$10,0)","v":0}]
[{"$f":"'Antwort-Vorgaben'!A16","v":"selten"},{"$f":"COUNTIF(Fragebogen!$M$4:$M$54,A6)","v":0},0]
[{"$f":"'Antwort-Vorgaben'!A17","v":"nie"},{"$f":"COUNTIF(Fragebogen!$M$4:$M$54,A7)","v":0},0]
[{"$f":"'Antwort-Vorgaben'!A18","v":"weiß ich nicht"},{"$f":"COUNTIF(Fragebogen!$M$4:$M$54,A8)","v":0},0]
[{"$f":"'Antwort-Vorgaben'!A19","v":"keine Antwort"},{"$f":"COUNTIF(Fragebogen!$M$4:$M$54,A9)","v":0},0]
["Summe",{"$f":"SUM(B4:B9)","v":0},{"$f":"SUM(C4:C9)","v":0}]

{"sheet":"A13","index":17,"n_rows":10,"n_cols":3,"rows_kept":10,"cut":false,"hidden":false,"merged":[]}
[{"$f":"Fragen!$B$18","v":"Meine Vorgesetzten oder Betreuer sagen mir, ob ich etwas gut gemacht habe"}]
[]
["Werte","Anzahl absolut","Anzahl in Prozent"]
[{"$f":"'Antwort-Vorgaben'!A14","v":"immer"},{"$f":"COUNTIF(Fragebogen!$N$4:$N$54,A4)","v":0},{"$f":"IF(B4>0,B4/$B$10,0)","v":0}]
[{"$f":"'Antwort-Vorgaben'!A15","v":"oft"},{"$f":"COUNTIF(Fragebogen!$N$4:$N$54,A5)","v":0},{"$f":"IF(B5>0,B5/$B$10,0)","v":0}]
[{"$f":"'Antwort-Vorgaben'!A16","v":"selten"},{"$f":"COUNTIF(Fragebogen!$N$4:$N$54,A6)","v":0},0]
[{"$f":"'Antwort-Vorgaben'!A17","v":"nie"},{"$f":"COUNTIF(Fragebogen!$N$4:$N$54,A7)","v":0},0]
[{"$f":"'Antwort-Vorgaben'!A18","v":"weiß ich nicht"},{"$f":"COUNTIF(Fragebogen!$N$4:$N$54,A8)","v":0},0]
[{"$f":"'Antwort-Vorgaben'!A19","v":"keine Antwort"},{"$f":"COUNTIF(Fragebogen!$N$4:$N$54,A9)","v":0},0]
["Summe",{"$f":"SUM(B4:B9)","v":0},{"$f":"SUM(C4:C9)","v":0}]

{"sheet":"A14","index":18,"n_rows":10,"n_cols":3,"rows_kept":10,"cut":false,"hidden":false,"merged":[]}
[{"$f":"Fragen!$B$19","v":"Meine Vorgesetzten oder Betreuer sagen mir auch, wenn ich etwas nicht so gut gemacht habe"}]
[]
["Werte","Anzahl absolut","Anzahl in Prozent"]
[{"$f":"'Antwort-Vorgaben'!A14","v":"immer"},{"$f":"COUNTIF(Fragebogen!$O$4:$O$54,A4)","v":0},{"$f":"IF(B4>0,B4/$B$10,0)","v":0}]
[{"$f":"'Antwort-Vorgaben'!A15","v":"oft"},{"$f":"COUNTIF(Fragebogen!$O$4:$O$54,A5)","v":0},{"$f":"IF(B5>0,B5/$B$10,0)","v":0}]
[{"$f":"'Antwort-Vorgaben'!A16","v":"selten"},{"$f":"COUNTIF(Fragebogen!$O$4:$O$54,A6)","v":0},0]
[{"$f":"'Antwort-Vorgaben'!A17","v":"nie"},{"$f":"COUNTIF(Fragebogen!$O$4:$O$54,A7)","v":0},0]
[{"$f":"'Antwort-Vorgaben'!A18","v":"weiß ich nicht"},{"$f":"COUNTIF(Fragebogen!$O$4:$O$54,A8)","v":0},0]
[{"$f":"'Antwort-Vorgaben'!A19","v":"keine Antwort"},{"$f":"COUNTIF(Fragebogen!$O$4:$O$54,A9)","v":0},0]
["Summe",{"$f":"SUM(B4:B9)","v":0},{"$f":"SUM(C4:C9)","v":0}]

{"sheet":"A15","index":19,"n_rows":10,"n_cols":3,"rows_kept":10,"cut":false,"hidden":false,"merged":[]}
[{"$f":"Fragen!$B$20","v":"Mit meinen Vorgesetzten oder Betreuern komme ich gut aus"}]
[]
["Werte","Anzahl absolut","Anzahl in Prozent"]
[{"$f":"'Antwort-Vorgaben'!A14","v":"immer"},{"$f":"COUNTIF(Fragebogen!$P$4:$P$54,A4)","v":0},{"$f":"IF(B4>0,B4/$B$10,0)","v":0}]
[{"$f":"'Antwort-Vorgaben'!A15","v":"oft"},{"$f":"COUNTIF(Fragebogen!$P$4:$P$54,A5)","v":0},{"$f":"IF(B5>0,B5/$B$10,0)","v":0}]
[{"$f":"'Antwort-Vorgaben'!A16","v":"selten"},{"$f":"COUNTIF(Fragebogen!$P$4:$P$54,A6)","v":0},0]
[{"$f":"'Antwort-Vorgaben'!A17","v":"nie"},{"$f":"COUNTIF(Fragebogen!$P$4:$P$54,A7)","v":0},0]
[{"$f":"'Antwort-Vorgaben'!A18","v":"weiß ich nicht"},{"$f":"COUNTIF(Fragebogen!$P$4:$P$54,A8)","v":0},0]
[{"$f":"'Antwort-Vorgaben'!A19","v":"keine Antwort"},{"$f":"COUNTIF(Fragebogen!$P$4:$P$54,A9)","v":0},0]
["Summe",{"$f":"SUM(B4:B9)","v":0},{"$f":"SUM(C4:C9)","v":0}]

{"sheet":"A16","index":20,"n_rows":10,"n_cols":3,"rows_kept":10,"cut":false,"hidden":false,"merged":[]}
[{"$f":"Fragen!$B$21","v":"Vor manchen Vorgesetzten oder Betreuern habe ich Angst"}]
[]
["Werte","Anzahl absolut","Anzahl in Prozent"]
[{"$f":"'Antwort-Vorgaben'!A14","v":"immer"},{"$f":"COUNTIF(Fragebogen!$Q$4:$Q$54,A4)","v":0},{"$f":"IF(B4>0,B4/$B$10,0)","v":0}]
[{"$f":"'Antwort-Vorgaben'!A15","v":"oft"},{"$f":"COUNTIF(Fragebogen!$Q$4:$Q$54,A5)","v":0},{"$f":"IF(B5>0,B5/$B$10,0)","v":0}]
[{"$f":"'Antwort-Vorgaben'!A16","v":"selten"},{"$f":"COUNTIF(Fragebogen!$Q$4:$Q$54,A6)","v":0},0]
[{"$f":"'Antwort-Vorgaben'!A17","v":"nie"},{"$f":"COUNTIF(Fragebogen!$Q$4:$Q$54,A7)","v":0},0]
[{"$f":"'Antwort-Vorgaben'!A18","v":"weiß ich nicht"},{"$f":"COUNTIF(Fragebogen!$Q$4:$Q$54,A8)","v":0},0]
[{"$f":"'Antwort-Vorgaben'!A19","v":"keine Antwort"},{"$f":"COUNTIF(Fragebogen!$Q$4:$Q$54,A9)","v":0},0]
["Summe",{"$f":"SUM(B4:B9)","v":0},{"$f":"SUM(C4:C9)","v":0}]

{"sheet":"A17","index":21,"n_rows":10,"n_cols":3,"rows_kept":10,"cut":false,"hidden":false,"merged":[]}
[{"$f":"Fragen!$B$24","v":"Auf meine Kollegen und Kolleginnen kann ich mich verlassen"}]
[]
["Werte","Anzahl absolut","Anzahl in Prozent"]
[{"$f":"'Antwort-Vorgaben'!A23","v":"immer"},{"$f":"COUNTIF(Fragebogen!$R$4:$R$54,A4)","v":0},{"$f":"IF(B4>0,B4/$B$10,0)","v":0}]
[{"$f":"'Antwort-Vorgaben'!A24","v":"oft"},{"$f":"COUNTIF(Fragebogen!$R$4:$R$54,A5)","v":0},{"$f":"IF(B5>0,B5/$B$10,0)","v":0}]
[{"$f":"'Antwort-Vorgaben'!A25","v":"selten"},{"$f":"COUNTIF(Fragebogen!$R$4:$R$54,A6)","v":0},0]
[{"$f":"'Antwort-Vorgaben'!A26","v":"nie"},{"$f":"COUNTIF(Fragebogen!$R$4:$R$54,A7)","v":0},0]
[{"$f":"'Antwort-Vorgaben'!A27","v":"weiß ich nicht"},{"$f":"COUNTIF(Fragebogen!$R$4:$R$54,A8)","v":0},0]
[{"$f":"'Antwort-Vorgaben'!A28","v":"keine Antwort"},{"$f":"COUNTIF(Fragebogen!$R$4:$R$54,A9)","v":0},0]
["Summe",{"$f":"SUM(B4:B9)","v":0},{"$f":"SUM(C4:C9)","v":0}]

{"sheet":"A18","index":22,"n_rows":10,"n_cols":3,"rows_kept":10,"cut":false,"hidden":false,"merged":[]}
[{"$f":"Fragen!$B$25","v":"Ich kann meinen Kollegen und Kolleginnen vertrauen"}]
[]
["Werte","Anzahl absolut","Anzahl in Prozent"]
[{"$f":"'Antwort-Vorgaben'!A23","v":"immer"},{"$f":"COUNTIF(Fragebogen!$S$4:$S$54,A4)","v":0},{"$f":"IF(B4>0,B4/$B$10,0)","v":0}]
[{"$f":"'Antwort-Vorgaben'!A24","v":"oft"},{"$f":"COUNTIF(Fragebogen!$S$4:$S$54,A5)","v":0},{"$f":"IF(B5>0,B5/$B$10,0)","v":0}]
[{"$f":"'Antwort-Vorgaben'!A25","v":"selten"},{"$f":"COUNTIF(Fragebogen!$S$4:$S$54,A6)","v":0},0]
[{"$f":"'Antwort-Vorgaben'!A26","v":"nie"},{"$f":"COUNTIF(Fragebogen!$S$4:$S$54,A7)","v":0},0]
[{"$f":"'Antwort-Vorgaben'!A27","v":"weiß ich nicht"},{"$f":"COUNTIF(Fragebogen!$S$4:$S$54,A8)","v":0},0]
[{"$f":"'Antwort-Vorgaben'!A28","v":"keine Antwort"},{"$f":"COUNTIF(Fragebogen!$S$4:$S$54,A9)","v":0},0]
["Summe",{"$f":"SUM(B4:B9)","v":0},{"$f":"SUM(C4:C9)","v":0}]

{"sheet":"A19","index":23,"n_rows":10,"n_cols":3,"rows_kept":10,"cut":false,"hidden":false,"merged":[]}
[{"$f":"Fragen!$B$26","v":"Meine Kollegen und Kolleginnen unterstützen mich"}]
[]
["Werte","Anzahl absolut","Anzahl in Prozent"]
[{"$f":"'Antwort-Vorgaben'!A23","v":"immer"},{"$f":"COUNTIF(Fragebogen!$T$4:$T$54,A4)","v":0},{"$f":"IF(B4>0,B4/$B$10,0)","v":0}]
[{"$f":"'Antwort-Vorgaben'!A24","v":"oft"},{"$f":"COUNTIF(Fragebogen!$T$4:$T$54,A5)","v":0},{"$f":"IF(B5>0,B5/$B$10,0)","v":0}]
[{"$f":"'Antwort-Vorgaben'!A25","v":"selten"},{"$f":"COUNTIF(Fragebogen!$T$4:$T$54,A6)","v":0},0]
[{"$f":"'Antwort-Vorgaben'!A26","v":"nie"},{"$f":"COUNTIF(Fragebogen!$T$4:$T$54,A7)","v":0},0]
[{"$f":"'Antwort-Vorgaben'!A27","v":"weiß ich nicht"},{"$f":"COUNTIF(Fragebogen!$T$4:$T$54,A8)","v":0},0]
[{"$f":"'Antwort-Vorgaben'!A28","v":"keine Antwort"},{"$f":"COUNTIF(Fragebogen!$T$4:$T$54,A9)","v":0},0]
["Summe",{"$f":"SUM(B4:B9)","v":0},{"$f":"SUM(C4:C9)","v":0}]

{"sheet":"A20","index":24,"n_rows":10,"n_cols":3,"rows_kept":10,"cut":false,"hidden":false,"merged":[]}
[{"$f":"Fragen!$B$27","v":"Meine Kollegen und Kolleginnen loben mich, wenn ich etwas gut gemacht habe"}]
[]
["Werte","Anzahl absolut","Anzahl in Prozent"]
[{"$f":"'Antwort-Vorgaben'!A23","v":"immer"},{"$f":"COUNTIF(Fragebogen!$U$4:$U$54,A4)","v":0},{"$f":"IF(B4>0,B4/$B$10,0)","v":0}]
[{"$f":"'Antwort-Vorgaben'!A24","v":"oft"},{"$f":"COUNTIF(Fragebogen!$U$4:$U$54,A5)","v":0},{"$f":"IF(B5>0,B5/$B$10,0)","v":0}]
[{"$f":"'Antwort-Vorgaben'!A25","v":"selten"},{"$f":"COUNTIF(Fragebogen!$U$4:$U$54,A6)","v":0},0]
[{"$f":"'Antwort-Vorgaben'!A26","v":"nie"},{"$f":"COUNTIF(Fragebogen!$U$4:$U$54,A7)","v":0},0]
[{"$f":"'Antwort-Vorgaben'!A27","v":"weiß ich nicht"},{"$f":"COUNTIF(Fragebogen!$U$4:$U$54,A8)","v":0},0]
[{"$f":"'Antwort-Vorgaben'!A28","v":"keine Antwort"},{"$f":"COUNTIF(Fragebogen!$U$4:$U$54,A9)","v":0},0]
["Summe",{"$f":"SUM(B4:B9)","v":0},{"$f":"SUM(C4:C9)","v":0}]

{"sheet":"A21","index":25,"n_rows":10,"n_cols":3,"rows_kept":10,"cut":false,"hidden":false,"merged":[]}
[{"$f":"Fragen!$B$28","v":"Ich werde von meinen Kollegen oder Kolleginnen geärgert"}]
[]
["Werte","Anzahl absolut","Anzahl in Prozent"]
[{"$f":"'Antwort-Vorgaben'!A23","v":"immer"},{"$f":"COUNTIF(Fragebogen!$V$4:$V$54,A4)","v":0},{"$f":"IF(B4>0,B4/$B$10,0)","v":0}]
[{"$f":"'Antwort-Vorgaben'!A24","v":"oft"},{"$f":"COUNTIF(Fragebogen!$V$4:$V$54,A5)","v":0},{"$f":"IF(B5>0,B5/$B$10,0)","v":0}]
[{"$f":"'Antwort-Vorgaben'!A25","v":"selten"},{"$f":"COUNTIF(Fragebogen!$V$4:$V$54,A6)","v":0},0]
[{"$f":"'Antwort-Vorgaben'!A26","v":"nie"},{"$f":"COUNTIF(Fragebogen!$V$4:$V$54,A7)","v":0},0]
[{"$f":"'Antwort-Vorgaben'!A27","v":"weiß ich nicht"},{"$f":"COUNTIF(Fragebogen!$V$4:$V$54,A8)","v":0},0]
[{"$f":"'Antwort-Vorgaben'!A28","v":"keine Antwort"},{"$f":"COUNTIF(Fragebogen!$V$4:$V$54,A9)","v":0},0]
["Summe",{"$f":"SUM(B4:B9)","v":0},{"$f":"SUM(C4:C9)","v":0}]

{"sheet":"A22","index":26,"n_rows":10,"n_cols":3,"rows_kept":10,"cut":false,"hidden":false,"merged":[]}
[{"$f":"Fragen!$B$29","v":"Meine Kollegen oder Kolleginnen stören mich absichtlich bei der Arbeit"}]
[]
["Werte","Anzahl absolut","Anzahl in Prozent"]
[{"$f":"'Antwort-Vorgaben'!A23","v":"immer"},{"$f":"COUNTIF(Fragebogen!$W$4:$W$54,A4)","v":0},{"$f":"IF(B4>0,B4/$B$10,0)","v":0}]
[{"$f":"'Antwort-Vorgaben'!A24","v":"oft"},{"$f":"COUNTIF(Fragebogen!$W$4:$W$54,A5)","v":0},{"$f":"IF(B5>0,B5/$B$10,0)","v":0}]
[{"$f":"'Antwort-Vorgaben'!A25","v":"selten"},{"$f":"COUNTIF(Fragebogen!$W$4:$W$54,A6)","v":0},0]
[{"$f":"'Antwort-Vorgaben'!A26","v":"nie"},{"$f":"COUNTIF(Fragebogen!$W$4:$W$54,A7)","v":0},0]
[{"$f":"'Antwort-Vorgaben'!A27","v":"weiß ich nicht"},{"$f":"COUNTIF(Fragebogen!$W$4:$W$54,A8)","v":0},0]
[{"$f":"'Antwort-Vorgaben'!A28","v":"keine Antwort"},{"$f":"COUNTIF(Fragebogen!$W$4:$W$54,A9)","v":0},0]
["Summe",{"$f":"SUM(B4:B9)","v":0},{"$f":"SUM(C4:C9)","v":0}]

{"sheet":"A23","index":27,"n_rows":10,"n_cols":3,"rows_kept":10,"cut":false,"hidden":false,"merged":[]}
[{"$f":"Fragen!$B$30","v":"Die anderen Kollegen und Kolleginnen streiten miteinander"}]
[]
["Werte","Anzahl absolut","Anzahl in Prozent"]
[{"$f":"'Antwort-Vorgaben'!A23","v":"immer"},{"$f":"COUNTIF(Fragebogen!$X$4:$X$54,A4)","v":0},{"$f":"IF(B4>0,B4/$B$10,0)","v":0}]
[{"$f":"'Antwort-Vorgaben'!A24","v":"oft"},{"$f":"COUNTIF(Fragebogen!$X$4:$X$54,A5)","v":0},{"$f":"IF(B5>0,B5/$B$10,0)","v":0}]
[{"$f":"'Antwort-Vorgaben'!A25","v":"selten"},{"$f":"COUNTIF(Fragebogen!$X$4:$X$54,A6)","v":0},0]
[{"$f":"'Antwort-Vorgaben'!A26","v":"nie"},{"$f":"COUNTIF(Fragebogen!$X$4:$X$54,A7)","v":0},0]
[{"$f":"'Antwort-Vorgaben'!A27","v":"weiß ich nicht"},{"$f":"COUNTIF(Fragebogen!$X$4:$X$54,A8)","v":0},0]
[{"$f":"'Antwort-Vorgaben'!A28","v":"keine Antwort"},{"$f":"COUNTIF(Fragebogen!$X$4:$X$54,A9)","v":0},0]
["Summe",{"$f":"SUM(B4:B9)","v":0},{"$f":"SUM(C4:C9)","v":0}]

{"sheet":"A24","index":28,"n_rows":10,"n_cols":3,"rows_kept":10,"cut":false,"hidden":false,"merged":[]}
[{"$f":"Fragen!$B$31","v":"Ich habe Streit mit meinen Kollegen oder Kolleginnen"}]
[]
["Werte","Anzahl absolut","Anzahl in Prozent"]
[{"$f":"'Antwort-Vorgaben'!A23","v":"immer"},{"$f":"COUNTIF(Fragebogen!$Y$4:$Y$54,A4)","v":0},{"$f":"IF(B4>0,B4/$B$10,0)","v":0}]
[{"$f":"'Antwort-Vorgaben'!A24","v":"oft"},{"$f":"COUNTIF(Fragebogen!$Y$4:$Y$54,A5)","v":0},{"$f":"IF(B5>0,B5/$B$10,0)","v":0}]
[{"$f":"'Antwort-Vorgaben'!A25","v":"selten"},{"$f":"COUNTIF(Fragebogen!$Y$4:$Y$54,A6)","v":0},0]
[{"$f":"'Antwort-Vorgaben'!A26","v":"nie"},{"$f":"COUNTIF(Fragebogen!$Y$4:$Y$54,A7)","v":0},0]
[{"$f":"'Antwort-Vorgaben'!A27","v":"weiß ich nicht"},{"$f":"COUNTIF(Fragebogen!$Y$4:$Y$54,A8)","v":0},0]
[{"$f":"'Antwort-Vorgaben'!A28","v":"keine Antwort"},{"$f":"COUNTIF(Fragebogen!$Y$4:$Y$54,A9)","v":0},0]
["Summe",{"$f":"SUM(B4:B9)","v":0},{"$f":"SUM(C4:C9)","v":0}]

{"sheet":"A25","index":29,"n_rows":10,"n_cols":3,"rows_kept":10,"cut":false,"hidden":false,"merged":[]}
[{"$f":"Fragen!$B$32","v":"Andere Kollegen oder Kolleginnen tun mir absichtlich weh"}]
[]
["Werte","Anzahl absolut","Anzahl in Prozent"]
[{"$f":"'Antwort-Vorgaben'!A23","v":"immer"},{"$f":"COUNTIF(Fragebogen!$Z$4:$Z$54,A4)","v":0},{"$f":"IF(B4>0,B4/$B$10,0)","v":0}]
[{"$f":"'Antwort-Vorgaben'!A24","v":"oft"},{"$f":"COUNTIF(Fragebogen!$Z$4:$Z$54,A5)","v":0},{"$f":"IF(B5>0,B5/$B$10,0)","v":0}]
[{"$f":"'Antwort-Vorgaben'!A25","v":"selten"},{"$f":"COUNTIF(Fragebogen!$Z$4:$Z$54,A6)","v":0},0]
[{"$f":"'Antwort-Vorgaben'!A26","v":"nie"},{"$f":"COUNTIF(Fragebogen!$Z$4:$Z$54,A7)","v":0},0]
[{"$f":"'Antwort-Vorgaben'!A27","v":"weiß ich nicht"},{"$f":"COUNTIF(Fragebogen!$Z$4:$Z$54,A8)","v":0},0]
[{"$f":"'Antwort-Vorgaben'!A28","v":"keine Antwort"},{"$f":"COUNTIF(Fragebogen!$Z$4:$Z$54,A9)","v":0},0]
["Summe",{"$f":"SUM(B4:B9)","v":0},{"$f":"SUM(C4:C9)","v":0}]

{"sheet":"A26","index":30,"n_rows":10,"n_cols":3,"rows_kept":10,"cut":false,"hidden":false,"merged":[]}
[{"$f":"Fragen!$B$33","v":"Vor manchen Kollegen oder Kolleginnen habe ich Angst"}]
[]
["Werte","Anzahl absolut","Anzahl in Prozent"]
[{"$f":"'Antwort-Vorgaben'!A23","v":"immer"},{"$f":"COUNTIF(Fragebogen!$AA$4:$AA$54,A4)","v":0},{"$f":"IF(B4>0,B4/$B$10,0)","v":0}]
[{"$f":"'Antwort-Vorgaben'!A24","v":"oft"},{"$f":"COUNTIF(Fragebogen!$AA$4:$AA$54,A5)","v":0},{"$f":"IF(B5>0,B5/$B$10,0)","v":0}]
[{"$f":"'Antwort-Vorgaben'!A25","v":"selten"},{"$f":"COUNTIF(Fragebogen!$AA$4:$AA$54,A6)","v":0},0]
[{"$f":"'Antwort-Vorgaben'!A26","v":"nie"},{"$f":"COUNTIF(Fragebogen!$AA$4:$AA$54,A7)","v":0},0]
[{"$f":"'Antwort-Vorgaben'!A27","v":"weiß ich nicht"},{"$f":"COUNTIF(Fragebogen!$AA$4:$AA$54,A8)","v":0},0]
[{"$f":"'Antwort-Vorgaben'!A28","v":"keine Antwort"},{"$f":"COUNTIF(Fragebogen!$AA$4:$AA$54,A9)","v":0},0]
["Summe",{"$f":"SUM(B4:B9)","v":0},{"$f":"SUM(C4:C9)","v":0}]

{"sheet":"A27","index":31,"n_rows":10,"n_cols":3,"rows_kept":10,"cut":false,"hidden":false,"merged":[]}
[{"$f":"Fragen!$B$36","v":"In der Arbeit wird darauf geschaut, dass ich mich wohl fühle"}]
[]
["Werte","Anzahl absolut","Anzahl in Prozent"]
[{"$f":"'Antwort-Vorgaben'!A32","v":"immer"},{"$f":"COUNTIF(Fragebogen!$AB$4:$AB$54,A4)","v":0},{"$f":"IF(B4>0,B4/$B$10,0)","v":0}]
[{"$f":"'Antwort-Vorgaben'!A33","v":"oft"},{"$f":"COUNTIF(Fragebogen!$AB$4:$AB$54,A5)","v":0},{"$f":"IF(B5>0,B5/$B$10,0)","v":0}]
[{"$f":"'Antwort-Vorgaben'!A34","v":"selten"},{"$f":"COUNTIF(Fragebogen!$AB$4:$AB$54,A6)","v":0},0]
[{"$f":"'Antwort-Vorgaben'!A35","v":"nie"},{"$f":"COUNTIF(Fragebogen!$AB$4:$AB$54,A7)","v":0},0]
[{"$f":"'Antwort-Vorgaben'!A36","v":"weiß ich nicht"},{"$f":"COUNTIF(Fragebogen!$AB$4:$AB$54,A8)","v":0},0]
[{"$f":"'Antwort-Vorgaben'!A37","v":"keine Antwort"},{"$f":"COUNTIF(Fragebogen!$AB$4:$AB$54,A9)","v":0},0]
["Summe",{"$f":"SUM(B4:B9)","v":0},{"$f":"SUM(C4:C9)","v":0}]

{"sheet":"A28","index":32,"n_rows":10,"n_cols":3,"rows_kept":10,"cut":false,"hidden":false,"merged":[]}
[{"$f":"Fragen!$B$37","v":"In der Arbeit wird darauf geschaut, dass es mir gut geht"}]
[]
["Werte","Anzahl absolut","Anzahl in Prozent"]
[{"$f":"'Antwort-Vorgaben'!A32","v":"immer"},{"$f":"COUNTIF(Fragebogen!$AC$4:$AC$54,A4)","v":0},{"$f":"IF(B4>0,B4/$B$10,0)","v":0}]
[{"$f":"'Antwort-Vorgaben'!A33","v":"oft"},{"$f":"COUNTIF(Fragebogen!$AC$4:$AC$54,A5)","v":0},{"$f":"IF(B5>0,B5/$B$10,0)","v":0}]
[{"$f":"'Antwort-Vorgaben'!A34","v":"selten"},{"$f":"COUNTIF(Fragebogen!$AC$4:$AC$54,A6)","v":0},0]
[{"$f":"'Antwort-Vorgaben'!A35","v":"nie"},{"$f":"COUNTIF(Fragebogen!$AC$4:$AC$54,A7)","v":0},0]
[{"$f":"'Antwort-Vorgaben'!A36","v":"weiß ich nicht"},{"$f":"COUNTIF(Fragebogen!$AC$4:$AC$54,A8)","v":0},0]
[{"$f":"'Antwort-Vorgaben'!A37","v":"keine Antwort"},{"$f":"COUNTIF(Fragebogen!$AC$4:$AC$54,A9)","v":0},0]
["Summe",{"$f":"SUM(B4:B9)","v":0},{"$f":"SUM(C4:C9)","v":0}]

{"sheet":"A29","index":33,"n_rows":10,"n_cols":3,"rows_kept":10,"cut":false,"hidden":false,"merged":[]}
[{"$f":"Fragen!$B$38","v":"In der Arbeit wird darauf geschaut, dass ich gesund bleibe"}]
[]
["Werte","Anzahl absolut","Anzahl in Prozent"]
[{"$f":"'Antwort-Vorgaben'!A32","v":"immer"},{"$f":"COUNTIF(Fragebogen!$AD$4:$AD$54,A4)","v":0},{"$f":"IF(B4>0,B4/$B$10,0)","v":0}]
[{"$f":"'Antwort-Vorgaben'!A33","v":"oft"},{"$f":"COUNTIF(Fragebogen!$AD$4:$AD$54,A5)","v":0},{"$f":"IF(B5>0,B5/$B$10,0)","v":0}]
[{"$f":"'Antwort-Vorgaben'!A34","v":"selten"},{"$f":"COUNTIF(Fragebogen!$AD$4:$AD$54,A6)","v":0},0]
[{"$f":"'Antwort-Vorgaben'!A35","v":"nie"},{"$f":"COUNTIF(Fragebogen!$AD$4:$AD$54,A7)","v":0},0]
[{"$f":"'Antwort-Vorgaben'!A36","v":"weiß ich nicht"},{"$f":"COUNTIF(Fragebogen!$AD$4:$AD$54,A8)","v":0},0]
[{"$f":"'Antwort-Vorgaben'!A37","v":"keine Antwort"},{"$f":"COUNTIF(Fragebogen!$AD$4:$AD$54,A9)","v":0},0]
["Summe",{"$f":"SUM(B4:B9)","v":0},{"$f":"SUM(C4:C9)","v":0}]

{"sheet":"A30","index":34,"n_rows":10,"n_cols":3,"rows_kept":10,"cut":false,"hidden":false,"merged":[]}
[{"$f":"Fragen!$B$39","v":"Ich bin stolz darauf, dass ich hier arbeite"}]
[]
["Werte","Anzahl absolut","Anzahl in Prozent"]
[{"$f":"'Antwort-Vorgaben'!A32","v":"immer"},{"$f":"COUNTIF(Fragebogen!$AE$4:$AE$54,A4)","v":0},{"$f":"IF(B4>0,B4/$B$10,0)","v":0}]
[{"$f":"'Antwort-Vorgaben'!A33","v":"oft"},{"$f":"COUNTIF(Fragebogen!$AE$4:$AE$54,A5)","v":0},{"$f":"IF(B5>0,B5/$B$10,0)","v":0}]
[{"$f":"'Antwort-Vorgaben'!A34","v":"selten"},{"$f":"COUNTIF(Fragebogen!$AE$4:$AE$54,A6)","v":0},0]
[{"$f":"'Antwort-Vorgaben'!A35","v":"nie"},{"$f":"COUNTIF(Fragebogen!$AE$4:$AE$54,A7)","v":0},0]
[{"$f":"'Antwort-Vorgaben'!A36","v":"weiß ich nicht"},{"$f":"COUNTIF(Fragebogen!$AE$4:$AE$54,A8)","v":0},0]
[{"$f":"'Antwort-Vorgaben'!A37","v":"keine Antwort"},{"$f":"COUNTIF(Fragebogen!$AE$4:$AE$54,A9)","v":0},0]
["Summe",{"$f":"SUM(B4:B9)","v":0},{"$f":"SUM(C4:C9)","v":0}]

{"sheet":"A31","index":35,"n_rows":10,"n_cols":3,"rows_kept":10,"cut":false,"hidden":false,"merged":[]}
[{"$f":"Fragen!$B$40","v":"Meine Arbeit bedeutet mir viel"}]
[]
["Werte","Anzahl absolut","Anzahl in Prozent"]
[{"$f":"'Antwort-Vorgaben'!A32","v":"immer"},{"$f":"COUNTIF(Fragebogen!$AF$4:$AF$54,A4)","v":0},{"$f":"IF(B4>0,B4/$B$10,0)","v":0}]
[{"$f":"'Antwort-Vorgaben'!A33","v":"oft"},{"$f":"COUNTIF(Fragebogen!$AF$4:$AF$54,A5)","v":0},{"$f":"IF(B5>0,B5/$B$10,0)","v":0}]
[{"$f":"'Antwort-Vorgaben'!A34","v":"selten"},{"$f":"COUNTIF(Fragebogen!$AF$4:$AF$54,A6)","v":0},0]
[{"$f":"'Antwort-Vorgaben'!A35","v":"nie"},{"$f":"COUNTIF(Fragebogen!$AF$4:$AF$54,A7)","v":0},0]
[{"$f":"'Antwort-Vorgaben'!A36","v":"weiß ich nicht"},{"$f":"COUNTIF(Fragebogen!$AF$4:$AF$54,A8)","v":0},0]
[{"$f":"'Antwort-Vorgaben'!A37","v":"keine Antwort"},{"$f":"COUNTIF(Fragebogen!$AF$4:$AF$54,A9)","v":0},0]
["Summe",{"$f":"SUM(B4:B9)","v":0},{"$f":"SUM(C4:C9)","v":0}]

{"sheet":"A32","index":36,"n_rows":10,"n_cols":3,"rows_kept":10,"cut":false,"hidden":false,"merged":[]}
[{"$f":"Fragen!$B$41","v":"Ich erzähle anderen gerne über meine Arbeit"}]
[]
["Werte","Anzahl absolut","Anzahl in Prozent"]
[{"$f":"'Antwort-Vorgaben'!A32","v":"immer"},{"$f":"COUNTIF(Fragebogen!$AG$4:$AG$54,A4)","v":0},{"$f":"IF(B4>0,B4/$B$10,0)","v":0}]
[{"$f":"'Antwort-Vorgaben'!A33","v":"oft"},{"$f":"COUNTIF(Fragebogen!$AG$4:$AG$54,A5)","v":0},{"$f":"IF(B5>0,B5/$B$10,0)","v":0}]
[{"$f":"'Antwort-Vorgaben'!A34","v":"selten"},{"$f":"COUNTIF(Fragebogen!$AG$4:$AG$54,A6)","v":0},0]
[{"$f":"'Antwort-Vorgaben'!A35","v":"nie"},{"$f":"COUNTIF(Fragebogen!$AG$4:$AG$54,A7)","v":0},0]
[{"$f":"'Antwort-Vorgaben'!A36","v":"weiß ich nicht"},{"$f":"COUNTIF(Fragebogen!$AG$4:$AG$54,A8)","v":0},0]
[{"$f":"'Antwort-Vorgaben'!A37","v":"keine Antwort"},{"$f":"COUNTIF(Fragebogen!$AG$4:$AG$54,A9)","v":0},0]
["Summe",{"$f":"SUM(B4:B9)","v":0},{"$f":"SUM(C4:C9)","v":0}]

{"sheet":"A33","index":37,"n_rows":10,"n_cols":3,"rows_kept":10,"cut":false,"hidden":false,"merged":[]}
[{"$f":"Fragen!$B$42","v":"Menschen mit Behinderung werden hier genauso behandelt wie Menschen ohne Behinderung"}]
[]
["Werte","Anzahl absolut","Anzahl in Prozent"]
[{"$f":"'Antwort-Vorgaben'!A32","v":"immer"},{"$f":"COUNTIF(Fragebogen!$AH$4:$AH$54,A4)","v":0},{"$f":"IF(B4>0,B4/$B$10,0)","v":0}]
[{"$f":"'Antwort-Vorgaben'!A33","v":"oft"},{"$f":"COUNTIF(Fragebogen!$AH$4:$AH$54,A5)","v":0},{"$f":"IF(B5>0,B5/$B$10,0)","v":0}]
[{"$f":"'Antwort-Vorgaben'!A34","v":"selten"},{"$f":"COUNTIF(Fragebogen!$AH$4:$AH$54,A6)","v":0},0]
[{"$f":"'Antwort-Vorgaben'!A35","v":"nie"},{"$f":"COUNTIF(Fragebogen!$AH$4:$AH$54,A7)","v":0},0]
[{"$f":"'Antwort-Vorgaben'!A36","v":"weiß ich nicht"},{"$f":"COUNTIF(Fragebogen!$AH$4:$AH$54,A8)","v":0},0]
[{"$f":"'Antwort-Vorgaben'!A37","v":"keine Antwort"},{"$f":"COUNTIF(Fragebogen!$AH$4:$AH$54,A9)","v":0},0]
["Summe",{"$f":"SUM(B4:B9)","v":0},{"$f":"SUM(C4:C9)","v":0}]

{"sheet":"A34","index":38,"n_rows":10,"n_cols":3,"rows_kept":10,"cut":false,"hidden":false,"merged":[]}
[{"$f":"Fragen!$B$43","v":"In der Arbeit wird auf meine persönlichen Umstände Rücksicht genommen"}]
[]
["Werte","Anzahl absolut","Anzahl in Prozent"]
[{"$f":"'Antwort-Vorgaben'!A32","v":"immer"},{"$f":"COUNTIF(Fragebogen!$AI$4:$AI$54,A4)","v":0},{"$f":"IF(B4>0,B4/$B$10,0)","v":0}]
[{"$f":"'Antwort-Vorgaben'!A33","v":"oft"},{"$f":"COUNTIF(Fragebogen!$AI$4:$AI$54,A5)","v":0},{"$f":"IF(B5>0,B5/$B$10,0)","v":0}]
[{"$f":"'Antwort-Vorgaben'!A34","v":"selten"},{"$f":"COUNTIF(Fragebogen!$AI$4:$AI$54,A6)","v":0},0]
[{"$f":"'Antwort-Vorgaben'!A35","v":"nie"},{"$f":"COUNTIF(Fragebogen!$AI$4:$AI$54,A7)","v":0},0]
[{"$f":"'Antwort-Vorgaben'!A36","v":"weiß ich nicht"},{"$f":"COUNTIF(Fragebogen!$AI$4:$AI$54,A8)","v":0},0]
[{"$f":"'Antwort-Vorgaben'!A37","v":"keine Antwort"},{"$f":"COUNTIF(Fragebogen!$AI$4:$AI$54,A9)","v":0},0]
["Summe",{"$f":"SUM(B4:B9)","v":0},{"$f":"SUM(C4:C9)","v":0}]

{"sheet":"A35","index":39,"n_rows":10,"n_cols":3,"rows_kept":10,"cut":false,"hidden":false,"merged":[]}
[{"$f":"Fragen!$B$44","v":"Die Leute in der Arbeit gehen respektvoll miteinander um"}]
[]
["Werte","Anzahl absolut","Anzahl in Prozent"]
[{"$f":"'Antwort-Vorgaben'!A32","v":"immer"},{"$f":"COUNTIF(Fragebogen!$AJ$4:$AJ$54,A4)","v":0},{"$f":"IF(B4>0,B4/$B$10,0)","v":0}]
[{"$f":"'Antwort-Vorgaben'!A33","v":"oft"},{"$f":"COUNTIF(Fragebogen!$AJ$4:$AJ$54,A5)","v":0},{"$f":"IF(B5>0,B5/$B$10,0)","v":0}]
[{"$f":"'Antwort-Vorgaben'!A34","v":"selten"},{"$f":"COUNTIF(Fragebogen!$AJ$4:$AJ$54,A6)","v":0},0]
[{"$f":"'Antwort-Vorgaben'!A35","v":"nie"},{"$f":"COUNTIF(Fragebogen!$AJ$4:$AJ$54,A7)","v":0},0]
[{"$f":"'Antwort-Vorgaben'!A36","v":"weiß ich nicht"},{"$f":"COUNTIF(Fragebogen!$AJ$4:$AJ$54,A8)","v":0},0]
[{"$f":"'Antwort-Vorgaben'!A37","v":"keine Antwort"},{"$f":"COUNTIF(Fragebogen!$AJ$4:$AJ$54,A9)","v":0},0]
["Summe",{"$f":"SUM(B4:B9)","v":0},{"$f":"SUM(C4:C9)","v":0}]

{"sheet":"A36","index":40,"n_rows":10,"n_cols":3,"rows_kept":10,"cut":false,"hidden":false,"merged":[]}
[{"$f":"Fragen!$B$45","v":"Ich kann mir gut vorstellen, dass ich hier noch lange arbeite"}]
[]
["Werte","Anzahl absolut","Anzahl in Prozent"]
[{"$f":"'Antwort-Vorgaben'!A32","v":"immer"},{"$f":"COUNTIF(Fragebogen!$AK$4:$AK$54,A4)","v":0},{"$f":"IF(B4>0,B4/$B$10,0)","v":0}]
[{"$f":"'Antwort-Vorgaben'!A33","v":"oft"},{"$f":"COUNTIF(Fragebogen!$AK$4:$AK$54,A5)","v":0},{"$f":"IF(B5>0,B5/$B$10,0)","v":0}]
[{"$f":"'Antwort-Vorgaben'!A34","v":"selten"},{"$f":"COUNTIF(Fragebogen!$AK$4:$AK$54,A6)","v":0},0]
[{"$f":"'Antwort-Vorgaben'!A35","v":"nie"},{"$f":"COUNTIF(Fragebogen!$AK$4:$AK$54,A7)","v":0},0]
[{"$f":"'Antwort-Vorgaben'!A36","v":"weiß ich nicht"},{"$f":"COUNTIF(Fragebogen!$AK$4:$AK$54,A8)","v":0},0]
[{"$f":"'Antwort-Vorgaben'!A37","v":"keine Antwort"},{"$f":"COUNTIF(Fragebogen!$AK$4:$AK$54,A9)","v":0},0]
["Summe",{"$f":"SUM(B4:B9)","v":0},{"$f":"SUM(C4:C9)","v":0}]

{"sheet":"A37","index":41,"n_rows":10,"n_cols":3,"rows_kept":10,"cut":false,"hidden":false,"merged":[]}
[{"$f":"Fragen!$B$48","v":"Probleme in der Arbeit beschäftigen mich auch daheim"}]
[]
["Werte","Anzahl absolut","Anzahl in Prozent"]
[{"$f":"'Antwort-Vorgaben'!A41","v":"immer"},{"$f":"COUNTIF(Fragebogen!$AL$4:$AL$54,A4)","v":0},{"$f":"IF(B4>0,B4/$B$10,0)","v":0}]
[{"$f":"'Antwort-Vorgaben'!A42","v":"oft"},{"$f":"COUNTIF(Fragebogen!$AL$4:$AL$54,A5)","v":0},{"$f":"IF(B5>0,B5/$B$10,0)","v":0}]
[{"$f":"'Antwort-Vorgaben'!A43","v":"selten"},{"$f":"COUNTIF(Fragebogen!$AL$4:$AL$54,A6)","v":0},0]
[{"$f":"'Antwort-Vorgaben'!A44","v":"nie"},{"$f":"COUNTIF(Fragebogen!$AL$4:$AL$54,A7)","v":0},0]
[{"$f":"'Antwort-Vorgaben'!A45","v":"weiß ich nicht"},{"$f":"COUNTIF(Fragebogen!$AL$4:$AL$54,A8)","v":0},0]
[{"$f":"'Antwort-Vorgaben'!A46","v":"keine Antwort"},{"$f":"COUNTIF(Fragebogen!$AL$4:$AL$54,A9)","v":0},0]
["Summe",{"$f":"SUM(B4:B9)","v":0},{"$f":"SUM(C4:C9)","v":0}]

{"sheet":"A38","index":42,"n_rows":10,"n_cols":3,"rows_kept":10,"cut":false,"hidden":false,"merged":[]}
[{"$f":"Fragen!$B$49","v":"Wegen der Arbeit kommt meine Freizeit zu kurz"}]
[]
["Werte","Anzahl absolut","Anzahl in Prozent"]
[{"$f":"'Antwort-Vorgaben'!A41","v":"immer"},{"$f":"COUNTIF(Fragebogen!$AM$4:$AM$54,A4)","v":0},{"$f":"IF(B4>0,B4/$B$10,0)","v":0}]
[{"$f":"'Antwort-Vorgaben'!A42","v":"oft"},{"$f":"COUNTIF(Fragebogen!$AM$4:$AM$54,A5)","v":0},{"$f":"IF(B5>0,B5/$B$10,0)","v":0}]
[{"$f":"'Antwort-Vorgaben'!A43","v":"selten"},{"$f":"COUNTIF(Fragebogen!$AM$4:$AM$54,A6)","v":0},0]
[{"$f":"'Antwort-Vorgaben'!A44","v":"nie"},{"$f":"COUNTIF(Fragebogen!$AM$4:$AM$54,A7)","v":0},0]
[{"$f":"'Antwort-Vorgaben'!A45","v":"weiß ich nicht"},{"$f":"COUNTIF(Fragebogen!$AM$4:$AM$54,A8)","v":0},0]
[{"$f":"'Antwort-Vorgaben'!A46","v":"keine Antwort"},{"$f":"COUNTIF(Fragebogen!$AM$4:$AM$54,A9)","v":0},0]
["Summe",{"$f":"SUM(B4:B9)","v":0},{"$f":"SUM(C4:C9)","v":0}]

{"sheet":"A39","index":43,"n_rows":10,"n_cols":3,"rows_kept":10,"cut":false,"hidden":false,"merged":[]}
[{"$f":"Fragen!$B$50","v":"Nach der Arbeit kann ich gut abschalten"}]
[]
["Werte","Anzahl absolut","Anzahl in Prozent"]
[{"$f":"'Antwort-Vorgaben'!A41","v":"immer"},{"$f":"COUNTIF(Fragebogen!$AN$4:$AN$54,A4)","v":0},{"$f":"IF(B4>0,B4/$B$10,0)","v":0}]
[{"$f":"'Antwort-Vorgaben'!A42","v":"oft"},{"$f":"COUNTIF(Fragebogen!$AN$4:$AN$54,A5)","v":0},{"$f":"IF(B5>0,B5/$B$10,0)","v":0}]
[{"$f":"'Antwort-Vorgaben'!A43","v":"selten"},{"$f":"COUNTIF(Fragebogen!$AN$4:$AN$54,A6)","v":0},0]
[{"$f":"'Antwort-Vorgaben'!A44","v":"nie"},{"$f":"COUNTIF(Fragebogen!$AN$4:$AN$54,A7)","v":0},0]
[{"$f":"'Antwort-Vorgaben'!A45","v":"weiß ich nicht"},{"$f":"COUNTIF(Fragebogen!$AN$4:$AN$54,A8)","v":0},0]
[{"$f":"'Antwort-Vorgaben'!A46","v":"keine Antwort"},{"$f":"COUNTIF(Fragebogen!$AN$4:$AN$54,A9)","v":0},0]
["Summe",{"$f":"SUM(B4:B9)","v":0},{"$f":"SUM(C4:C9)","v":0}]

{"sheet":"A40","index":44,"n_rows":10,"n_cols":3,"rows_kept":10,"cut":false,"hidden":false,"merged":[]}
[{"$f":"Fragen!$B$51","v":"Nach der Arbeit bin ich so müde, dass ich fast nichts mehr tun kann"}]
[]
["Werte","Anzahl absolut","Anzahl in Prozent"]
[{"$f":"'Antwort-Vorgaben'!A41","v":"immer"},{"$f":"COUNTIF(Fragebogen!$AO$4:$AO$54,A4)","v":0},{"$f":"IF(B4>0,B4/$B$10,0)","v":0}]
[{"$f":"'Antwort-Vorgaben'!A42","v":"oft"},{"$f":"COUNTIF(Fragebogen!$AO$4:$AO$54,A5)","v":0},{"$f":"IF(B5>0,B5/$B$10,0)","v":0}]
[{"$f":"'Antwort-Vorgaben'!A43","v":"selten"},{"$f":"COUNTIF(Fragebogen!$AO$4:$AO$54,A6)","v":0},0]
[{"$f":"'Antwort-Vorgaben'!A44","v":"nie"},{"$f":"COUNTIF(Fragebogen!$AO$4:$AO$54,A7)","v":0},0]
[{"$f":"'Antwort-Vorgaben'!A45","v":"weiß ich nicht"},{"$f":"COUNTIF(Fragebogen!$AO$4:$AO$54,A8)","v":0},0]
[{"$f":"'Antwort-Vorgaben'!A46","v":"keine Antwort"},{"$f":"COUNTIF(Fragebogen!$AO$4:$AO$54,A9)","v":0},0]
["Summe",{"$f":"SUM(B4:B9)","v":0},{"$f":"SUM(C4:C9)","v":0}]

{"sheet":"A41","index":45,"n_rows":10,"n_cols":3,"rows_kept":10,"cut":false,"hidden":false,"merged":[]}
[{"$f":"Fragen!$B$54","v":"So gesund fühle ich mich derzeit:"}]
[]
["Werte","Anzahl absolut","Anzahl in Prozent"]
[{"$f":"'Antwort-Vorgaben'!A50","v":"sehr gesund"},{"$f":"COUNTIF(Fragebogen!$AP$4:$AP$54,A4)","v":0},{"$f":"IF(B4>0,B4/$B$10,0)","v":0}]
[{"$f":"'Antwort-Vorgaben'!A51","v":"gesund"},{"$f":"COUNTIF(Fragebogen!$AP$4:$AP$54,A5)","v":0},{"$f":"IF(B5>0,B5/$B$10,0)","v":0}]
[{"$f":"'Antwort-Vorgaben'!A52","v":"mittel"},{"$f":"COUNTIF(Fragebogen!$AP$4:$AP$54,A6)","v":0},0]
[{"$f":"'Antwort-Vorgaben'!A53","v":"nicht so gesund"},{"$f":"COUNTIF(Fragebogen!$AP$4:$AP$54,A7)","v":0},0]
[{"$f":"'Antwort-Vorgaben'!A54","v":"überhaupt nicht gesund"},{"$f":"COUNTIF(Fragebogen!$AP$4:$AP$54,A8)","v":0},0]
[{"$f":"'Antwort-Vorgaben'!A55","v":"keine Antwort"},{"$f":"COUNTIF(Fragebogen!$AP$4:$AP$54,A9)","v":0},0]
["Summe",{"$f":"SUM(B4:B9)","v":0},{"$f":"SUM(C4:C9)","v":0}]

{"sheet":"A42","index":46,"n_rows":7,"n_cols":3,"rows_kept":7,"cut":false,"hidden":false,"merged":[]}
[{"$f":"Fragen!$B$55","v":"Machen Sie regelmäßig Sport oder Bewegung?"}]
[]
["Werte","Anzahl absolut","Anzahl in Prozent"]
[{"$f":"'Antwort-Vorgaben'!A57","v":"Ja"},{"$f":"COUNTIF(Fragebogen!$AQ$4:$AQ$54,A4)","v":0},{"$f":"IF(B4>0,B4/$B$7,0)","v":0}]
[{"$f":"'Antwort-Vorgaben'!A58","v":"Nein"},{"$f":"COUNTIF(Fragebogen!$AQ$4:$AQ$54,A5)","v":0},{"$f":"IF(B5>0,B5/$B$7,0)","v":0}]
[{"$f":"'Antwort-Vorgaben'!A59","v":"keine Antwort"},{"$f":"COUNTIF(Fragebogen!$AQ$4:$AQ$54,A6)","v":0},{"$f":"IF(B6>0,B6/$B$7,0)","v":0}]
["Summe",{"$f":"SUM(B4:B6)","v":0},{"$f":"SUM(C4:C6)","v":0}]

{"sheet":"A42a","index":47,"n_rows":8,"n_cols":3,"rows_kept":8,"cut":false,"hidden":false,"merged":[]}
[{"$f":"Fragen!$B$56","v":"Ich mache so oft Sport pro Woche"}]
[]
["Werte","Anzahl absolut","Anzahl in Prozent"]
[{"$f":"'Antwort-Vorgaben'!A61","v":"1 bis 2 Mal"},{"$f":"COUNTIF(Fragebogen!$AR$4:$AR$54,A4)","v":0},{"$f":"IF(B4>0,B4/$B$8,0)","v":0}]
[{"$f":"'Antwort-Vorgaben'!A62","v":"3 bis 4 Mal"},{"$f":"COUNTIF(Fragebogen!$AR$4:$AR$54,A5)","v":0},{"$f":"IF(B5>0,B5/$B$8,0)","v":0}]
[{"$f":"'Antwort-Vorgaben'!A63","v":"5 Mal oder öfter"},{"$f":"COUNTIF(Fragebogen!$AR$4:$AR$54,A6)","v":0},0]
[{"$f":"'Antwort-Vorgaben'!A64","v":"keine Antwort"},{"$f":"COUNTIF(Fragebogen!$AR$4:$AR$54,A7)","v":0},0]
["Summe",{"$f":"SUM(B4:B7)","v":0},{"$f":"SUM(C4:C7)","v":0}]

{"sheet":"A43","index":48,"n_rows":10,"n_cols":3,"rows_kept":10,"cut":false,"hidden":false,"merged":[]}
[{"$f":"Fragen!$B$57","v":"In der Arbeit habe ich genug Bewegung"}]
[]
["Werte","Anzahl absolut","Anzahl in Prozent"]
[{"$f":"'Antwort-Vorgaben'!A66","v":"immer"},{"$f":"COUNTIF(Fragebogen!$AS$4:$AS$54,A4)","v":0},{"$f":"IF(B4>0,B4/$B$10,0)","v":0}]
[{"$f":"'Antwort-Vorgaben'!A67","v":"oft"},{"$f":"COUNTIF(Fragebogen!$AS$4:$AS$54,A5)","v":0},{"$f":"IF(B5>0,B5/$B$10,0)","v":0}]
[{"$f":"'Antwort-Vorgaben'!A68","v":"selten"},{"$f":"COUNTIF(Fragebogen!$AS$4:$AS$54,A6)","v":0},0]
[{"$f":"'Antwort-Vorgaben'!A69","v":"nie"},{"$f":"COUNTIF(Fragebogen!$AS$4:$AS$54,A7)","v":0},0]
[{"$f":"'Antwort-Vorgaben'!A70","v":"weiß ich nicht"},{"$f":"COUNTIF(Fragebogen!$AS$4:$AS$54,A8)","v":0},0]
[{"$f":"'Antwort-Vorgaben'!A71","v":"keine Antwort"},{"$f":"COUNTIF(Fragebogen!$AS$4:$AS$54,A9)","v":0},0]
["Summe",{"$f":"SUM(B4:B9)","v":0},{"$f":"SUM(C4:C9)","v":0}]

{"sheet":"A44","index":49,"n_rows":10,"n_cols":3,"rows_kept":10,"cut":false,"hidden":false,"merged":[]}
[{"$f":"Fragen!$B$58","v":"Ich möchte mich während der Arbeit mehr bewegen"}]
[]
["Werte","Anzahl absolut","Anzahl in Prozent"]
[{"$f":"'Antwort-Vorgaben'!A66","v":"immer"},{"$f":"COUNTIF(Fragebogen!$AT$4:$AT$54,A4)","v":0},{"$f":"IF(B4>0,B4/$B$10,0)","v":0}]
[{"$f":"'Antwort-Vorgaben'!A67","v":"oft"},{"$f":"COUNTIF(Fragebogen!$AT$4:$AT$54,A5)","v":0},{"$f":"IF(B5>0,B5/$B$10,0)","v":0}]
[{"$f":"'Antwort-Vorgaben'!A68","v":"selten"},{"$f":"COUNTIF(Fragebogen!$AT$4:$AT$54,A6)","v":0},0]
[{"$f":"'Antwort-Vorgaben'!A69","v":"nie"},{"$f":"COUNTIF(Fragebogen!$AT$4:$AT$54,A7)","v":0},0]
[{"$f":"'Antwort-Vorgaben'!A70","v":"weiß ich nicht"},{"$f":"COUNTIF(Fragebogen!$AT$4:$AT$54,A8)","v":0},0]
[{"$f":"'Antwort-Vorgaben'!A71","v":"keine Antwort"},{"$f":"COUNTIF(Fragebogen!$AT$4:$AT$54,A9)","v":0},0]
["Summe",{"$f":"SUM(B4:B9)","v":0},{"$f":"SUM(C4:C9)","v":0}]

{"sheet":"A45","index":50,"n_rows":10,"n_cols":3,"rows_kept":10,"cut":false,"hidden":false,"merged":[]}
[{"$f":"Fragen!$B$59","v":"In der Arbeit kann ich mich gesund ernähren"}]
[]
["Werte","Anzahl absolut","Anzahl in Prozent"]
[{"$f":"'Antwort-Vorgaben'!A66","v":"immer"},{"$f":"COUNTIF(Fragebogen!$AU$4:$AU$54,A4)","v":0},{"$f":"IF(B4>0,B4/$B$10,0)","v":0}]
[{"$f":"'Antwort-Vorgaben'!A67","v":"oft"},{"$f":"COUNTIF(Fragebogen!$AU$4:$AU$54,A5)","v":0},{"$f":"IF(B5>0,B5/$B$10,0)","v":0}]
[{"$f":"'Antwort-Vorgaben'!A68","v":"selten"},{"$f":"COUNTIF(Fragebogen!$AU$4:$AU$54,A6)","v":0},0]
[{"$f":"'Antwort-Vorgaben'!A69","v":"nie"},{"$f":"COUNTIF(Fragebogen!$AU$4:$AU$54,A7)","v":0},0]
[{"$f":"'Antwort-Vorgaben'!A70","v":"weiß ich nicht"},{"$f":"COUNTIF(Fragebogen!$AU$4:$AU$54,A8)","v":0},0]
[{"$f":"'Antwort-Vorgaben'!A71","v":"keine Antwort"},{"$f":"COUNTIF(Fragebogen!$AU$4:$AU$54,A9)","v":0},0]
["Summe",{"$f":"SUM(B4:B9)","v":0},{"$f":"SUM(C4:C9)","v":0}]

{"sheet":"A46","index":51,"n_rows":10,"n_cols":3,"rows_kept":10,"cut":false,"hidden":false,"merged":[]}
[{"$f":"Fragen!$B$60","v":"Ich möchte mich gesünder ernähren"}]
[]
["Werte","Anzahl absolut","Anzahl in Prozent"]
[{"$f":"'Antwort-Vorgaben'!A66","v":"immer"},{"$f":"COUNTIF(Fragebogen!$AV$4:$AV$54,A4)","v":0},{"$f":"IF(B4>0,B4/$B$10,0)","v":0}]
[{"$f":"'Antwort-Vorgaben'!A67","v":"oft"},{"$f":"COUNTIF(Fragebogen!$AV$4:$AV$54,A5)","v":0},{"$f":"IF(B5>0,B5/$B$10,0)","v":0}]
[{"$f":"'Antwort-Vorgaben'!A68","v":"selten"},{"$f":"COUNTIF(Fragebogen!$AV$4:$AV$54,A6)","v":0},0]
[{"$f":"'Antwort-Vorgaben'!A69","v":"nie"},{"$f":"COUNTIF(Fragebogen!$AV$4:$AV$54,A7)","v":0},0]
[{"$f":"'Antwort-Vorgaben'!A70","v":"weiß ich nicht"},{"$f":"COUNTIF(Fragebogen!$AV$4:$AV$54,A8)","v":0},0]
[{"$f":"'Antwort-Vorgaben'!A71","v":"keine Antwort"},{"$f":"COUNTIF(Fragebogen!$AV$4:$AV$54,A9)","v":0},0]
["Summe",{"$f":"SUM(B4:B9)","v":0},{"$f":"SUM(C4:C9)","v":0}]

{"sheet":"A47","index":52,"n_rows":7,"n_cols":3,"rows_kept":7,"cut":false,"hidden":false,"merged":[]}
[{"$f":"Fragen!$B$61","v":"Rauchen Sie?"}]
[]
["Werte","Anzahl absolut","Anzahl in Prozent"]
[{"$f":"'Antwort-Vorgaben'!A73","v":"Ja"},{"$f":"COUNTIF(Fragebogen!$AW$4:$AW$54,A4)","v":0},{"$f":"IF(B4>0,B4/$B$7,0)","v":0}]
[{"$f":"'Antwort-Vorgaben'!A74","v":"Nein"},{"$f":"COUNTIF(Fragebogen!$AW$4:$AW$54,A5)","v":0},{"$f":"IF(B5>0,B5/$B$7,0)","v":0}]
[{"$f":"'Antwort-Vorgaben'!A75","v":"keine Antwort"},{"$f":"COUNTIF(Fragebogen!$AW$4:$AW$54,A6)","v":0},{"$f":"IF(B6>0,B6/$B$7,0)","v":0}]
["Summe",{"$f":"SUM(B4:B6)","v":0},{"$f":"SUM(C4:C6)","v":0}]

{"sheet":"A48","index":53,"n_rows":11,"n_cols":3,"rows_kept":11,"cut":false,"hidden":false,"merged":[]}
[{"$f":"Fragen!$B$62","v":"Wie viele Zigaretten rauchen Sie am Tag?"}]
[]
["Werte","Anzahl absolut","Anzahl in Prozent"]
[{"$f":"'Antwort-Vorgaben'!A77","v":"1 bis 2 "},{"$f":"COUNTIF(Fragebogen!$AX$4:$AX$54,A4)","v":0},{"$f":"IF(B4>0,B4/$B$11,0)","v":0}]
[{"$f":"'Antwort-Vorgaben'!A78","v":"3 bis 5"},{"$f":"COUNTIF(Fragebogen!$AX$4:$AX$54,A5)","v":0},{"$f":"IF(B5>0,B5/$B$11,0)","v":0}]
[{"$f":"'Antwort-Vorgaben'!A79","v":"6 bis 10"},{"$f":"COUNTIF(Fragebogen!$AX$4:$AX$54,A6)","v":0},0]
[{"$f":"'Antwort-Vorgaben'!A80","v":"11 bis 15"},{"$f":"COUNTIF(Fragebogen!$AX$4:$AX$54,A7)","v":0},0]
[{"$f":"'Antwort-Vorgaben'!A81","v":"16 bis 20"},{"$f":"COUNTIF(Fragebogen!$AX$4:$AX$54,A8)","v":0},0]
[{"$f":"'Antwort-Vorgaben'!A82","v":"mehr als 20"},{"$f":"COUNTIF(Fragebogen!$AX$4:$AX$54,A9)","v":0},0]
[{"$f":"'Antwort-Vorgaben'!A83","v":"keine Antwort"},{"$f":"COUNTIF(Fragebogen!$AX$4:$AX$54,A10)","v":0},0]
["Summe",{"$f":"SUM(B4:B10)","v":0},{"$f":"SUM(C4:C10)","v":0}]

{"sheet":"A49","index":54,"n_rows":7,"n_cols":3,"rows_kept":7,"cut":false,"hidden":false,"merged":[]}
[{"$f":"Fragen!$B$63","v":"Ich möchte mit dem Rauchen aufhören"}]
[]
["Werte","Anzahl absolut","Anzahl in Prozent"]
[{"$f":"'Antwort-Vorgaben'!A85","v":"Ja"},{"$f":"COUNTIF(Fragebogen!$AY$4:$AY$54,A4)","v":0},{"$f":"IF(B4>0,B4/$B$7,0)","v":0}]
[{"$f":"'Antwort-Vorgaben'!A86","v":"Nein"},{"$f":"COUNTIF(Fragebogen!$AY$4:$AY$54,A5)","v":0},{"$f":"IF(B5>0,B5/$B$7,0)","v":0}]
[{"$f":"'Antwort-Vorgaben'!A87","v":"keine Antwort"},{"$f":"COUNTIF(Fragebogen!$AY$4:$AY$54,A6)","v":0},{"$f":"IF(B6>0,B6/$B$7,0)","v":0}]
["Summe",{"$f":"SUM(B4:B6)","v":0},{"$f":"SUM(C4:C6)","v":0}]

{"sheet":"A50","index":55,"n_rows":7,"n_cols":3,"rows_kept":7,"cut":false,"hidden":false,"merged":[]}
[{"$f":"Fragen!$B$64","v":"Ich bin dieses Jahr schon einmal arbeiten gegangen, obwohl ich krank war"}]
[]
["Werte","Anzahl absolut","Anzahl in Prozent"]
[{"$f":"'Antwort-Vorgaben'!A85","v":"Ja"},{"$f":"COUNTIF(Fragebogen!$AZ$4:$AZ$54,A4)","v":0},{"$f":"IF(B4>0,B4/$B$7,0)","v":0}]
[{"$f":"'Antwort-Vorgaben'!A86","v":"Nein"},{"$f":"COUNTIF(Fragebogen!$AZ$4:$AZ$54,A5)","v":0},{"$f":"IF(B5>0,B5/$B$7,0)","v":0}]
[{"$f":"'Antwort-Vorgaben'!A87","v":"keine Antwort"},{"$f":"COUNTIF(Fragebogen!$AZ$4:$AZ$54,A6)","v":0},{"$f":"IF(B6>0,B6/$B$7,0)","v":0}]
["Summe",{"$f":"SUM(B4:B6)","v":0},{"$f":"SUM(C4:C6)","v":0}]

{"sheet":"A51","index":56,"n_rows":10,"n_cols":3,"rows_kept":10,"cut":false,"hidden":false,"merged":[]}
[{"$f":"Fragen!$B$67","v":"Wie oft haben Sie starke Kopfschmerzen?"}]
[]
["Werte","Anzahl absolut","Anzahl in Prozent"]
[{"$f":"'Antwort-Vorgaben'!A91","v":"immer"},{"$f":"COUNTIF(Fragebogen!$BA$4:$BA$54,A4)","v":0},{"$f":"IF(B4>0,B4/$B$10,0)","v":0}]
[{"$f":"'Antwort-Vorgaben'!A92","v":"oft"},{"$f":"COUNTIF(Fragebogen!$BA$4:$BA$54,A5)","v":0},{"$f":"IF(B5>0,B5/$B$10,0)","v":0}]
[{"$f":"'Antwort-Vorgaben'!A93","v":"selten"},{"$f":"COUNTIF(Fragebogen!$BA$4:$BA$54,A6)","v":0},0]
[{"$f":"'Antwort-Vorgaben'!A94","v":"nie"},{"$f":"COUNTIF(Fragebogen!$BA$4:$BA$54,A7)","v":0},0]
[{"$f":"'Antwort-Vorgaben'!A95","v":"weiß ich nicht"},{"$f":"COUNTIF(Fragebogen!$BA$4:$BA$54,A8)","v":0},0]
[{"$f":"'Antwort-Vorgaben'!A96","v":"keine Antwort"},{"$f":"COUNTIF(Fragebogen!$BA$4:$BA$54,A9)","v":0},0]
["Summe",{"$f":"SUM(B4:B9)","v":0},{"$f":"SUM(C4:C9)","v":0}]

{"sheet":"A52","index":57,"n_rows":10,"n_cols":3,"rows_kept":10,"cut":false,"hidden":false,"merged":[]}
[{"$f":"Fragen!$B$68","v":"Wie oft haben Sie Schmerzen am Nacken und in der Schulter?"}]
[]
["Werte","Anzahl absolut","Anzahl in Prozent"]
[{"$f":"'Antwort-Vorgaben'!A91","v":"immer"},{"$f":"COUNTIF(Fragebogen!$BB$4:$BB$54,A4)","v":0},{"$f":"IF(B4>0,B4/$B$10,0)","v":0}]
[{"$f":"'Antwort-Vorgaben'!A92","v":"oft"},{"$f":"COUNTIF(Fragebogen!$BB$4:$BB$54,A5)","v":0},{"$f":"IF(B5>0,B5/$B$10,0)","v":0}]
[{"$f":"'Antwort-Vorgaben'!A93","v":"selten"},{"$f":"COUNTIF(Fragebogen!$BB$4:$BB$54,A6)","v":0},0]
[{"$f":"'Antwort-Vorgaben'!A94","v":"nie"},{"$f":"COUNTIF(Fragebogen!$BB$4:$BB$54,A7)","v":0},0]
[{"$f":"'Antwort-Vorgaben'!A95","v":"weiß ich nicht"},{"$f":"COUNTIF(Fragebogen!$BB$4:$BB$54,A8)","v":0},0]
[{"$f":"'Antwort-Vorgaben'!A96","v":"keine Antwort"},{"$f":"COUNTIF(Fragebogen!$BB$4:$BB$54,A9)","v":0},0]
["Summe",{"$f":"SUM(B4:B9)","v":0},{"$f":"SUM(C4:C9)","v":0}]

{"sheet":"A53","index":58,"n_rows":10,"n_cols":3,"rows_kept":10,"cut":false,"hidden":false,"merged":[]}
[{"$f":"Fragen!$B$69","v":"Wie oft haben Sie Schmerzen in den Armen und Händen?"}]
[]
["Werte","Anzahl absolut","Anzahl in Prozent"]
[{"$f":"'Antwort-Vorgaben'!A91","v":"immer"},{"$f":"COUNTIF(Fragebogen!$BC$4:$BC$54,A4)","v":0},{"$f":"IF(B4>0,B4/$B$10,0)","v":0}]
[{"$f":"'Antwort-Vorgaben'!A92","v":"oft"},{"$f":"COUNTIF(Fragebogen!$BC$4:$BC$54,A5)","v":0},{"$f":"IF(B5>0,B5/$B$10,0)","v":0}]
[{"$f":"'Antwort-Vorgaben'!A93","v":"selten"},{"$f":"COUNTIF(Fragebogen!$BC$4:$BC$54,A6)","v":0},0]
[{"$f":"'Antwort-Vorgaben'!A94","v":"nie"},{"$f":"COUNTIF(Fragebogen!$BC$4:$BC$54,A7)","v":0},0]
[{"$f":"'Antwort-Vorgaben'!A95","v":"weiß ich nicht"},{"$f":"COUNTIF(Fragebogen!$BC$4:$BC$54,A8)","v":0},0]
[{"$f":"'Antwort-Vorgaben'!A96","v":"keine Antwort"},{"$f":"COUNTIF(Fragebogen!$BC$4:$BC$54,A9)","v":0},0]
["Summe",{"$f":"SUM(B4:B9)","v":0},{"$f":"SUM(C4:C9)","v":0}]

{"sheet":"A54","index":59,"n_rows":10,"n_cols":3,"rows_kept":10,"cut":false,"hidden":false,"merged":[]}
[{"$f":"Fragen!$B$70","v":"Wie oft haben Sie Schmerzen in den Beinen und Füßen?"}]
[]
["Werte","Anzahl absolut","Anzahl in Prozent"]
[{"$f":"'Antwort-Vorgaben'!A91","v":"immer"},{"$f":"COUNTIF(Fragebogen!$BD$4:$BD$54,A4)","v":0},{"$f":"IF(B4>0,B4/$B$10,0)","v":0}]
[{"$f":"'Antwort-Vorgaben'!A92","v":"oft"},{"$f":"COUNTIF(Fragebogen!$BD$4:$BD$54,A5)","v":0},{"$f":"IF(B5>0,B5/$B$10,0)","v":0}]
[{"$f":"'Antwort-Vorgaben'!A93","v":"selten"},{"$f":"COUNTIF(Fragebogen!$BD$4:$BD$54,A6)","v":0},0]
[{"$f":"'Antwort-Vorgaben'!A94","v":"nie"},{"$f":"COUNTIF(Fragebogen!$BD$4:$BD$54,A7)","v":0},0]
[{"$f":"'Antwort-Vorgaben'!A95","v":"weiß ich nicht"},{"$f":"COUNTIF(Fragebogen!$BD$4:$BD$54,A8)","v":0},0]
[{"$f":"'Antwort-Vorgaben'!A96","v":"keine Antwort"},{"$f":"COUNTIF(Fragebogen!$BD$4:$BD$54,A9)","v":0},0]
["Summe",{"$f":"SUM(B4:B9)","v":0},{"$f":"SUM(C4:C9)","v":0}]

{"sheet":"A55","index":60,"n_rows":10,"n_cols":3,"rows_kept":10,"cut":false,"hidden":false,"merged":[]}
[{"$f":"Fragen!$B$71","v":"Wie oft sind Sie müde oder erschöpft?"}]
[]
["Werte","Anzahl absolut","Anzahl in Prozent"]
[{"$f":"'Antwort-Vorgaben'!A91","v":"immer"},{"$f":"COUNTIF(Fragebogen!$BE$4:$BE$54,A4)","v":0},{"$f":"IF(B4>0,B4/$B$10,0)","v":0}]
[{"$f":"'Antwort-Vorgaben'!A92","v":"oft"},{"$f":"COUNTIF(Fragebogen!$BE$4:$BE$54,A5)","v":0},{"$f":"IF(B5>0,B5/$B$10,0)","v":0}]
[{"$f":"'Antwort-Vorgaben'!A93","v":"selten"},{"$f":"COUNTIF(Fragebogen!$BE$4:$BE$54,A6)","v":0},0]
[{"$f":"'Antwort-Vorgaben'!A94","v":"nie"},{"$f":"COUNTIF(Fragebogen!$BE$4:$BE$54,A7)","v":0},0]
[{"$f":"'Antwort-Vorgaben'!A95","v":"weiß ich nicht"},{"$f":"COUNTIF(Fragebogen!$BE$4:$BE$54,A8)","v":0},0]
[{"$f":"'Antwort-Vorgaben'!A96","v":"keine Antwort"},{"$f":"COUNTIF(Fragebogen!$BE$4:$BE$54,A9)","v":0},0]
["Summe",{"$f":"SUM(B4:B9)","v":0},{"$f":"SUM(C4:C9)","v":0}]

{"sheet":"A56","index":61,"n_rows":10,"n_cols":3,"rows_kept":10,"cut":false,"hidden":false,"merged":[]}
[{"$f":"Fragen!$B$72","v":"Wie oft haben Sie Augen-Schmerzen?"}]
[]
["Werte","Anzahl absolut","Anzahl in Prozent"]
[{"$f":"'Antwort-Vorgaben'!A91","v":"immer"},{"$f":"COUNTIF(Fragebogen!$BF$4:$BF$54,A4)","v":0},{"$f":"IF(B4>0,B4/$B$10,0)","v":0}]
[{"$f":"'Antwort-Vorgaben'!A92","v":"oft"},{"$f":"COUNTIF(Fragebogen!$BF$4:$BF$54,A5)","v":0},{"$f":"IF(B5>0,B5/$B$10,0)","v":0}]
[{"$f":"'Antwort-Vorgaben'!A93","v":"selten"},{"$f":"COUNTIF(Fragebogen!$BF$4:$BF$54,A6)","v":0},0]
[{"$f":"'Antwort-Vorgaben'!A94","v":"nie"},{"$f":"COUNTIF(Fragebogen!$BF$4:$BF$54,A7)","v":0},0]
[{"$f":"'Antwort-Vorgaben'!A95","v":"weiß ich nicht"},{"$f":"COUNTIF(Fragebogen!$BF$4:$BF$54,A8)","v":0},0]
[{"$f":"'Antwort-Vorgaben'!A96","v":"keine Antwort"},{"$f":"COUNTIF(Fragebogen!$BF$4:$BF$54,A9)","v":0},0]
["Summe",{"$f":"SUM(B4:B9)","v":0},{"$f":"SUM(C4:C9)","v":0}]

{"sheet":"A57","index":62,"n_rows":10,"n_cols":3,"rows_kept":10,"cut":false,"hidden":false,"merged":[]}
[{"$f":"Fragen!$B$73","v":"Wie oft ist Ihnen schwindelig?"}]
[]
["Werte","Anzahl absolut","Anzahl in Prozent"]
[{"$f":"'Antwort-Vorgaben'!A91","v":"immer"},{"$f":"COUNTIF(Fragebogen!$BG$4:$BG$54,A4)","v":0},{"$f":"IF(B4>0,B4/$B$10,0)","v":0}]
[{"$f":"'Antwort-Vorgaben'!A92","v":"oft"},{"$f":"COUNTIF(Fragebogen!$BG$4:$BG$54,A5)","v":0},{"$f":"IF(B5>0,B5/$B$10,0)","v":0}]
[{"$f":"'Antwort-Vorgaben'!A93","v":"selten"},{"$f":"COUNTIF(Fragebogen!$BG$4:$BG$54,A6)","v":0},0]
[{"$f":"'Antwort-Vorgaben'!A94","v":"nie"},{"$f":"COUNTIF(Fragebogen!$BG$4:$BG$54,A7)","v":0},0]
[{"$f":"'Antwort-Vorgaben'!A95","v":"weiß ich nicht"},{"$f":"COUNTIF(Fragebogen!$BG$4:$BG$54,A8)","v":0},0]
[{"$f":"'Antwort-Vorgaben'!A96","v":"keine Antwort"},{"$f":"COUNTIF(Fragebogen!$BG$4:$BG$54,A9)","v":0},0]
["Summe",{"$f":"SUM(B4:B9)","v":0},{"$f":"SUM(C4:C9)","v":0}]

{"sheet":"A58","index":63,"n_rows":10,"n_cols":3,"rows_kept":10,"cut":false,"hidden":false,"merged":[]}
[{"$f":"Fragen!$B$76","v":"An meinem Arbeits-Platz ist es sehr laut"}]
[]
["Werte","Anzahl absolut","Anzahl in Prozent"]
[{"$f":"'Antwort-Vorgaben'!A100","v":"immer"},{"$f":"COUNTIF(Fragebogen!$BH$4:$BH$54,A4)","v":0},{"$f":"IF(B4>0,B4/$B$10,0)","v":0}]
[{"$f":"'Antwort-Vorgaben'!A101","v":"oft"},{"$f":"COUNTIF(Fragebogen!$BH$4:$BH$54,A5)","v":0},{"$f":"IF(B5>0,B5/$B$10,0)","v":0}]
[{"$f":"'Antwort-Vorgaben'!A102","v":"selten"},{"$f":"COUNTIF(Fragebogen!$BH$4:$BH$54,A6)","v":0},0]
[{"$f":"'Antwort-Vorgaben'!A103","v":"nie"},{"$f":"COUNTIF(Fragebogen!$BH$4:$BH$54,A7)","v":0},0]
[{"$f":"'Antwort-Vorgaben'!A104","v":"weiß ich nicht"},{"$f":"COUNTIF(Fragebogen!$BH$4:$BH$54,A8)","v":0},0]
[{"$f":"'Antwort-Vorgaben'!A105","v":"keine Antwort"},{"$f":"COUNTIF(Fragebogen!$BH$4:$BH$54,A9)","v":0},0]
["Summe",{"$f":"SUM(B4:B9)","v":0},{"$f":"SUM(C4:C9)","v":0}]

{"sheet":"A59","index":64,"n_rows":10,"n_cols":3,"rows_kept":10,"cut":false,"hidden":false,"merged":[]}
[{"$f":"Fragen!$B$77","v":"An meinem Arbeits-Platz ist es sehr heiß oder kalt"}]
[]
["Werte","Anzahl absolut","Anzahl in Prozent"]
[{"$f":"'Antwort-Vorgaben'!A100","v":"immer"},{"$f":"COUNTIF(Fragebogen!$BI$4:$BI$54,A4)","v":0},{"$f":"IF(B4>0,B4/$B$10,0)","v":0}]
[{"$f":"'Antwort-Vorgaben'!A101","v":"oft"},{"$f":"COUNTIF(Fragebogen!$BI$4:$BI$54,A5)","v":0},{"$f":"IF(B5>0,B5/$B$10,0)","v":0}]
[{"$f":"'Antwort-Vorgaben'!A102","v":"selten"},{"$f":"COUNTIF(Fragebogen!$BI$4:$BI$54,A6)","v":0},0]
[{"$f":"'Antwort-Vorgaben'!A103","v":"nie"},{"$f":"COUNTIF(Fragebogen!$BI$4:$BI$54,A7)","v":0},0]
[{"$f":"'Antwort-Vorgaben'!A104","v":"weiß ich nicht"},{"$f":"COUNTIF(Fragebogen!$BI$4:$BI$54,A8)","v":0},0]
[{"$f":"'Antwort-Vorgaben'!A105","v":"keine Antwort"},{"$f":"COUNTIF(Fragebogen!$BI$4:$BI$54,A9)","v":0},0]
["Summe",{"$f":"SUM(B4:B9)","v":0},{"$f":"SUM(C4:C9)","v":0}]

{"sheet":"A60","index":65,"n_rows":10,"n_cols":3,"rows_kept":10,"cut":false,"hidden":false,"merged":[]}
[{"$f":"Fragen!$B$78","v":"An meinem Arbeits-Platz ist es sehr staubig"}]
[]
["Werte","Anzahl absolut","Anzahl in Prozent"]
[{"$f":"'Antwort-Vorgaben'!A100","v":"immer"},{"$f":"COUNTIF(Fragebogen!$BJ$4:$BJ$54,A4)","v":0},{"$f":"IF(B4>0,B4/$B$10,0)","v":0}]
[{"$f":"'Antwort-Vorgaben'!A101","v":"oft"},{"$f":"COUNTIF(Fragebogen!$BJ$4:$BJ$54,A5)","v":0},{"$f":"IF(B5>0,B5/$B$10,0)","v":0}]
[{"$f":"'Antwort-Vorgaben'!A102","v":"selten"},{"$f":"COUNTIF(Fragebogen!$BJ$4:$BJ$54,A6)","v":0},0]
[{"$f":"'Antwort-Vorgaben'!A103","v":"nie"},{"$f":"COUNTIF(Fragebogen!$BJ$4:$BJ$54,A7)","v":0},0]
[{"$f":"'Antwort-Vorgaben'!A104","v":"weiß ich nicht"},{"$f":"COUNTIF(Fragebogen!$BJ$4:$BJ$54,A8)","v":0},0]
[{"$f":"'Antwort-Vorgaben'!A105","v":"keine Antwort"},{"$f":"COUNTIF(Fragebogen!$BJ$4:$BJ$54,A9)","v":0},0]
["Summe",{"$f":"SUM(B4:B9)","v":0},{"$f":"SUM(C4:C9)","v":0}]

{"sheet":"A61","index":66,"n_rows":10,"n_cols":3,"rows_kept":10,"cut":false,"hidden":false,"merged":[]}
[{"$f":"Fragen!$B$79","v":"An meinem Arbeits-Platz ist sehr schlechte Luft"}]
[]
["Werte","Anzahl absolut","Anzahl in Prozent"]
[{"$f":"'Antwort-Vorgaben'!A100","v":"immer"},{"$f":"COUNTIF(Fragebogen!$BK$4:$BK$54,A4)","v":0},{"$f":"IF(B4>0,B4/$B$10,0)","v":0}]
[{"$f":"'Antwort-Vorgaben'!A101","v":"oft"},{"$f":"COUNTIF(Fragebogen!$BK$4:$BK$54,A5)","v":0},{"$f":"IF(B5>0,B5/$B$10,0)","v":0}]
[{"$f":"'Antwort-Vorgaben'!A102","v":"selten"},{"$f":"COUNTIF(Fragebogen!$BK$4:$BK$54,A6)","v":0},0]
[{"$f":"'Antwort-Vorgaben'!A103","v":"nie"},{"$f":"COUNTIF(Fragebogen!$BK$4:$BK$54,A7)","v":0},0]
[{"$f":"'Antwort-Vorgaben'!A104","v":"weiß ich nicht"},{"$f":"COUNTIF(Fragebogen!$BK$4:$BK$54,A8)","v":0},0]
[{"$f":"'Antwort-Vorgaben'!A105","v":"keine Antwort"},{"$f":"COUNTIF(Fragebogen!$BK$4:$BK$54,A9)","v":0},0]
["Summe",{"$f":"SUM(B4:B9)","v":0},{"$f":"SUM(C4:C9)","v":0}]

{"sheet":"A62","index":67,"n_rows":10,"n_cols":3,"rows_kept":10,"cut":false,"hidden":false,"merged":[]}
[{"$f":"Fragen!$B$80","v":"An meinem Arbeits-Platz kann ich gut arbeiten"}]
[]
["Werte","Anzahl absolut","Anzahl in Prozent"]
[{"$f":"'Antwort-Vorgaben'!A100","v":"immer"},{"$f":"COUNTIF(Fragebogen!$BL$4:$BL$54,A4)","v":0},{"$f":"IF(B4>0,B4/$B$10,0)","v":0}]
[{"$f":"'Antwort-Vorgaben'!A101","v":"oft"},{"$f":"COUNTIF(Fragebogen!$BL$4:$BL$54,A5)","v":0},{"$f":"IF(B5>0,B5/$B$10,0)","v":0}]
[{"$f":"'Antwort-Vorgaben'!A102","v":"selten"},{"$f":"COUNTIF(Fragebogen!$BL$4:$BL$54,A6)","v":0},0]
[{"$f":"'Antwort-Vorgaben'!A103","v":"nie"},{"$f":"COUNTIF(Fragebogen!$BL$4:$BL$54,A7)","v":0},0]
[{"$f":"'Antwort-Vorgaben'!A104","v":"weiß ich nicht"},{"$f":"COUNTIF(Fragebogen!$BL$4:$BL$54,A8)","v":0},0]
[{"$f":"'Antwort-Vorgaben'!A105","v":"keine Antwort"},{"$f":"COUNTIF(Fragebogen!$BL$4:$BL$54,A9)","v":0},0]
["Summe",{"$f":"SUM(B4:B9)","v":0},{"$f":"SUM(C4:C9)","v":0}]

{"sheet":"A63","index":68,"n_rows":10,"n_cols":3,"rows_kept":10,"cut":false,"hidden":false,"merged":[]}
[{"$f":"Fragen!$B$83","v":"Ich kann in der Arbeit überall gut alleine hinkommen"}]
[]
["Werte","Anzahl absolut","Anzahl in Prozent"]
[{"$f":"'Antwort-Vorgaben'!A109","v":"immer"},{"$f":"COUNTIF(Fragebogen!$BM$4:$BM$54,A4)","v":0},{"$f":"IF(B4>0,B4/$B$10,0)","v":0}]
[{"$f":"'Antwort-Vorgaben'!A110","v":"oft"},{"$f":"COUNTIF(Fragebogen!$BM$4:$BM$54,A5)","v":0},{"$f":"IF(B5>0,B5/$B$10,0)","v":0}]
[{"$f":"'Antwort-Vorgaben'!A111","v":"selten"},{"$f":"COUNTIF(Fragebogen!$BM$4:$BM$54,A6)","v":0},0]
[{"$f":"'Antwort-Vorgaben'!A112","v":"nie"},{"$f":"COUNTIF(Fragebogen!$BM$4:$BM$54,A7)","v":0},0]
[{"$f":"'Antwort-Vorgaben'!A113","v":"weiß ich nicht"},{"$f":"COUNTIF(Fragebogen!$BM$4:$BM$54,A8)","v":0},0]
[{"$f":"'Antwort-Vorgaben'!A114","v":"keine Antwort"},{"$f":"COUNTIF(Fragebogen!$BM$4:$BM$54,A9)","v":0},0]
["Summe",{"$f":"SUM(B4:B9)","v":0},{"$f":"SUM(C4:C9)","v":0}]

{"sheet":"A64","index":69,"n_rows":10,"n_cols":3,"rows_kept":10,"cut":false,"hidden":false,"merged":[]}
[{"$f":"Fragen!$B$84","v":"In der Arbeit kann ich alle wichtigen Dinge selbst gut erreichen (z.B. Lichtschalter oder Steckdosen)"}]
[]
["Werte","Anzahl absolut","Anzahl in Prozent"]
[{"$f":"'Antwort-Vorgaben'!A109","v":"immer"},{"$f":"COUNTIF(Fragebogen!$BN$4:$BN$54,A4)","v":0},{"$f":"IF(B4>0,B4/$B$10,0)","v":0}]
[{"$f":"'Antwort-Vorgaben'!A110","v":"oft"},{"$f":"COUNTIF(Fragebogen!$BN$4:$BN$54,A5)","v":0},{"$f":"IF(B5>0,B5/$B$10,0)","v":0}]
[{"$f":"'Antwort-Vorgaben'!A111","v":"selten"},{"$f":"COUNTIF(Fragebogen!$BN$4:$BN$54,A6)","v":0},0]
[{"$f":"'Antwort-Vorgaben'!A112","v":"nie"},{"$f":"COUNTIF(Fragebogen!$BN$4:$BN$54,A7)","v":0},0]
[{"$f":"'Antwort-Vorgaben'!A113","v":"weiß ich nicht"},{"$f":"COUNTIF(Fragebogen!$BN$4:$BN$54,A8)","v":0},0]
[{"$f":"'Antwort-Vorgaben'!A114","v":"keine Antwort"},{"$f":"COUNTIF(Fragebogen!$BN$4:$BN$54,A9)","v":0},0]
["Summe",{"$f":"SUM(B4:B9)","v":0},{"$f":"SUM(C4:C9)","v":0}]

{"sheet":"A65","index":70,"n_rows":10,"n_cols":3,"rows_kept":10,"cut":false,"hidden":false,"merged":[]}
[{"$f":"Fragen!$B$85","v":"Die Informationen die ich hier bekomme, kann ich gut verstehen"}]
[]
["Werte","Anzahl absolut","Anzahl in Prozent"]
[{"$f":"'Antwort-Vorgaben'!A109","v":"immer"},{"$f":"COUNTIF(Fragebogen!$BO$4:$BO$54,A4)","v":0},{"$f":"IF(B4>0,B4/$B$10,0)","v":0}]
[{"$f":"'Antwort-Vorgaben'!A110","v":"oft"},{"$f":"COUNTIF(Fragebogen!$BO$4:$BO$54,A5)","v":0},{"$f":"IF(B5>0,B5/$B$10,0)","v":0}]
[{"$f":"'Antwort-Vorgaben'!A111","v":"selten"},{"$f":"COUNTIF(Fragebogen!$BO$4:$BO$54,A6)","v":0},0]
[{"$f":"'Antwort-Vorgaben'!A112","v":"nie"},{"$f":"COUNTIF(Fragebogen!$BO$4:$BO$54,A7)","v":0},0]
[{"$f":"'Antwort-Vorgaben'!A113","v":"weiß ich nicht"},{"$f":"COUNTIF(Fragebogen!$BO$4:$BO$54,A8)","v":0},0]
[{"$f":"'Antwort-Vorgaben'!A114","v":"keine Antwort"},{"$f":"COUNTIF(Fragebogen!$BO$4:$BO$54,A9)","v":0},0]
["Summe",{"$f":"SUM(B4:B9)","v":0},{"$f":"SUM(C4:C9)","v":0}]

{"sheet":"A66","index":71,"n_rows":10,"n_cols":3,"rows_kept":10,"cut":false,"hidden":false,"merged":[]}
[{"$f":"Fragen!$B$86","v":"Wenn ich etwas nicht verstehe, dann wird mir das erklärt"}]
[]
["Werte","Anzahl absolut","Anzahl in Prozent"]
[{"$f":"'Antwort-Vorgaben'!A109","v":"immer"},{"$f":"COUNTIF(Fragebogen!$BP$4:$BP$54,A4)","v":0},{"$f":"IF(B4>0,B4/$B$10,0)","v":0}]
[{"$f":"'Antwort-Vorgaben'!A110","v":"oft"},{"$f":"COUNTIF(Fragebogen!$BP$4:$BP$54,A5)","v":0},{"$f":"IF(B5>0,B5/$B$10,0)","v":0}]
[{"$f":"'Antwort-Vorgaben'!A111","v":"selten"},{"$f":"COUNTIF(Fragebogen!$BP$4:$BP$54,A6)","v":0},0]
[{"$f":"'Antwort-Vorgaben'!A112","v":"nie"},{"$f":"COUNTIF(Fragebogen!$BP$4:$BP$54,A7)","v":0},0]
[{"$f":"'Antwort-Vorgaben'!A113","v":"weiß ich nicht"},{"$f":"COUNTIF(Fragebogen!$BP$4:$BP$54,A8)","v":0},0]
[{"$f":"'Antwort-Vorgaben'!A114","v":"keine Antwort"},{"$f":"COUNTIF(Fragebogen!$BP$4:$BP$54,A9)","v":0},0]
["Summe",{"$f":"SUM(B4:B9)","v":0},{"$f":"SUM(C4:C9)","v":0}]

{"sheet":"A67","index":72,"n_rows":9,"n_cols":3,"rows_kept":9,"cut":false,"hidden":false,"merged":[]}
[{"$f":"Fragen!$B$89","v":"Ich bin über das Projekt Gesundheit inklusiv gut informiert worden"}]
[]
["Werte","Anzahl absolut","Anzahl in Prozent"]
[{"$f":"'Antwort-Vorgaben'!A118","v":"ja"},{"$f":"COUNTIF(Fragebogen!$BQ$4:$BQ$54,A4)","v":0},{"$f":"IF(B4>0,B4/$B$9,0)","v":0}]
[{"$f":"'Antwort-Vorgaben'!A119","v":"teilweise"},{"$f":"COUNTIF(Fragebogen!$BQ$4:$BQ$54,A5)","v":0},{"$f":"IF(B5>0,B5/$B$9,0)","v":0}]
[{"$f":"'Antwort-Vorgaben'!A120","v":"nein"},{"$f":"COUNTIF(Fragebogen!$BQ$4:$BQ$54,A6)","v":0},{"$f":"IF(B6>0,B6/$B$9,0)","v":0}]
[{"$f":"'Antwort-Vorgaben'!A121","v":"weiß ich nicht"},{"$f":"COUNTIF(Fragebogen!$BQ$4:$BQ$54,A7)","v":0},{"$f":"IF(B7>0,B7/$B$9,0)","v":0}]
[{"$f":"'Antwort-Vorgaben'!A122","v":"keine Antwort"},{"$f":"COUNTIF(Fragebogen!$BQ$4:$BQ$54,A8)","v":0},{"$f":"IF(B8>0,B8/$B$9,0)","v":0}]
["Summe",{"$f":"SUM(B4:B8)","v":0},{"$f":"SUM(C4:C8)","v":0}]

{"sheet":"A68","index":73,"n_rows":9,"n_cols":3,"rows_kept":9,"cut":false,"hidden":false,"merged":[]}
[{"$f":"Fragen!$B$90","v":"Ich habe beim Projekt Gesundheit inklusiv mitbestimmen können"}]
[]
["Werte","Anzahl absolut","Anzahl in Prozent"]
[{"$f":"'Antwort-Vorgaben'!A118","v":"ja"},{"$f":"COUNTIF(Fragebogen!$BR$4:$BR$54,A4)","v":0},{"$f":"IF(B4>0,B4/$B$9,0)","v":0}]
[{"$f":"'Antwort-Vorgaben'!A119","v":"teilweise"},{"$f":"COUNTIF(Fragebogen!$BR$4:$BR$54,A5)","v":0},{"$f":"IF(B5>0,B5/$B$9,0)","v":0}]
[{"$f":"'Antwort-Vorgaben'!A120","v":"nein"},{"$f":"COUNTIF(Fragebogen!$BR$4:$BR$54,A6)","v":0},{"$f":"IF(B6>0,B6/$B$9,0)","v":0}]
[{"$f":"'Antwort-Vorgaben'!A121","v":"weiß ich nicht"},{"$f":"COUNTIF(Fragebogen!$BR$4:$BR$54,A7)","v":0},{"$f":"IF(B7>0,B7/$B$9,0)","v":0}]
[{"$f":"'Antwort-Vorgaben'!A122","v":"keine Antwort"},{"$f":"COUNTIF(Fragebogen!$BR$4:$BR$54,A8)","v":0},{"$f":"IF(B8>0,B8/$B$9,0)","v":0}]
["Summe",{"$f":"SUM(B4:B8)","v":0},{"$f":"SUM(C4:C8)","v":0}]

{"sheet":"A69","index":74,"n_rows":9,"n_cols":3,"rows_kept":9,"cut":false,"hidden":false,"merged":[]}
[{"$f":"Fragen!$B$91","v":"Wegen dem Projekt Gesundheit inklusiv hat sich in der Arbeit etwas verbessert"}]
[]
["Werte","Anzahl absolut","Anzahl in Prozent"]
[{"$f":"'Antwort-Vorgaben'!A118","v":"ja"},{"$f":"COUNTIF(Fragebogen!$BS$4:$BS$54,A4)","v":0},{"$f":"IF(B4>0,B4/$B$9,0)","v":0}]
[{"$f":"'Antwort-Vorgaben'!A119","v":"teilweise"},{"$f":"COUNTIF(Fragebogen!$BS$4:$BS$54,A5)","v":0},{"$f":"IF(B5>0,B5/$B$9,0)","v":0}]
[{"$f":"'Antwort-Vorgaben'!A120","v":"nein"},{"$f":"COUNTIF(Fragebogen!$BS$4:$BS$54,A6)","v":0},{"$f":"IF(B6>0,B6/$B$9,0)","v":0}]
[{"$f":"'Antwort-Vorgaben'!A121","v":"weiß ich nicht"},{"$f":"COUNTIF(Fragebogen!$BS$4:$BS$54,A7)","v":0},{"$f":"IF(B7>0,B7/$B$9,0)","v":0}]
[{"$f":"'Antwort-Vorgaben'!A122","v":"keine Antwort"},{"$f":"COUNTIF(Fragebogen!$BS$4:$BS$54,A8)","v":0},{"$f":"IF(B8>0,B8/$B$9,0)","v":0}]
["Summe",{"$f":"SUM(B4:B8)","v":0},{"$f":"SUM(C4:C8)","v":0}]

{"sheet":"A69a","index":75,"n_rows":54,"n_cols":2,"rows_kept":54,"cut":false,"hidden":false,"merged":[]}
[{"$f":"Fragen!$B$92","v":"Was hat sich wegen dem Projekt in der Arbeit verbessert?"}]
[]
["FB-Nummer","Antwort"]
[{"$f":"Fragebogen!A4","v":0},{"$f":"Fragebogen!BT4","v":0}]
[{"$f":"Fragebogen!A5","v":0},{"$f":"Fragebogen!BT5","v":0}]
[{"$f":"Fragebogen!A6","v":0},{"$f":"Fragebogen!BT6","v":0}]
[{"$f":"Fragebogen!A7","v":0},{"$f":"Fragebogen!BT7","v":0}]
[{"$f":"Fragebogen!A8","v":0},{"$f":"Fragebogen!BT8","v":0}]
[{"$f":"Fragebogen!A9","v":0},{"$f":"Fragebogen!BT9","v":0}]
[{"$f":"Fragebogen!A10","v":0},{"$f":"Fragebogen!BT10","v":0}]
[{"$f":"Fragebogen!A11","v":0},{"$f":"Fragebogen!BT11","v":0}]
[{"$f":"Fragebogen!A12","v":0},{"$f":"Fragebogen!BT12","v":0}]
[{"$f":"Fragebogen!A13","v":0},{"$f":"Fragebogen!BT13","v":0}]
[{"$f":"Fragebogen!A14","v":0},{"$f":"Fragebogen!BT14","v":0}]
[{"$f":"Fragebogen!A15","v":0},{"$f":"Fragebogen!BT15","v":0}]
[{"$f":"Fragebogen!A16","v":0},{"$f":"Fragebogen!BT16","v":0}]
[{"$f":"Fragebogen!A17","v":0},{"$f":"Fragebogen!BT17","v":0}]
[{"$f":"Fragebogen!A18","v":0},{"$f":"Fragebogen!BT18","v":0}]
[{"$f":"Fragebogen!A19","v":0},{"$f":"Fragebogen!BT19","v":0}]
[{"$f":"Fragebogen!A20","v":0},{"$f":"Fragebogen!BT20","v":0}]
[{"$f":"Fragebogen!A21","v":0},{"$f":"Fragebogen!BT21","v":0}]
[{"$f":"Fragebogen!A22","v":0},{"$f":"Fragebogen!BT22","v":0}]
[{"$f":"Fragebogen!A23","v":0},{"$f":"Fragebogen!BT23","v":0}]
[{"$f":"Fragebogen!A24","v":0},{"$f":"Fragebogen!BT24","v":0}]
[{"$f":"Fragebogen!A25","v":0},{"$f":"Fragebogen!BT25","v":0}]
[{"$f":"Fragebogen!A26","v":0},{"$f":"Fragebogen!BT26","v":0}]
[{"$f":"Fragebogen!A27","v":0},{"$f":"Fragebogen!BT27","v":0}]
[{"$f":"Fragebogen!A28","v":0},{"$f":"Fragebogen!BT28","v":0}]
[{"$f":"Fragebogen!A29","v":0},{"$f":"Fragebogen!BT29","v":0}]
[{"$f":"Fragebogen!A30","v":0},{"$f":"Fragebogen!BT30","v":0}]
[{"$f":"Fragebogen!A31","v":0},{"$f":"Fragebogen!BT31","v":0}]
[{"$f":"Fragebogen!A32","v":0},{"$f":"Fragebogen!BT32","v":0}]
[{"$f":"Fragebogen!A33","v":0},{"$f":"Fragebogen!BT33","v":0}]
[{"$f":"Fragebogen!A34","v":0},{"$f":"Fragebogen!BT34","v":0}]
[{"$f":"Fragebogen!A35","v":0},{"$f":"Fragebogen!BT35","v":0}]
[{"$f":"Fragebogen!A36","v":0},{"$f":"Fragebogen!BT36","v":0}]
[{"$f":"Fragebogen!A37","v":0},{"$f":"Fragebogen!BT37","v":0}]
[{"$f":"Fragebogen!A38","v":0},{"$f":"Fragebogen!BT38","v":0}]
[{"$f":"Fragebogen!A39","v":0},{"$f":"Fragebogen!BT39","v":0}]
[{"$f":"Fragebogen!A40","v":0},{"$f":"Fragebogen!BT40","v":0}]
[{"$f":"Fragebogen!A41","v":0},{"$f":"Fragebogen!BT41","v":0}]
[{"$f":"Fragebogen!A42","v":0},{"$f":"Fragebogen!BT42","v":0}]
[{"$f":"Fragebogen!A43","v":0},{"$f":"Fragebogen!BT43","v":0}]
[{"$f":"Fragebogen!A44","v":0},{"$f":"Fragebogen!BT44","v":0}]
[{"$f":"Fragebogen!A45","v":0},{"$f":"Fragebogen!BT45","v":0}]
[{"$f":"Fragebogen!A46","v":0},{"$f":"Fragebogen!BT46","v":0}]
[{"$f":"Fragebogen!A47","v":0},{"$f":"Fragebogen!BT47","v":0}]
[{"$f":"Fragebogen!A48","v":0},{"$f":"Fragebogen!BT48","v":0}]
[{"$f":"Fragebogen!A49","v":0},{"$f":"Fragebogen!BT49","v":0}]
[{"$f":"Fragebogen!A50","v":0},{"$f":"Fragebogen!BT50","v":0}]
[{"$f":"Fragebogen!A51","v":0},{"$f":"Fragebogen!BT51","v":0}]
[{"$f":"Fragebogen!A52","v":0},{"$f":"Fragebogen!BT52","v":0}]
[{"$f":"Fragebogen!A53","v":0},{"$f":"Fragebogen!BT53","v":0}]
[{"$f":"Fragebogen!A54","v":0},{"$f":"Fragebogen!BT54","v":0}]

{"sheet":"A70","index":76,"n_rows":54,"n_cols":2,"rows_kept":54,"cut":false,"hidden":false,"merged":[]}
[{"$f":"Fragen!$B$93","v":"Das hat mir beim Projekt Gesundheit inklusiv besonders gut gefallen"}]
[]
["FB-Nummer","Antwort"]
[{"$f":"Fragebogen!A4","v":0},{"$f":"Fragebogen!BU4","v":0}]
[{"$f":"Fragebogen!A5","v":0},{"$f":"Fragebogen!BU5","v":0}]
[{"$f":"Fragebogen!A6","v":0},{"$f":"Fragebogen!BU6","v":0}]
[{"$f":"Fragebogen!A7","v":0},{"$f":"Fragebogen!BU7","v":0}]
[{"$f":"Fragebogen!A8","v":0},{"$f":"Fragebogen!BU8","v":0}]
[{"$f":"Fragebogen!A9","v":0},{"$f":"Fragebogen!BU9","v":0}]
[{"$f":"Fragebogen!A10","v":0},{"$f":"Fragebogen!BU10","v":0}]
[{"$f":"Fragebogen!A11","v":0},{"$f":"Fragebogen!BU11","v":0}]
[{"$f":"Fragebogen!A12","v":0},{"$f":"Fragebogen!BU12","v":0}]
[{"$f":"Fragebogen!A13","v":0},{"$f":"Fragebogen!BU13","v":0}]
[{"$f":"Fragebogen!A14","v":0},{"$f":"Fragebogen!BU14","v":0}]
[{"$f":"Fragebogen!A15","v":0},{"$f":"Fragebogen!BU15","v":0}]
[{"$f":"Fragebogen!A16","v":0},{"$f":"Fragebogen!BU16","v":0}]
[{"$f":"Fragebogen!A17","v":0},{"$f":"Fragebogen!BU17","v":0}]
[{"$f":"Fragebogen!A18","v":0},{"$f":"Fragebogen!BU18","v":0}]
[{"$f":"Fragebogen!A19","v":0},{"$f":"Fragebogen!BU19","v":0}]
[{"$f":"Fragebogen!A20","v":0},{"$f":"Fragebogen!BU20","v":0}]
[{"$f":"Fragebogen!A21","v":0},{"$f":"Fragebogen!BU21","v":0}]
[{"$f":"Fragebogen!A22","v":0},{"$f":"Fragebogen!BU22","v":0}]
[{"$f":"Fragebogen!A23","v":0},{"$f":"Fragebogen!BU23","v":0}]
[{"$f":"Fragebogen!A24","v":0},{"$f":"Fragebogen!BU24","v":0}]
[{"$f":"Fragebogen!A25","v":0},{"$f":"Fragebogen!BU25","v":0}]
[{"$f":"Fragebogen!A26","v":0},{"$f":"Fragebogen!BU26","v":0}]
[{"$f":"Fragebogen!A27","v":0},{"$f":"Fragebogen!BU27","v":0}]
[{"$f":"Fragebogen!A28","v":0},{"$f":"Fragebogen!BU28","v":0}]
[{"$f":"Fragebogen!A29","v":0},{"$f":"Fragebogen!BU29","v":0}]
[{"$f":"Fragebogen!A30","v":0},{"$f":"Fragebogen!BU30","v":0}]
[{"$f":"Fragebogen!A31","v":0},{"$f":"Fragebogen!BU31","v":0}]
[{"$f":"Fragebogen!A32","v":0},{"$f":"Fragebogen!BU32","v":0}]
[{"$f":"Fragebogen!A33","v":0},{"$f":"Fragebogen!BU33","v":0}]
[{"$f":"Fragebogen!A34","v":0},{"$f":"Fragebogen!BU34","v":0}]
[{"$f":"Fragebogen!A35","v":0},{"$f":"Fragebogen!BU35","v":0}]
[{"$f":"Fragebogen!A36","v":0},{"$f":"Fragebogen!BU36","v":0}]
[{"$f":"Fragebogen!A37","v":0},{"$f":"Fragebogen!BU37","v":0}]
[{"$f":"Fragebogen!A38","v":0},{"$f":"Fragebogen!BU38","v":0}]
[{"$f":"Fragebogen!A39","v":0},{"$f":"Fragebogen!BU39","v":0}]
[{"$f":"Fragebogen!A40","v":0},{"$f":"Fragebogen!BU40","v":0}]
[{"$f":"Fragebogen!A41","v":0},{"$f":"Fragebogen!BU41","v":0}]
[{"$f":"Fragebogen!A42","v":0},{"$f":"Fragebogen!BU42","v":0}]
[{"$f":"Fragebogen!A43","v":0},{"$f":"Fragebogen!BU43","v":0}]
[{"$f":"Fragebogen!A44","v":0},{"$f":"Fragebogen!BU44","v":0}]
[{"$f":"Fragebogen!A45","v":0},{"$f":"Fragebogen!BU45","v":0}]
[{"$f":"Fragebogen!A46","v":0},{"$f":"Fragebogen!BU46","v":0}]
[{"$f":"Fragebogen!A47","v":0},{"$f":"Fragebogen!BU47","v":0}]
[{"$f":"Fragebogen!A48","v":0},{"$f":"Fragebogen!BU48","v":0}]
[{"$f":"Fragebogen!A49","v":0},{"$f":"Fragebogen!BU49","v":0}]
[{"$f":"Fragebogen!A50","v":0},{"$f":"Fragebogen!BU50","v":0}]
[{"$f":"Fragebogen!A51","v":0},{"$f":"Fragebogen!BU51","v":0}]
[{"$f":"Fragebogen!A52","v":0},{"$f":"Fragebogen!BU52","v":0}]
[{"$f":"Fragebogen!A53","v":0},{"$f":"Fragebogen!BU53","v":0}]
[{"$f":"Fragebogen!A54","v":0},{"$f":"Fragebogen!BU54","v":0}]

{"sheet":"A71","index":77,"n_rows":54,"n_cols":2,"rows_kept":54,"cut":false,"hidden":false,"merged":[]}
[{"$f":"Fragen!$B$94","v":"Das kann man beim Projekt Gesundheit inklusiv noch besser machen"}]
[]
["FB-Nummer","Antwort"]
[{"$f":"Fragebogen!A4","v":0},{"$f":"Fragebogen!BV4","v":0}]
[{"$f":"Fragebogen!A5","v":0},{"$f":"Fragebogen!BV5","v":0}]
[{"$f":"Fragebogen!A6","v":0},{"$f":"Fragebogen!BV6","v":0}]
[{"$f":"Fragebogen!A7","v":0},{"$f":"Fragebogen!BV7","v":0}]
[{"$f":"Fragebogen!A8","v":0},{"$f":"Fragebogen!BV8","v":0}]
[{"$f":"Fragebogen!A9","v":0},{"$f":"Fragebogen!BV9","v":0}]
[{"$f":"Fragebogen!A10","v":0},{"$f":"Fragebogen!BV10","v":0}]
[{"$f":"Fragebogen!A11","v":0},{"$f":"Fragebogen!BV11","v":0}]
[{"$f":"Fragebogen!A12","v":0},{"$f":"Fragebogen!BV12","v":0}]
[{"$f":"Fragebogen!A13","v":0},{"$f":"Fragebogen!BV13","v":0}]
[{"$f":"Fragebogen!A14","v":0},{"$f":"Fragebogen!BV14","v":0}]
[{"$f":"Fragebogen!A15","v":0},{"$f":"Fragebogen!BV15","v":0}]
[{"$f":"Fragebogen!A16","v":0},{"$f":"Fragebogen!BV16","v":0}]
[{"$f":"Fragebogen!A17","v":0},{"$f":"Fragebogen!BV17","v":0}]
[{"$f":"Fragebogen!A18","v":0},{"$f":"Fragebogen!BV18","v":0}]
[{"$f":"Fragebogen!A19","v":0},{"$f":"Fragebogen!BV19","v":0}]
[{"$f":"Fragebogen!A20","v":0},{"$f":"Fragebogen!BV20","v":0}]
[{"$f":"Fragebogen!A21","v":0},{"$f":"Fragebogen!BV21","v":0}]
[{"$f":"Fragebogen!A22","v":0},{"$f":"Fragebogen!BV22","v":0}]
[{"$f":"Fragebogen!A23","v":0},{"$f":"Fragebogen!BV23","v":0}]
[{"$f":"Fragebogen!A24","v":0},{"$f":"Fragebogen!BV24","v":0}]
[{"$f":"Fragebogen!A25","v":0},{"$f":"Fragebogen!BV25","v":0}]
[{"$f":"Fragebogen!A26","v":0},{"$f":"Fragebogen!BV26","v":0}]
[{"$f":"Fragebogen!A27","v":0},{"$f":"Fragebogen!BV27","v":0}]
[{"$f":"Fragebogen!A28","v":0},{"$f":"Fragebogen!BV28","v":0}]
[{"$f":"Fragebogen!A29","v":0},{"$f":"Fragebogen!BV29","v":0}]
[{"$f":"Fragebogen!A30","v":0},{"$f":"Fragebogen!BV30","v":0}]
[{"$f":"Fragebogen!A31","v":0},{"$f":"Fragebogen!BV31","v":0}]
[{"$f":"Fragebogen!A32","v":0},{"$f":"Fragebogen!BV32","v":0}]
[{"$f":"Fragebogen!A33","v":0},{"$f":"Fragebogen!BV33","v":0}]
[{"$f":"Fragebogen!A34","v":0},{"$f":"Fragebogen!BV34","v":0}]
[{"$f":"Fragebogen!A35","v":0},{"$f":"Fragebogen!BV35","v":0}]
[{"$f":"Fragebogen!A36","v":0},{"$f":"Fragebogen!BV36","v":0}]
[{"$f":"Fragebogen!A37","v":0},{"$f":"Fragebogen!BV37","v":0}]
[{"$f":"Fragebogen!A38","v":0},{"$f":"Fragebogen!BV38","v":0}]
[{"$f":"Fragebogen!A39","v":0},{"$f":"Fragebogen!BV39","v":0}]
[{"$f":"Fragebogen!A40","v":0},{"$f":"Fragebogen!BV40","v":0}]
[{"$f":"Fragebogen!A41","v":0},{"$f":"Fragebogen!BV41","v":0}]
[{"$f":"Fragebogen!A42","v":0},{"$f":"Fragebogen!BV42","v":0}]
[{"$f":"Fragebogen!A43","v":0},{"$f":"Fragebogen!BV43","v":0}]
[{"$f":"Fragebogen!A44","v":0},{"$f":"Fragebogen!BV44","v":0}]
[{"$f":"Fragebogen!A45","v":0},{"$f":"Fragebogen!BV45","v":0}]
[{"$f":"Fragebogen!A46","v":0},{"$f":"Fragebogen!BV46","v":0}]
[{"$f":"Fragebogen!A47","v":0},{"$f":"Fragebogen!BV47","v":0}]
[{"$f":"Fragebogen!A48","v":0},{"$f":"Fragebogen!BV48","v":0}]
[{"$f":"Fragebogen!A49","v":0},{"$f":"Fragebogen!BV49","v":0}]
[{"$f":"Fragebogen!A50","v":0},{"$f":"Fragebogen!BV50","v":0}]
[{"$f":"Fragebogen!A51","v":0},{"$f":"Fragebogen!BV51","v":0}]
[{"$f":"Fragebogen!A52","v":0},{"$f":"Fragebogen!BV52","v":0}]
[{"$f":"Fragebogen!A53","v":0},{"$f":"Fragebogen!BV53","v":0}]
[{"$f":"Fragebogen!A54","v":0},{"$f":"Fragebogen!BV54","v":0}]

{"sheet":"A72","index":78,"n_rows":12,"n_cols":3,"rows_kept":12,"cut":false,"hidden":false,"merged":[]}
[{"$f":"Fragen!$B$97","v":"Alter:"}]
[]
["Werte","Anzahl absolut","Anzahl in Prozent"]
[{"$f":"'Antwort-Vorgaben'!A127","v":"unter 18"},{"$f":"COUNTIF(Fragebogen!$BW$4:$BW$54,A4)","v":0},{"$f":"IF(B4>0,B4/$B$12,0)","v":0}]
[{"$f":"'Antwort-Vorgaben'!A128","v":"18 bis 25"},{"$f":"COUNTIF(Fragebogen!$BW$4:$BW$54,A5)","v":0},{"$f":"IF(B5>0,B5/$B$12,0)","v":0}]
[{"$f":"'Antwort-Vorgaben'!A129","v":"26 bis 29"},{"$f":"COUNTIF(Fragebogen!$BW$4:$BW$54,A6)","v":0},0]
[{"$f":"'Antwort-Vorgaben'!A130","v":"30 bis 39"},{"$f":"COUNTIF(Fragebogen!$BW$4:$BW$54,A7)","v":0},0]
[{"$f":"'Antwort-Vorgaben'!A131","v":"40 bis 49"},{"$f":"COUNTIF(Fragebogen!$BW$4:$BW$54,A8)","v":0},0]
[{"$f":"'Antwort-Vorgaben'!A132","v":"50 bis 59"},{"$f":"COUNTIF(Fragebogen!$BW$4:$BW$54,A9)","v":0},0]
[{"$f":"'Antwort-Vorgaben'!A133","v":"60 und älter"},{"$f":"COUNTIF(Fragebogen!$BW$4:$BW$54,A10)","v":0},0]
[{"$f":"'Antwort-Vorgaben'!A134","v":"keine Antwort"},{"$f":"COUNTIF(Fragebogen!$BW$4:$BW$54,A11)","v":0},0]
["Summe",{"$f":"SUM(B4:B11)","v":0},{"$f":"SUM(C4:C11)","v":0}]

{"sheet":"A73","index":79,"n_rows":7,"n_cols":3,"rows_kept":7,"cut":false,"hidden":false,"merged":[]}
[{"$f":"Fragen!$B$98","v":"Geschlecht:"}]
[]
["Werte","Anzahl absolut","Anzahl in Prozent"]
[{"$f":"'Antwort-Vorgaben'!A136","v":"Frau"},{"$f":"COUNTIF(Fragebogen!$BX$4:$BX$54,A4)","v":0},{"$f":"IF(B4>0,B4/$B$7,0)","v":0}]
[{"$f":"'Antwort-Vorgaben'!A137","v":"Mann"},{"$f":"COUNTIF(Fragebogen!$BX$4:$BX$54,A5)","v":0},{"$f":"IF(B5>0,B5/$B$7,0)","v":0}]
[{"$f":"'Antwort-Vorgaben'!A138","v":"keine Antwort"},{"$f":"COUNTIF(Fragebogen!$BX$4:$BX$54,A6)","v":0},{"$f":"IF(B6>0,B6/$B$7,0)","v":0}]
["Summe",{"$f":"SUM(B4:B6)","v":0},{"$f":"SUM(C4:C6)","v":0}]

{"sheet":"A74","index":80,"n_rows":10,"n_cols":3,"rows_kept":10,"cut":false,"hidden":false,"merged":[]}
[{"$f":"Fragen!$B$99","v":"Wie lange arbeiten Sie schon hier?"}]
[]
["Werte","Anzahl absolut","Anzahl in Prozent"]
[{"$f":"'Antwort-Vorgaben'!A140","v":"weniger als \n1 Jahr"},{"$f":"COUNTIF(Fragebogen!$BY$4:$BY$54,A4)","v":0},{"$f":"IF(B4>0,B4/$B$10,0)","v":0}]
[{"$f":"'Antwort-Vorgaben'!A141","v":"1 bis 5 \nJahre"},{"$f":"COUNTIF(Fragebogen!$BY$4:$BY$54,A5)","v":0},0]
[{"$f":"'Antwort-Vorgaben'!A142","v":"6 bis 10 \nJahre"},{"$f":"COUNTIF(Fragebogen!$BY$4:$BY$54,A6)","v":0},0]
[{"$f":"'Antwort-Vorgaben'!A143","v":"mehr als 10 Jahre"},{"$f":"COUNTIF(Fragebogen!$BY$4:$BY$54,A7)","v":0},0]
[{"$f":"'Antwort-Vorgaben'!A144","v":"weiß ich nicht"},{"$f":"COUNTIF(Fragebogen!$BY$4:$BY$54,A8)","v":0},0]
[{"$f":"'Antwort-Vorgaben'!A145","v":"keine Antwort"},{"$f":"COUNTIF(Fragebogen!$BY$4:$BY$54,A9)","v":0},0]
["Summe",{"$f":"SUM(B4:B9)","v":0},{"$f":"SUM(C4:C9)","v":0}]

{"sheet":"A75","index":81,"n_rows":12,"n_cols":3,"rows_kept":12,"cut":false,"hidden":false,"merged":[]}
[{"$f":"Fragen!$B$100","v":"Wie viele Tage in der Woche arbeiten Sie?"}]
[]
["Werte","Anzahl absolut","Anzahl in Prozent"]
[{"$f":"'Antwort-Vorgaben'!A147","v":"1 Tag"},{"$f":"COUNTIF(Fragebogen!$BZ$4:$BZ$54,A4)","v":0},{"$f":"IF(B4>0,B4/$B$12,0)","v":0}]
[{"$f":"'Antwort-Vorgaben'!A148","v":"2 Tage"},{"$f":"COUNTIF(Fragebogen!$BZ$4:$BZ$54,A5)","v":0},0]
[{"$f":"'Antwort-Vorgaben'!A149","v":"3 Tage"},{"$f":"COUNTIF(Fragebogen!$BZ$4:$BZ$54,A6)","v":0},0]
[{"$f":"'Antwort-Vorgaben'!A150","v":"4 Tage"},{"$f":"COUNTIF(Fragebogen!$BZ$4:$BZ$54,A7)","v":0},0]
[{"$f":"'Antwort-Vorgaben'!A151","v":"5 Tage"},{"$f":"COUNTIF(Fragebogen!$BZ$4:$BZ$54,A8)","v":0},0]
[{"$f":"'Antwort-Vorgaben'!A152","v":"6 Tage"},{"$f":"COUNTIF(Fragebogen!$BZ$4:$BZ$54,A9)","v":0},0]
[{"$f":"'Antwort-Vorgaben'!A153","v":"7 Tage"},{"$f":"COUNTIF(Fragebogen!$BZ$4:$BZ$54,A10)","v":0},0]
[{"$f":"'Antwort-Vorgaben'!A154","v":"keine Antwort"},{"$f":"COUNTIF(Fragebogen!$BZ$4:$BZ$54,A11)","v":0},0]
["Summe",{"$f":"SUM(B4:B11)","v":0},{"$f":"SUM(C4:C11)","v":0}]

{"sheet":"A76","index":82,"n_rows":8,"n_cols":3,"rows_kept":8,"cut":false,"hidden":false,"merged":[]}
[{"$f":"Fragen!$B$101","v":"Wie viel arbeiten Sie an einem Arbeits-Tag?"}]
[]
["Werte","Anzahl absolut","Anzahl in Prozent"]
[{"$f":"'Antwort-Vorgaben'!A156","v":"einen ganzen Tag"},{"$f":"COUNTIF(Fragebogen!$CA$4:$CA$54,A4)","v":0},{"$f":"IF(B4>0,B4/$B$8,0)","v":0}]
[{"$f":"'Antwort-Vorgaben'!A157","v":"einen halben Tag"},{"$f":"COUNTIF(Fragebogen!$CA$4:$CA$54,A5)","v":0},{"$f":"IF(B5>0,B5/$B$8,0)","v":0}]
[{"$f":"'Antwort-Vorgaben'!A158","v":"weiß ich nicht"},{"$f":"COUNTIF(Fragebogen!$CA$4:$CA$54,A6)","v":0},{"$f":"IF(B6>0,B6/$B$8,0)","v":0}]
[{"$f":"'Antwort-Vorgaben'!A159","v":"keine Antwort"},{"$f":"COUNTIF(Fragebogen!$CA$4:$CA$54,A7)","v":0},{"$f":"IF(B7>0,B7/$B$8,0)","v":0}]
["Summe",{"$f":"SUM(B4:B7)","v":0},{"$f":"SUM(C4:C7)","v":0}]